Body Name,Body,Organisational unit,Service division,Expenditure category,Date,Transacton number,Net amount,Supplier,Narrative
Tendring DC,http://statistics.data.gov.uk/id/local-authority-district/22UN,Benefits & Revenues,1580 - Benefits & Revenues,4462 - Legal Fees incl. Bailiffs re debt recovery,31/05/2011,1044033-1,49.51,2101674 - Anglia Courier Express,COURIER
Tendring DC,http://statistics.data.gov.uk/id/local-authority-district/22UN,Benefits & Revenues,1580 - Benefits & Revenues,5500 - Miscellaneous Expenses,17/05/2011,1043158-1,44.95,2102663 - Argos Business Solutions Ltd,RAPID BOIL KETTLES
Tendring DC,http://statistics.data.gov.uk/id/local-authority-district/22UN,Benefits & Revenues,1580 - Benefits & Revenues,4300 - Printing & Stationery,03/05/2011,2084429-1,363.6,2100111 - Banner Business Supplies Ltd,Paper
Tendring DC,http://statistics.data.gov.uk/id/local-authority-district/22UN,Benefits & Revenues,1580 - Benefits & Revenues,3312 - Car Allowances - Car Hire,03/05/2011,1042991-1,24.5,2104746 - CC Hire,CC HIRE
Tendring DC,http://statistics.data.gov.uk/id/local-authority-district/22UN,Benefits & Revenues,1580 - Benefits & Revenues,3312 - Car Allowances - Car Hire,03/05/2011,1042992-1,15,2104746 - CC Hire,CAR HIRE
Tendring DC,http://statistics.data.gov.uk/id/local-authority-district/22UN,Benefits & Revenues,1580 - Benefits & Revenues,3312 - Car Allowances - Car Hire,03/05/2011,1042993-1,15,2104746 - CC Hire,CAR HIRE
Tendring DC,http://statistics.data.gov.uk/id/local-authority-district/22UN,Benefits & Revenues,1580 - Benefits & Revenues,3312 - Car Allowances - Car Hire,03/05/2011,1042994-1,15,2104746 - CC Hire,CAR HIRE
Tendring DC,http://statistics.data.gov.uk/id/local-authority-district/22UN,Benefits & Revenues,1580 - Benefits & Revenues,3312 - Car Allowances - Car Hire,03/05/2011,1042995-1,15,2104746 - CC Hire,CAR HIRE
Tendring DC,http://statistics.data.gov.uk/id/local-authority-district/22UN,Benefits & Revenues,1580 - Benefits & Revenues,3312 - Car Allowances - Car Hire,31/05/2011,1043987-1,17.5,2104746 - CC Hire,NB/SL
Tendring DC,http://statistics.data.gov.uk/id/local-authority-district/22UN,Benefits & Revenues,1580 - Benefits & Revenues,1700 - Training - Courses,03/05/2011,2084392-1,590,2109394 - CIPFA Business Ltd,Benefits Consortium
Tendring DC,http://statistics.data.gov.uk/id/local-authority-district/22UN,Benefits & Revenues,1580 - Benefits & Revenues,4462 - Legal Fees incl. Bailiffs re debt recovery,03/05/2011,1043738-1,1188,2100269 - Co operative Bank plc,HM COURST AND NCP
Tendring DC,http://statistics.data.gov.uk/id/local-authority-district/22UN,Benefits & Revenues,1580 - Benefits & Revenues,3304 - Car Allowances - Parking Fees,03/05/2011,1043738-2,5.17,2100269 - Co operative Bank plc,HM COURST AND NCP
Tendring DC,http://statistics.data.gov.uk/id/local-authority-district/22UN,Benefits & Revenues,1580 - Benefits & Revenues,4462 - Legal Fees incl. Bailiffs re debt recovery,03/05/2011,1043738-3,2,2100269 - Co operative Bank plc,HM COURST AND NCP
Tendring DC,http://statistics.data.gov.uk/id/local-authority-district/22UN,Benefits & Revenues,1580 - Benefits & Revenues,4462 - Legal Fees incl. Bailiffs re debt recovery,25/05/2011,1043893-1,7.2,2100381 - Collect Services Ltd,COLLECT SERVICES NNDR
Tendring DC,http://statistics.data.gov.uk/id/local-authority-district/22UN,Benefits & Revenues,1580 - Benefits & Revenues,4462 - Legal Fees incl. Bailiffs re debt recovery,25/05/2011,1043893-2,-7.2,2100381 - Collect Services Ltd,COLLECT SERVICES NNDR
Tendring DC,http://statistics.data.gov.uk/id/local-authority-district/22UN,Benefits & Revenues,1580 - Benefits & Revenues,4462 - Legal Fees incl. Bailiffs re debt recovery,25/05/2011,1043893-3,76.5,2100381 - Collect Services Ltd,COLLECT SERVICES NNDR
Tendring DC,http://statistics.data.gov.uk/id/local-authority-district/22UN,Benefits & Revenues,1580 - Benefits & Revenues,4462 - Legal Fees incl. Bailiffs re debt recovery,25/05/2011,1043893-4,-76.5,2100381 - Collect Services Ltd,COLLECT SERVICES NNDR
Tendring DC,http://statistics.data.gov.uk/id/local-authority-district/22UN,Benefits & Revenues,1580 - Benefits & Revenues,4462 - Legal Fees incl. Bailiffs re debt recovery,25/05/2011,1043894-1,1701.53,2100381 - Collect Services Ltd,COLLECT SERVICES CT
Tendring DC,http://statistics.data.gov.uk/id/local-authority-district/22UN,Benefits & Revenues,1580 - Benefits & Revenues,4462 - Legal Fees incl. Bailiffs re debt recovery,25/05/2011,1043894-2,-1701.53,2100381 - Collect Services Ltd,COLLECT SERVICES CT
Tendring DC,http://statistics.data.gov.uk/id/local-authority-district/22UN,Benefits & Revenues,1580 - Benefits & Revenues,4462 - Legal Fees incl. Bailiffs re debt recovery,25/05/2011,1043894-3,1550.6,2100381 - Collect Services Ltd,COLLECT SERVICES CT
Tendring DC,http://statistics.data.gov.uk/id/local-authority-district/22UN,Benefits & Revenues,1580 - Benefits & Revenues,4462 - Legal Fees incl. Bailiffs re debt recovery,25/05/2011,1043894-4,-1550.6,2100381 - Collect Services Ltd,COLLECT SERVICES CT
Tendring DC,http://statistics.data.gov.uk/id/local-authority-district/22UN,Benefits & Revenues,1580 - Benefits & Revenues,4462 - Legal Fees incl. Bailiffs re debt recovery,25/05/2011,1043894-5,307.97,2100381 - Collect Services Ltd,COLLECT SERVICES CT
Tendring DC,http://statistics.data.gov.uk/id/local-authority-district/22UN,Benefits & Revenues,1580 - Benefits & Revenues,4462 - Legal Fees incl. Bailiffs re debt recovery,25/05/2011,1043894-6,-307.97,2100381 - Collect Services Ltd,COLLECT SERVICES CT
Tendring DC,http://statistics.data.gov.uk/id/local-authority-district/22UN,Benefits & Revenues,1580 - Benefits & Revenues,5189 - External Debt Recovery Commission,25/05/2011,1043895-1,223.83,2100381 - Collect Services Ltd,COLLECT SERVICES COMMISSION
Tendring DC,http://statistics.data.gov.uk/id/local-authority-district/22UN,Benefits & Revenues,1580 - Benefits & Revenues,4462 - Legal Fees incl. Bailiffs re debt recovery,03/05/2011,2084390-1,181.29,2100381 - Collect Services Ltd,Collect Svs
Tendring DC,http://statistics.data.gov.uk/id/local-authority-district/22UN,Benefits & Revenues,1580 - Benefits & Revenues,4462 - Legal Fees incl. Bailiffs re debt recovery,03/05/2011,2084390-2,-181.29,2100381 - Collect Services Ltd,Collect Svs
Tendring DC,http://statistics.data.gov.uk/id/local-authority-district/22UN,Benefits & Revenues,1580 - Benefits & Revenues,4462 - Legal Fees incl. Bailiffs re debt recovery,03/05/2011,2084390-3,624.58,2100381 - Collect Services Ltd,Collect Svs
Tendring DC,http://statistics.data.gov.uk/id/local-authority-district/22UN,Benefits & Revenues,1580 - Benefits & Revenues,4462 - Legal Fees incl. Bailiffs re debt recovery,03/05/2011,2084390-4,-624.58,2100381 - Collect Services Ltd,Collect Svs
Tendring DC,http://statistics.data.gov.uk/id/local-authority-district/22UN,Benefits & Revenues,1580 - Benefits & Revenues,4462 - Legal Fees incl. Bailiffs re debt recovery,03/05/2011,2084390-5,1256.43,2100381 - Collect Services Ltd,Collect Svs
Tendring DC,http://statistics.data.gov.uk/id/local-authority-district/22UN,Benefits & Revenues,1580 - Benefits & Revenues,4462 - Legal Fees incl. Bailiffs re debt recovery,03/05/2011,2084390-6,-1256.43,2100381 - Collect Services Ltd,Collect Svs
Tendring DC,http://statistics.data.gov.uk/id/local-authority-district/22UN,Benefits & Revenues,1580 - Benefits & Revenues,4462 - Legal Fees incl. Bailiffs re debt recovery,03/05/2011,2084391-1,42.5,2100381 - Collect Services Ltd,Collect Services NNDR
Tendring DC,http://statistics.data.gov.uk/id/local-authority-district/22UN,Benefits & Revenues,1580 - Benefits & Revenues,4462 - Legal Fees incl. Bailiffs re debt recovery,03/05/2011,2084391-2,-42.5,2100381 - Collect Services Ltd,Collect Services NNDR
Tendring DC,http://statistics.data.gov.uk/id/local-authority-district/22UN,Benefits & Revenues,1580 - Benefits & Revenues,4462 - Legal Fees incl. Bailiffs re debt recovery,03/05/2011,2084391-3,57.01,2100381 - Collect Services Ltd,Collect Services NNDR
Tendring DC,http://statistics.data.gov.uk/id/local-authority-district/22UN,Benefits & Revenues,1580 - Benefits & Revenues,4462 - Legal Fees incl. Bailiffs re debt recovery,03/05/2011,2084391-4,-57.01,2100381 - Collect Services Ltd,Collect Services NNDR
Tendring DC,http://statistics.data.gov.uk/id/local-authority-district/22UN,Benefits & Revenues,1580 - Benefits & Revenues,4462 - Legal Fees incl. Bailiffs re debt recovery,10/05/2011,2084531-1,285.07,2100381 - Collect Services Ltd,
Tendring DC,http://statistics.data.gov.uk/id/local-authority-district/22UN,Benefits & Revenues,1580 - Benefits & Revenues,4462 - Legal Fees incl. Bailiffs re debt recovery,10/05/2011,2084531-2,-285.07,2100381 - Collect Services Ltd,
Tendring DC,http://statistics.data.gov.uk/id/local-authority-district/22UN,Benefits & Revenues,1580 - Benefits & Revenues,4462 - Legal Fees incl. Bailiffs re debt recovery,10/05/2011,2084531-3,732.65,2100381 - Collect Services Ltd,
Tendring DC,http://statistics.data.gov.uk/id/local-authority-district/22UN,Benefits & Revenues,1580 - Benefits & Revenues,4462 - Legal Fees incl. Bailiffs re debt recovery,10/05/2011,2084531-4,-732.65,2100381 - Collect Services Ltd,
Tendring DC,http://statistics.data.gov.uk/id/local-authority-district/22UN,Benefits & Revenues,1580 - Benefits & Revenues,4462 - Legal Fees incl. Bailiffs re debt recovery,10/05/2011,2084531-5,1121.94,2100381 - Collect Services Ltd,
Tendring DC,http://statistics.data.gov.uk/id/local-authority-district/22UN,Benefits & Revenues,1580 - Benefits & Revenues,4462 - Legal Fees incl. Bailiffs re debt recovery,10/05/2011,2084531-6,-1121.94,2100381 - Collect Services Ltd,
Tendring DC,http://statistics.data.gov.uk/id/local-authority-district/22UN,Benefits & Revenues,1580 - Benefits & Revenues,4462 - Legal Fees incl. Bailiffs re debt recovery,10/05/2011,2084532-1,52.35,2100381 - Collect Services Ltd,Collect Services NNDR
Tendring DC,http://statistics.data.gov.uk/id/local-authority-district/22UN,Benefits & Revenues,1580 - Benefits & Revenues,4462 - Legal Fees incl. Bailiffs re debt recovery,10/05/2011,2084532-2,-52.35,2100381 - Collect Services Ltd,Collect Services NNDR
Tendring DC,http://statistics.data.gov.uk/id/local-authority-district/22UN,Benefits & Revenues,1580 - Benefits & Revenues,4462 - Legal Fees incl. Bailiffs re debt recovery,25/05/2011,2084609-1,168.06,2100381 - Collect Services Ltd,COLLECT SERVICES CT
Tendring DC,http://statistics.data.gov.uk/id/local-authority-district/22UN,Benefits & Revenues,1580 - Benefits & Revenues,4462 - Legal Fees incl. Bailiffs re debt recovery,25/05/2011,2084609-2,-168.06,2100381 - Collect Services Ltd,COLLECT SERVICES CT
Tendring DC,http://statistics.data.gov.uk/id/local-authority-district/22UN,Benefits & Revenues,1580 - Benefits & Revenues,4462 - Legal Fees incl. Bailiffs re debt recovery,25/05/2011,2084609-3,1188.5,2100381 - Collect Services Ltd,COLLECT SERVICES CT
Tendring DC,http://statistics.data.gov.uk/id/local-authority-district/22UN,Benefits & Revenues,1580 - Benefits & Revenues,4462 - Legal Fees incl. Bailiffs re debt recovery,25/05/2011,2084609-4,-1188.5,2100381 - Collect Services Ltd,COLLECT SERVICES CT
Tendring DC,http://statistics.data.gov.uk/id/local-authority-district/22UN,Benefits & Revenues,1580 - Benefits & Revenues,4462 - Legal Fees incl. Bailiffs re debt recovery,25/05/2011,2084609-5,941.09,2100381 - Collect Services Ltd,COLLECT SERVICES CT
Tendring DC,http://statistics.data.gov.uk/id/local-authority-district/22UN,Benefits & Revenues,1580 - Benefits & Revenues,4462 - Legal Fees incl. Bailiffs re debt recovery,25/05/2011,2084609-6,-941.09,2100381 - Collect Services Ltd,COLLECT SERVICES CT
Tendring DC,http://statistics.data.gov.uk/id/local-authority-district/22UN,Benefits & Revenues,1580 - Benefits & Revenues,4462 - Legal Fees incl. Bailiffs re debt recovery,25/05/2011,2084610-1,481.85,2100381 - Collect Services Ltd,COLLECT SERVICES NNDR
Tendring DC,http://statistics.data.gov.uk/id/local-authority-district/22UN,Benefits & Revenues,1580 - Benefits & Revenues,4462 - Legal Fees incl. Bailiffs re debt recovery,25/05/2011,2084610-2,-481.85,2100381 - Collect Services Ltd,COLLECT SERVICES NNDR
Tendring DC,http://statistics.data.gov.uk/id/local-authority-district/22UN,Benefits & Revenues,1580 - Benefits & Revenues,4460 - Legal & Professional Expenses,31/05/2011,2084700-1,1205.33,2100381 - Collect Services Ltd,COLLECT SERVICES
Tendring DC,http://statistics.data.gov.uk/id/local-authority-district/22UN,Benefits & Revenues,1580 - Benefits & Revenues,4460 - Legal & Professional Expenses,31/05/2011,2084700-2,-1205.33,2100381 - Collect Services Ltd,COLLECT SERVICES
Tendring DC,http://statistics.data.gov.uk/id/local-authority-district/22UN,Benefits & Revenues,1580 - Benefits & Revenues,4460 - Legal & Professional Expenses,31/05/2011,2084700-3,1048.28,2100381 - Collect Services Ltd,COLLECT SERVICES
Tendring DC,http://statistics.data.gov.uk/id/local-authority-district/22UN,Benefits & Revenues,1580 - Benefits & Revenues,4460 - Legal & Professional Expenses,31/05/2011,2084700-4,-1048.28,2100381 - Collect Services Ltd,COLLECT SERVICES
Tendring DC,http://statistics.data.gov.uk/id/local-authority-district/22UN,Benefits & Revenues,1580 - Benefits & Revenues,4460 - Legal & Professional Expenses,31/05/2011,2084700-5,364.32,2100381 - Collect Services Ltd,COLLECT SERVICES
Tendring DC,http://statistics.data.gov.uk/id/local-authority-district/22UN,Benefits & Revenues,1580 - Benefits & Revenues,4460 - Legal & Professional Expenses,31/05/2011,2084700-6,-364.32,2100381 - Collect Services Ltd,COLLECT SERVICES
Tendring DC,http://statistics.data.gov.uk/id/local-authority-district/22UN,Benefits & Revenues,1580 - Benefits & Revenues,4460 - Legal & Professional Expenses,31/05/2011,2084700-7,-0.01,2100381 - Collect Services Ltd,COLLECT SERVICES
Tendring DC,http://statistics.data.gov.uk/id/local-authority-district/22UN,Benefits & Revenues,1580 - Benefits & Revenues,4462 - Legal Fees incl. Bailiffs re debt recovery,31/05/2011,2084701-1,339.52,2100381 - Collect Services Ltd,COLLECT SERVICES NNDR
Tendring DC,http://statistics.data.gov.uk/id/local-authority-district/22UN,Benefits & Revenues,1580 - Benefits & Revenues,4462 - Legal Fees incl. Bailiffs re debt recovery,31/05/2011,2084701-2,-339.52,2100381 - Collect Services Ltd,COLLECT SERVICES NNDR
Tendring DC,http://statistics.data.gov.uk/id/local-authority-district/22UN,Benefits & Revenues,1580 - Benefits & Revenues,4462 - Legal Fees incl. Bailiffs re debt recovery,01/05/2011,1043948-1,6,2105795 - Companies House,COMPANIES HOUSE APRIL 11
Tendring DC,http://statistics.data.gov.uk/id/local-authority-district/22UN,Benefits & Revenues,8530 - Brightlingsea Swimming Pool,2510 - Water Services - Unmetered,17/05/2011,1043131-1,46.22,2100459 - Essex Fire Authority,FIRE HYDRANT TEST
Tendring DC,http://statistics.data.gov.uk/id/local-authority-district/22UN,Benefits & Revenues,1580 - Benefits & Revenues,4462 - Legal Fees incl. Bailiffs re debt recovery,03/05/2011,2084393-1,82.5,2111230 - Fusion Professional,Employment traces
Tendring DC,http://statistics.data.gov.uk/id/local-authority-district/22UN,Benefits & Revenues,1580 - Benefits & Revenues,4635 - Cash Collection Contract,31/05/2011,2084708-1,1024.65,2101233 - G4S Cash Services (UK) Limited,G4s June 11
Tendring DC,http://statistics.data.gov.uk/id/local-authority-district/22UN,Benefits & Revenues,8520 - Frinton & Walton Swimming Pool,4635 - Cash Collection Contract,31/05/2011,2084708-10,139.13,2101233 - G4S Cash Services (UK) Limited,G4s June 11
Tendring DC,http://statistics.data.gov.uk/id/local-authority-district/22UN,Benefits & Revenues,5860 - Manningtree Sports Centre,4635 - Cash Collection Contract,31/05/2011,2084708-11,69.57,2101233 - G4S Cash Services (UK) Limited,G4s June 11
Tendring DC,http://statistics.data.gov.uk/id/local-authority-district/22UN,Benefits & Revenues,5820 - Harwich Sports Centre,4635 - Cash Collection Contract,31/05/2011,2084708-12,69.57,2101233 - G4S Cash Services (UK) Limited,G4s June 11
Tendring DC,http://statistics.data.gov.uk/id/local-authority-district/22UN,Benefits & Revenues,5260 - Rent Collection And Accounting,4635 - Cash Collection Contract,31/05/2011,2084708-2,260.26,2101233 - G4S Cash Services (UK) Limited,G4s June 11
Tendring DC,http://statistics.data.gov.uk/id/local-authority-district/22UN,Benefits & Revenues,5260 - Rent Collection And Accounting,4635 - Cash Collection Contract,31/05/2011,2084708-3,42.26,2101233 - G4S Cash Services (UK) Limited,G4s June 11
Tendring DC,http://statistics.data.gov.uk/id/local-authority-district/22UN,Benefits & Revenues,1560 - Cashiers,4635 - Cash Collection Contract,31/05/2011,2084708-4,63.02,2101233 - G4S Cash Services (UK) Limited,G4s June 11
Tendring DC,http://statistics.data.gov.uk/id/local-authority-district/22UN,Benefits & Revenues,8025 - Car Parks - Off St,4635 - Cash Collection Contract,31/05/2011,2084708-5,147.99,2101233 - G4S Cash Services (UK) Limited,G4s June 11
Tendring DC,http://statistics.data.gov.uk/id/local-authority-district/22UN,Benefits & Revenues,8530 - Brightlingsea Swimming Pool,4635 - Cash Collection Contract,31/05/2011,2084708-6,69.57,2101233 - G4S Cash Services (UK) Limited,G4s June 11
Tendring DC,http://statistics.data.gov.uk/id/local-authority-district/22UN,Benefits & Revenues,8540 - Leisure Centre Clacton,4635 - Cash Collection Contract,31/05/2011,2084708-7,208.7,2101233 - G4S Cash Services (UK) Limited,G4s June 11
Tendring DC,http://statistics.data.gov.uk/id/local-authority-district/22UN,Benefits & Revenues,8510 - Dovercourt Swimming Pool & A.W.F.,4635 - Cash Collection Contract,31/05/2011,2084708-8,139.13,2101233 - G4S Cash Services (UK) Limited,G4s June 11
Tendring DC,http://statistics.data.gov.uk/id/local-authority-district/22UN,Benefits & Revenues,5800 - Brightlingsea Sports Centre,4635 - Cash Collection Contract,31/05/2011,2084708-9,69.57,2101233 - G4S Cash Services (UK) Limited,G4s June 11
Tendring DC,http://statistics.data.gov.uk/id/local-authority-district/22UN,Benefits & Revenues,8530 - Brightlingsea Swimming Pool,4635 - Cash Collection Contract,31/05/2011,2084710-1,-80.05,2101233 - G4S Cash Services (UK) Limited,G4S Refund Brightlinsea Pool
Tendring DC,http://statistics.data.gov.uk/id/local-authority-district/22UN,Benefits & Revenues,1580 - Benefits & Revenues,4462 - Legal Fees incl. Bailiffs re debt recovery,25/05/2011,1043801-1,5,2107058 - HMCS,PROBATE SEARCH
Tendring DC,http://statistics.data.gov.uk/id/local-authority-district/22UN,Benefits & Revenues,1580 - Benefits & Revenues,5500 - Miscellaneous Expenses,03/05/2011,2084433-1,50,2108660 - Holland on Sea Community Association,Deposit for hire of Hall
Tendring DC,http://statistics.data.gov.uk/id/local-authority-district/22UN,Benefits & Revenues,1580 - Benefits & Revenues,5500 - Miscellaneous Expenses,03/05/2011,2084434-1,42,2108660 - Holland on Sea Community Association,Booking Fee for Hire of Hall For Bens Meeting
Tendring DC,http://statistics.data.gov.uk/id/local-authority-district/22UN,Benefits & Revenues,1580 - Benefits & Revenues,4300 - Printing & Stationery,17/05/2011,1043109-1,163.59,2110569 - Hound Envelopes Ltd,ENVELOPES
Tendring DC,http://statistics.data.gov.uk/id/local-authority-district/22UN,Benefits & Revenues,1580 - Benefits & Revenues,4448 - Confidential Waste,03/05/2011,2084450-1,65.8,2110936 - IPPlus (UK) Ltd,Confidential Waste April
Tendring DC,http://statistics.data.gov.uk/id/local-authority-district/22UN,Benefits & Revenues,1580 - Benefits & Revenues,4448 - Confidential Waste,03/05/2011,2084451-1,86.95,2110936 - IPPlus (UK) Ltd,Confidential Waste
Tendring DC,http://statistics.data.gov.uk/id/local-authority-district/22UN,Benefits & Revenues,1580 - Benefits & Revenues,4355 - Books & Periodicals,17/05/2011,1043110-1,3,2110518 - John Kruse,BAILIFF STUDIES
Tendring DC,http://statistics.data.gov.uk/id/local-authority-district/22UN,Benefits & Revenues,1580 - Benefits & Revenues,4355 - Books & Periodicals,10/05/2011,2084533-1,245,2100874 - Lexis Nexis UK,Ryde on Rating Edition 55
Tendring DC,http://statistics.data.gov.uk/id/local-authority-district/22UN,Benefits & Revenues,1580 - Benefits & Revenues,4300 - Printing & Stationery,25/05/2011,1043693-1,1.85,2110099 - Lyreco UK Ltd,FOOT REST
Tendring DC,http://statistics.data.gov.uk/id/local-authority-district/22UN,Benefits & Revenues,1580 - Benefits & Revenues,4300 - Printing & Stationery,03/05/2011,2084394-1,4,2110099 - Lyreco UK Ltd,Black Pens for Reception
Tendring DC,http://statistics.data.gov.uk/id/local-authority-district/22UN,Benefits & Revenues,1580 - Benefits & Revenues,4300 - Printing & Stationery,03/05/2011,2084395-1,7.06,2110099 - Lyreco UK Ltd,Pens/Laminating Pouches
Tendring DC,http://statistics.data.gov.uk/id/local-authority-district/22UN,Benefits & Revenues,1560 - Cashiers,4300 - Printing & Stationery,03/05/2011,2084396-1,9.72,2110099 - Lyreco UK Ltd,Post It Notes & Blu Tack
Tendring DC,http://statistics.data.gov.uk/id/local-authority-district/22UN,Benefits & Revenues,1580 - Benefits & Revenues,4300 - Printing & Stationery,31/05/2011,2084697-1,37.85,2110099 - Lyreco UK Ltd,CLIP FOLDERS STICKY NOTES
Tendring DC,http://statistics.data.gov.uk/id/local-authority-district/22UN,Benefits & Revenues,1580 - Benefits & Revenues,4753 - Computer - Application Software,10/05/2011,2084473-1,779.91,2101204 - Northgate Information Solutions UK Ltd,S&M Flat File Billing Licence for CT & NNDR
Tendring DC,http://statistics.data.gov.uk/id/local-authority-district/22UN,Benefits & Revenues,1580 - Benefits & Revenues,5500 - Miscellaneous Expenses,31/05/2011,1043953-1,250,2108298 - Oakpark Properties,GOODWILL PAYMENT
Tendring DC,http://statistics.data.gov.uk/id/local-authority-district/22UN,Benefits & Revenues,1580 - Benefits & Revenues,4350 - Photocopier Hire,03/05/2011,1043004-1,56.87,2101090 - Ricoh UK Ltd,L6806460
Tendring DC,http://statistics.data.gov.uk/id/local-authority-district/22UN,Benefits & Revenues,1580 - Benefits & Revenues,4350 - Photocopier Hire,03/05/2011,1043005-1,44.66,2101090 - Ricoh UK Ltd,MO189605311 CASH OFFICE
Tendring DC,http://statistics.data.gov.uk/id/local-authority-district/22UN,Benefits & Revenues,1580 - Benefits & Revenues,4350 - Photocopier Hire,03/05/2011,1043006-1,193.85,2101090 - Ricoh UK Ltd,M5583400749 RECEPTION
Tendring DC,http://statistics.data.gov.uk/id/local-authority-district/22UN,Benefits & Revenues,1580 - Benefits & Revenues,4350 - Photocopier Hire,03/05/2011,1043007-1,219.68,2101090 - Ricoh UK Ltd,M5583500665 RECEPTION
Tendring DC,http://statistics.data.gov.uk/id/local-authority-district/22UN,Benefits & Revenues,1580 - Benefits & Revenues,4350 - Photocopier Hire,03/05/2011,1043008-1,69.72,2101090 - Ricoh UK Ltd,L6886762105 1ST FLOOR & CABINET
Tendring DC,http://statistics.data.gov.uk/id/local-authority-district/22UN,Benefits & Revenues,1580 - Benefits & Revenues,4350 - Photocopier Hire,31/05/2011,1044108-1,23.13,2101090 - Ricoh UK Ltd,CLICK CHARGES K2049000285
Tendring DC,http://statistics.data.gov.uk/id/local-authority-district/22UN,Benefits & Revenues,1580 - Benefits & Revenues,4700 - Postage,31/05/2011,1043945-1,-295.68,2101139 - Royal Mail,NOT RECORDED REFUND
Tendring DC,http://statistics.data.gov.uk/id/local-authority-district/22UN,Benefits & Revenues,1580 - Benefits & Revenues,4700 - Postage,31/05/2011,1044110-1,2365.4,2101139 - Royal Mail,OUTGOING POST MAY 2011
Tendring DC,http://statistics.data.gov.uk/id/local-authority-district/22UN,Benefits & Revenues,1580 - Benefits & Revenues,4700 - Postage,10/05/2011,2084534-1,3011.05,2101139 - Royal Mail,Outgoing Post Apr 11
Tendring DC,http://statistics.data.gov.uk/id/local-authority-district/22UN,Benefits & Revenues,1580 - Benefits & Revenues,4700 - Postage,10/05/2011,2084535-1,87.46,2101139 - Royal Mail,Response Plus
Tendring DC,http://statistics.data.gov.uk/id/local-authority-district/22UN,Benefits & Revenues,1580 - Benefits & Revenues,4700 - Postage,31/05/2011,2084692-1,549.16,2101139 - Royal Mail,ROYAL MAIL MAY 2011
Tendring DC,http://statistics.data.gov.uk/id/local-authority-district/22UN,Benefits & Revenues,1580 - Benefits & Revenues,4700 - Postage,31/05/2011,2084692-2,701.32,2101139 - Royal Mail,ROYAL MAIL MAY 2011
Tendring DC,http://statistics.data.gov.uk/id/local-authority-district/22UN,Benefits & Revenues,1580 - Benefits & Revenues,4300 - Printing & Stationery,25/05/2011,1043553-1,14.32,2101473 - The Stationery Office Ltd,STATIONERY
Tendring DC,http://statistics.data.gov.uk/id/local-authority-district/22UN,Benefits & Revenues,1580 - Benefits & Revenues,4716 - Mobile Telephone Costs,17/05/2011,1043235-1,172.27,2101522 - Vodafone Corporate,VODAFONE MOBILE BILLS
Tendring DC,http://statistics.data.gov.uk/id/local-authority-district/22UN,Benefits & Revenues,1580 - Benefits & Revenues,4716 - Mobile Telephone Costs,17/05/2011,1043235-2,-113.18,2101522 - Vodafone Corporate,VODAFONE MOBILE BILLS
Tendring DC,http://statistics.data.gov.uk/id/local-authority-district/22UN,Benefits & Revenues,1580 - Benefits & Revenues,4300 - Printing & Stationery,25/05/2011,1043550-1,47.83,2107546 - XMA Limited,HP TNR CARTRIDGE
Tendring DC,http://statistics.data.gov.uk/id/local-authority-district/22UN,Benefits & Revenues,1580 - Benefits & Revenues,4300 - Printing & Stationery,25/05/2011,1043551-1,87.16,2107546 - XMA Limited,HP CARTRIDGE
Tendring DC,http://statistics.data.gov.uk/id/local-authority-district/22UN,Benefits & Revenues,1580 - Benefits & Revenues,4300 - Printing & Stationery,10/05/2011,2084474-1,79.04,2107546 - XMA Limited,HP Black Laserjet 4250 42A
Tendring DC,http://statistics.data.gov.uk/id/local-authority-district/22UN,Community Services,6740 - Careline,5500 - Miscellaneous Expenses,10/05/2011,1043060-1,5,2100768 - A2B Taxis,COMM SERVICES-APRIL
Tendring DC,http://statistics.data.gov.uk/id/local-authority-district/22UN,Community Services,6920 - Youth Initiatives,3300 - Public Transport - Officers,10/05/2011,1043061-1,176,2100768 - A2B Taxis,TAXIS FOR TYA-APRIL
Tendring DC,http://statistics.data.gov.uk/id/local-authority-district/22UN,Community Services,5360 - Sheltered Units,4000 - Furniture,31/05/2011,1043976-1,21.66,2100048 - Argos Business Solutions,BEDDING FOR SCHEMES
Tendring DC,http://statistics.data.gov.uk/id/local-authority-district/22UN,Community Services,5360 - Sheltered Units,4000 - Furniture,31/05/2011,1043976-2,31.24,2100048 - Argos Business Solutions,BEDDING FOR SCHEMES
Tendring DC,http://statistics.data.gov.uk/id/local-authority-district/22UN,Community Services,5360 - Sheltered Units,4000 - Furniture,31/05/2011,1043976-3,3.23,2100048 - Argos Business Solutions,BEDDING FOR SCHEMES
Tendring DC,http://statistics.data.gov.uk/id/local-authority-district/22UN,Community Services,6740 - Careline,3060 - Running Costs - Diesel,10/05/2011,1043062-1,432.78,2101825 - ARVAL PHH,FUEL & CAR WASH-APRIL
Tendring DC,http://statistics.data.gov.uk/id/local-authority-district/22UN,Community Services,1000 - Community Services,4300 - Printing & Stationery,10/05/2011,1043063-1,79.88,2100111 - Banner Business Supplies Ltd,PAPER - APRIL
Tendring DC,http://statistics.data.gov.uk/id/local-authority-district/22UN,Community Services,6740 - Careline,2304 - Energy Costs - Electricity,17/05/2011,1043156-1,52.47,2100197 - British Gas Trading Ltd,B GAS ELECTRICITY
Tendring DC,http://statistics.data.gov.uk/id/local-authority-district/22UN,Community Services,7000 - CCTV,4718 - Fixed Communication Lines,17/05/2011,1043100-1,94.7,2100168 - British Telecommunications plc,BT 852403
Tendring DC,http://statistics.data.gov.uk/id/local-authority-district/22UN,Community Services,7000 - CCTV,4718 - Fixed Communication Lines,17/05/2011,1043100-2,13.5,2100168 - British Telecommunications plc,BT 852403
Tendring DC,http://statistics.data.gov.uk/id/local-authority-district/22UN,Community Services,7000 - CCTV,4718 - Fixed Communication Lines,25/05/2011,1043716-1,104.72,2100168 - British Telecommunications plc,BT 675927
Tendring DC,http://statistics.data.gov.uk/id/local-authority-district/22UN,Community Services,7000 - CCTV,4718 - Fixed Communication Lines,25/05/2011,1043716-2,13.5,2100168 - British Telecommunications plc,BT 675927
Tendring DC,http://statistics.data.gov.uk/id/local-authority-district/22UN,Community Services,7000 - CCTV,4718 - Fixed Communication Lines,31/05/2011,2084673-1,188.62,2100168 - British Telecommunications plc,BR BILL 224321
Tendring DC,http://statistics.data.gov.uk/id/local-authority-district/22UN,Community Services,7000 - CCTV,4718 - Fixed Communication Lines,31/05/2011,2084673-2,13.5,2100168 - British Telecommunications plc,BR BILL 224321
Tendring DC,http://statistics.data.gov.uk/id/local-authority-district/22UN,Community Services,6740 - Careline,4710 - Telephones - Charges,31/05/2011,2084674-1,56.86,2100168 - British Telecommunications plc,BT BILL 670718
Tendring DC,http://statistics.data.gov.uk/id/local-authority-district/22UN,Community Services,6740 - Careline,4710 - Telephones - Charges,31/05/2011,2084674-2,13.5,2100168 - British Telecommunications plc,BT BILL 670718
Tendring DC,http://statistics.data.gov.uk/id/local-authority-district/22UN,Community Services,5360 - Sheltered Units,2700 - Cleaning Materials,17/05/2011,1043089-1,107.43,2101624 - Bunzl,BUNZL-MEAD HOUSE
Tendring DC,http://statistics.data.gov.uk/id/local-authority-district/22UN,Community Services,5360 - Sheltered Units,2700 - Cleaning Materials,17/05/2011,1043090-1,253.24,2101624 - Bunzl,REDACTED PERSONAL DATA
Tendring DC,http://statistics.data.gov.uk/id/local-authority-district/22UN,Community Services,5360 - Sheltered Units,2700 - Cleaning Materials,25/05/2011,1043598-1,134.71,2101624 - Bunzl,CLEANING FOR GREENFIELDS
Tendring DC,http://statistics.data.gov.uk/id/local-authority-district/22UN,Community Services,5360 - Sheltered Units,2700 - Cleaning Materials,31/05/2011,2084672-1,100.94,2101624 - Bunzl,CLEANING SUPPLIES
Tendring DC,http://statistics.data.gov.uk/id/local-authority-district/22UN,Community Services,7020 - SSCF - Crime Reduction,4900 - Grants,17/05/2011,1043101-1,110,2110212 - Colchester Borough Council,HIRE OF LIBRARY
Tendring DC,http://statistics.data.gov.uk/id/local-authority-district/22UN,Community Services,7020 - SSCF - Crime Reduction,4900 - Grants,17/05/2011,1043142-1,300,2100404 - Easy Tigernet,NEW LOGO UPDATE WEBSITE
Tendring DC,http://statistics.data.gov.uk/id/local-authority-district/22UN,Community Services,7100 - Community Health/Safety,5500 - Miscellaneous Expenses,25/05/2011,1043599-1,1130,2107568 - Essex County Council - ESCB,CONTRIBUTION TO ESAB BUDGET
Tendring DC,http://statistics.data.gov.uk/id/local-authority-district/22UN,Community Services,7020 - SSCF - Crime Reduction,4900 - Grants,25/05/2011,1043876-1,70,2100546 - GCS Alarms,REMOVE RESPONSE UNIT
Tendring DC,http://statistics.data.gov.uk/id/local-authority-district/22UN,Community Services,7020 - SSCF - Crime Reduction,4900 - Grants,25/05/2011,1043877-1,150,2100546 - GCS Alarms,REMOVE & RE FIT CAMERA
Tendring DC,http://statistics.data.gov.uk/id/local-authority-district/22UN,Community Services,7020 - SSCF - Crime Reduction,4900 - Grants,25/05/2011,1043878-1,100,2100546 - GCS Alarms,REMOVE CAMERA & RE INSTALL
Tendring DC,http://statistics.data.gov.uk/id/local-authority-district/22UN,Community Services,7000 - CCTV,4400 - Maintenance Under Service Agreements,25/05/2011,1043879-1,70,2100546 - GCS Alarms,INSTALL LOAN HDD
Tendring DC,http://statistics.data.gov.uk/id/local-authority-district/22UN,Community Services,7000 - CCTV,2103 - Repairs and Maintenance,10/05/2011,2084571-1,960,2100546 - GCS Alarms,Paint Poles at Seafront
Tendring DC,http://statistics.data.gov.uk/id/local-authority-district/22UN,Community Services,7020 - SSCF - Crime Reduction,4900 - Grants,31/05/2011,2084698-1,98,2100546 - GCS Alarms,BURN OFF CCTV
Tendring DC,http://statistics.data.gov.uk/id/local-authority-district/22UN,Community Services,7020 - SSCF - Crime Reduction,4900 - Grants,31/05/2011,2084699-1,126,2100546 - GCS Alarms,BURN OFF CCTV FOOTAGE
Tendring DC,http://statistics.data.gov.uk/id/local-authority-district/22UN,Community Services,7020 - SSCF - Crime Reduction,4900 - Grants,17/05/2011,1043102-1,8,2100603 - Harwich & District Community Ass,MEETING ROOM HIRE
Tendring DC,http://statistics.data.gov.uk/id/local-authority-district/22UN,Community Services,1000 - Community Services,4448 - Confidential Waste,10/05/2011,2084569-1,7.05,2110936 - IPPlus (UK) Ltd,Confidential Waste Collection March
Tendring DC,http://statistics.data.gov.uk/id/local-authority-district/22UN,Community Services,6740 - Careline,1700 - Training - Courses,17/05/2011,1043467-1,1283.13,2110090 - J & J Enterprises,TSA WORK-FEBRUARY
Tendring DC,http://statistics.data.gov.uk/id/local-authority-district/22UN,Community Services,6740 - Careline,1700 - Training - Courses,17/05/2011,1043467-2,278.4,2110090 - J & J Enterprises,TSA WORK-FEBRUARY
Tendring DC,http://statistics.data.gov.uk/id/local-authority-district/22UN,Community Services,5360 - Sheltered Units,4601 - Hired services - Cleaning,17/05/2011,1043091-1,588.88,2100851 - KO-SHEEN Contract Cleaning Ltd,CELANING BELMANS-APRIL
Tendring DC,http://statistics.data.gov.uk/id/local-authority-district/22UN,Community Services,5360 - Sheltered Units,4601 - Hired services - Cleaning,17/05/2011,1043092-1,280.5,2100851 - KO-SHEEN Contract Cleaning Ltd,CLEANING SPENDELLS-APRIL
Tendring DC,http://statistics.data.gov.uk/id/local-authority-district/22UN,Community Services,1000 - Community Services,4300 - Printing & Stationery,17/05/2011,1043097-1,30.5,2110099 - Lyreco UK Ltd,TAPE FOR FILES IN CR
Tendring DC,http://statistics.data.gov.uk/id/local-authority-district/22UN,Community Services,1000 - Community Services,4300 - Printing & Stationery,03/05/2011,2084397-1,67.24,2110099 - Lyreco UK Ltd,Stationery for Training & Staff
Tendring DC,http://statistics.data.gov.uk/id/local-authority-district/22UN,Community Services,6740 - Careline,4000 - Furniture,31/05/2011,2084671-1,45.59,2110099 - Lyreco UK Ltd,
Tendring DC,http://statistics.data.gov.uk/id/local-authority-district/22UN,Community Services,5360 - Sheltered Units,4000 - Furniture,31/05/2011,2084671-2,5.98,2110099 - Lyreco UK Ltd,
Tendring DC,http://statistics.data.gov.uk/id/local-authority-district/22UN,Community Services,5360 - Sheltered Units,2208 - Wardens' Allowance,17/05/2011,1043335-1,72.48,REDACTED PERSONAL DATA,WATER RATES REFUND
Tendring DC,http://statistics.data.gov.uk/id/local-authority-district/22UN,Community Services,6740 - Careline,4350 - Photocopier Hire,10/05/2011,2084570-1,296.38,2101090 - Ricoh UK Ltd,Photocopier Hire - APril
Tendring DC,http://statistics.data.gov.uk/id/local-authority-district/22UN,Community Services,6740 - Careline,4700 - Postage,17/05/2011,1043336-1,21.84,2108306 - Royal Mail,ROYAL MAIL MARCH/APRIL
Tendring DC,http://statistics.data.gov.uk/id/local-authority-district/22UN,Community Services,6740 - Careline,5160 - Advertising,17/05/2011,1043095-1,500,2101266 - Smile Publishing Ltd,ADVERT IN HOSPITAL HANDBOOK
Tendring DC,http://statistics.data.gov.uk/id/local-authority-district/22UN,Community Services,6740 - Careline,4710 - Telephones - Charges,17/05/2011,1043096-1,782.35,2108907 - Southern Communications Ltd,SOUTHERN COMMS-APRIL
Tendring DC,http://statistics.data.gov.uk/id/local-authority-district/22UN,Community Services,5360 - Sheltered Units,4710 - Telephones - Charges,17/05/2011,1043096-10,43.34,2108907 - Southern Communications Ltd,SOUTHERN COMMS-APRIL
Tendring DC,http://statistics.data.gov.uk/id/local-authority-district/22UN,Community Services,5360 - Sheltered Units,4710 - Telephones - Charges,17/05/2011,1043096-11,27.11,2108907 - Southern Communications Ltd,SOUTHERN COMMS-APRIL
Tendring DC,http://statistics.data.gov.uk/id/local-authority-district/22UN,Community Services,5360 - Sheltered Units,4710 - Telephones - Charges,17/05/2011,1043096-2,43.73,2108907 - Southern Communications Ltd,SOUTHERN COMMS-APRIL
Tendring DC,http://statistics.data.gov.uk/id/local-authority-district/22UN,Community Services,5360 - Sheltered Units,4710 - Telephones - Charges,17/05/2011,1043096-3,49.66,2108907 - Southern Communications Ltd,SOUTHERN COMMS-APRIL
Tendring DC,http://statistics.data.gov.uk/id/local-authority-district/22UN,Community Services,5360 - Sheltered Units,4710 - Telephones - Charges,17/05/2011,1043096-4,43.66,2108907 - Southern Communications Ltd,SOUTHERN COMMS-APRIL
Tendring DC,http://statistics.data.gov.uk/id/local-authority-district/22UN,Community Services,5360 - Sheltered Units,4710 - Telephones - Charges,17/05/2011,1043096-5,37.56,2108907 - Southern Communications Ltd,SOUTHERN COMMS-APRIL
Tendring DC,http://statistics.data.gov.uk/id/local-authority-district/22UN,Community Services,5360 - Sheltered Units,4710 - Telephones - Charges,17/05/2011,1043096-6,52.06,2108907 - Southern Communications Ltd,SOUTHERN COMMS-APRIL
Tendring DC,http://statistics.data.gov.uk/id/local-authority-district/22UN,Community Services,5360 - Sheltered Units,4710 - Telephones - Charges,17/05/2011,1043096-7,25.81,2108907 - Southern Communications Ltd,SOUTHERN COMMS-APRIL
Tendring DC,http://statistics.data.gov.uk/id/local-authority-district/22UN,Community Services,5360 - Sheltered Units,4710 - Telephones - Charges,17/05/2011,1043096-8,57.98,2108907 - Southern Communications Ltd,SOUTHERN COMMS-APRIL
Tendring DC,http://statistics.data.gov.uk/id/local-authority-district/22UN,Community Services,5360 - Sheltered Units,4710 - Telephones - Charges,17/05/2011,1043096-9,56.62,2108907 - Southern Communications Ltd,SOUTHERN COMMS-APRIL
Tendring DC,http://statistics.data.gov.uk/id/local-authority-district/22UN,Community Services,9900 - General Fund Balance Sheet,B382 - Rechargeable Works - Other,10/05/2011,2084591-1,75,2101314 - T V Licensing,TV Licence - Groom House
Tendring DC,http://statistics.data.gov.uk/id/local-authority-district/22UN,Community Services,6740 - Careline,5500 - Miscellaneous Expenses,17/05/2011,1043098-1,1016,2102592 - Telecare Services Association,TSA CONFERENCE
Tendring DC,http://statistics.data.gov.uk/id/local-authority-district/22UN,Community Services,6740 - Careline,4200 - Clothing & Uniforms,25/05/2011,1043804-1,16.25,2106638 - Tendring District Council,PETTY CASH
Tendring DC,http://statistics.data.gov.uk/id/local-authority-district/22UN,Community Services,6740 - Careline,5500 - Miscellaneous Expenses,25/05/2011,1043804-10,6.65,2106638 - Tendring District Council,PETTY CASH
Tendring DC,http://statistics.data.gov.uk/id/local-authority-district/22UN,Community Services,5360 - Sheltered Units,2700 - Cleaning Materials,25/05/2011,1043804-11,8.12,2106638 - Tendring District Council,PETTY CASH
Tendring DC,http://statistics.data.gov.uk/id/local-authority-district/22UN,Community Services,6920 - Youth Initiatives,4800 - Hospitality,25/05/2011,1043804-12,5.96,2106638 - Tendring District Council,PETTY CASH
Tendring DC,http://statistics.data.gov.uk/id/local-authority-district/22UN,Community Services,6740 - Careline,5500 - Miscellaneous Expenses,25/05/2011,1043804-2,16.05,2106638 - Tendring District Council,PETTY CASH
Tendring DC,http://statistics.data.gov.uk/id/local-authority-district/22UN,Community Services,6740 - Careline,5500 - Miscellaneous Expenses,25/05/2011,1043804-3,5,2106638 - Tendring District Council,PETTY CASH
Tendring DC,http://statistics.data.gov.uk/id/local-authority-district/22UN,Community Services,6740 - Careline,5500 - Miscellaneous Expenses,25/05/2011,1043804-4,11.4,2106638 - Tendring District Council,PETTY CASH
Tendring DC,http://statistics.data.gov.uk/id/local-authority-district/22UN,Community Services,6740 - Careline,5500 - Miscellaneous Expenses,25/05/2011,1043804-5,2.77,2106638 - Tendring District Council,PETTY CASH
Tendring DC,http://statistics.data.gov.uk/id/local-authority-district/22UN,Community Services,6740 - Careline,5500 - Miscellaneous Expenses,25/05/2011,1043804-6,27,2106638 - Tendring District Council,PETTY CASH
Tendring DC,http://statistics.data.gov.uk/id/local-authority-district/22UN,Community Services,1700 - Insurance Recharge Account,4300 - Printing & Stationery,25/05/2011,1043804-7,4.12,2106638 - Tendring District Council,PETTY CASH
Tendring DC,http://statistics.data.gov.uk/id/local-authority-district/22UN,Community Services,1700 - Insurance Recharge Account,4300 - Printing & Stationery,25/05/2011,1043804-8,2.97,2106638 - Tendring District Council,PETTY CASH
Tendring DC,http://statistics.data.gov.uk/id/local-authority-district/22UN,Community Services,6920 - Youth Initiatives,4800 - Hospitality,25/05/2011,1043804-9,17.86,2106638 - Tendring District Council,PETTY CASH
Tendring DC,http://statistics.data.gov.uk/id/local-authority-district/22UN,Community Services,6810 - Welfare Rights Service,4900 - Grants,31/05/2011,1044024-1,5858.33,2101401 - The Guinness Trust,THIA ADVICE
Tendring DC,http://statistics.data.gov.uk/id/local-authority-district/22UN,Community Services,7020 - SSCF - Crime Reduction,4900 - Grants,31/05/2011,1044111-1,14.4,2102141 - The Ogilvie Hall,Small Hall
Tendring DC,http://statistics.data.gov.uk/id/local-authority-district/22UN,Community Services,5360 - Sheltered Units,4000 - Furniture,17/05/2011,1043099-1,19.5,2101474 - Thompson Cooper Ltd,REAPIR VACCUM
Tendring DC,http://statistics.data.gov.uk/id/local-authority-district/22UN,Community Services,6740 - Careline,4040 - Equipment & Tools,10/05/2011,1043043-1,49807.11,2101419 - Tunstall Healthcare (UK) Ltd,TUNSTALL CONTRACT-2011-2012
Tendring DC,http://statistics.data.gov.uk/id/local-authority-district/22UN,Community Services,5360 - Sheltered Units,4000 - Furniture,10/05/2011,1043044-1,232.74,2101419 - Tunstall Healthcare (UK) Ltd,REPLACE SMOKE DETECTOR-BELMANS
Tendring DC,http://statistics.data.gov.uk/id/local-authority-district/22UN,Community Services,5360 - Sheltered Units,4040 - Equipment & Tools,17/05/2011,1043266-1,35,2101419 - Tunstall Healthcare (UK) Ltd,REPLACE SMOKE DETECTOR
Tendring DC,http://statistics.data.gov.uk/id/local-authority-district/22UN,Community Services,5360 - Sheltered Units,4040 - Equipment & Tools,17/05/2011,1043267-1,109.65,2101419 - Tunstall Healthcare (UK) Ltd,REPLACED BATTERIES
Tendring DC,http://statistics.data.gov.uk/id/local-authority-district/22UN,Community Services,6740 - Careline,4040 - Equipment & Tools,17/05/2011,1043268-1,3471.3,2101419 - Tunstall Healthcare (UK) Ltd,REPAIR PENDENTS
Tendring DC,http://statistics.data.gov.uk/id/local-authority-district/22UN,Community Services,6740 - Careline,4040 - Equipment & Tools,31/05/2011,1044025-1,186.8,2101419 - Tunstall Healthcare (UK) Ltd,DOOR ENTRY FAULTY
Tendring DC,http://statistics.data.gov.uk/id/local-authority-district/22UN,Community Services,1000 - Community Services,4716 - Mobile Telephone Costs,17/05/2011,1043094-1,106.3,2101522 - Vodafone Corporate,
Tendring DC,http://statistics.data.gov.uk/id/local-authority-district/22UN,Community Services,6970 - C &D - Tackling Anti Social Behaviour,4716 - Mobile Telephone Costs,10/05/2011,2084567-1,14.71,2101522 - Vodafone Corporate,Vodafone Bill - 864
Tendring DC,http://statistics.data.gov.uk/id/local-authority-district/22UN,Community Services,6740 - Careline,4716 - Mobile Telephone Costs,10/05/2011,2084568-1,434.56,2101522 - Vodafone Corporate,Vodafone Bill 2011
Tendring DC,http://statistics.data.gov.uk/id/local-authority-district/22UN,Community Services,6740 - Careline,4716 - Mobile Telephone Costs,10/05/2011,2084568-2,2.14,2101522 - Vodafone Corporate,Vodafone Bill 2011
Tendring DC,http://statistics.data.gov.uk/id/local-authority-district/22UN,Community Services,5360 - Sheltered Units,4000 - Furniture,25/05/2011,1043548-1,14.94,2107546 - XMA Limited,XMA
Tendring DC,http://statistics.data.gov.uk/id/local-authority-district/22UN,Community Services,5300 - Pumping Stations,4000 - Furniture,25/05/2011,1043549-1,154.59,2107546 - XMA Limited,XMA SCHEME INK
Tendring DC,http://statistics.data.gov.uk/id/local-authority-district/22UN,Corporate Performance,1580 - Benefits & Revenues,4718 - Fixed Communication Lines,17/05/2011,1043302-1,6.31,2106860 - Avanquest UK Ltd,TEXTING
Tendring DC,http://statistics.data.gov.uk/id/local-authority-district/22UN,Corporate Performance,C272 - Harwich Masterplan,C200 - Main Contractor,25/05/2011,1043905-1,1650,2111207 - Bond Pearce LLP,REPAY CROWN LAWYER COSTS FOR LV18 UNDERLEASE
Tendring DC,http://statistics.data.gov.uk/id/local-authority-district/22UN,Corporate Performance,C272 - Harwich Masterplan,C200 - Main Contractor,25/05/2011,1043906-1,300,2111207 - Bond Pearce LLP,REPAY CROWN SURVEYOR COSTS FOR LV18 UNDERLEASE
Tendring DC,http://statistics.data.gov.uk/id/local-authority-district/22UN,Corporate Performance,1760 - IT Direct Service Costs,4715 - Data Communication Charge,03/05/2011,2084398-1,225,2100168 - British Telecommunications plc,3548 9991 Qtr
Tendring DC,http://statistics.data.gov.uk/id/local-authority-district/22UN,Corporate Performance,1760 - IT Direct Service Costs,4715 - Data Communication Charge,25/05/2011,1043597-1,2960.8,2111235 - CityFibre Networks Ltd,DARK FIBRE LC
Tendring DC,http://statistics.data.gov.uk/id/local-authority-district/22UN,Corporate Performance,1930 - Asset Management,4460 - Legal & Professional Expenses,17/05/2011,1043482-1,10,2110408 - Essex County Council,ESSEX COUNTY COUNCIL
Tendring DC,http://statistics.data.gov.uk/id/local-authority-district/22UN,Corporate Performance,1100 - Corporate Performance,4300 - Printing & Stationery,03/05/2011,1042966-1,23.99,2110099 - Lyreco UK Ltd,LYRECO
Tendring DC,http://statistics.data.gov.uk/id/local-authority-district/22UN,Corporate Performance,1760 - IT Direct Service Costs,4751 - Hardware & Service Maintenance,17/05/2011,1043303-1,220.3,2100902 - Micro Direct,HEADSETS
Tendring DC,http://statistics.data.gov.uk/id/local-authority-district/22UN,Corporate Performance,1760 - IT Direct Service Costs,4751 - Hardware & Service Maintenance,17/05/2011,1043304-1,84.45,2100902 - Micro Direct,HEADSET & WEBCAMS
Tendring DC,http://statistics.data.gov.uk/id/local-authority-district/22UN,Corporate Performance,1760 - IT Direct Service Costs,4751 - Hardware & Service Maintenance,17/05/2011,1043305-1,136.8,2100902 - Micro Direct,POE ADAPTERS
Tendring DC,http://statistics.data.gov.uk/id/local-authority-district/22UN,Corporate Performance,1760 - IT Direct Service Costs,4751 - Hardware & Service Maintenance,25/05/2011,1043578-1,185,2100902 - Micro Direct,ROUTERS
Tendring DC,http://statistics.data.gov.uk/id/local-authority-district/22UN,Corporate Performance,1760 - IT Direct Service Costs,4751 - Hardware & Service Maintenance,25/05/2011,1043579-1,59,2100902 - Micro Direct,ROUTER
Tendring DC,http://statistics.data.gov.uk/id/local-authority-district/22UN,Corporate Performance,1840 - Central Telephone Service,4710 - Telephones - Charges,31/05/2011,2084638-1,780.38,2100902 - Micro Direct,NAS & DRIVES
Tendring DC,http://statistics.data.gov.uk/id/local-authority-district/22UN,Corporate Performance,1760 - IT Direct Service Costs,4751 - Hardware & Service Maintenance,31/05/2011,2084639-1,14.98,2100902 - Micro Direct,HEADSET
Tendring DC,http://statistics.data.gov.uk/id/local-authority-district/22UN,Corporate Performance,1760 - IT Direct Service Costs,4751 - Hardware & Service Maintenance,31/05/2011,2084640-1,168.44,2100902 - Micro Direct,MONITOR
Tendring DC,http://statistics.data.gov.uk/id/local-authority-district/22UN,Corporate Performance,1760 - IT Direct Service Costs,4751 - Hardware & Service Maintenance,31/05/2011,2084641-1,31.99,2100902 - Micro Direct,KEYBOARD
Tendring DC,http://statistics.data.gov.uk/id/local-authority-district/22UN,Corporate Performance,1930 - Asset Management,4460 - Legal & Professional Expenses,31/05/2011,2084669-1,1480,REDACTED PERSONAL DATA,EAST ANGLIAN CHAMBERS
Tendring DC,http://statistics.data.gov.uk/id/local-authority-district/22UN,Corporate Performance,C440 - Implementation of Virtualisation technology,C275 - Hardware,25/05/2011,1043576-1,8930,2101038 - Phoenix Software Limited,VMWARE
Tendring DC,http://statistics.data.gov.uk/id/local-authority-district/22UN,Corporate Performance,1760 - IT Direct Service Costs,4753 - Computer - Application Software,03/05/2011,2084424-1,1237,2109993 - Sec-1 Ltd,Watchguard
Tendring DC,http://statistics.data.gov.uk/id/local-authority-district/22UN,Corporate Performance,1760 - IT Direct Service Costs,4753 - Computer - Application Software,25/05/2011,1043574-1,695,2103677 - SecureData Europe Ltd,JUNIPER
Tendring DC,http://statistics.data.gov.uk/id/local-authority-district/22UN,Corporate Performance,1760 - IT Direct Service Costs,6325 - Additional ICT Services,25/05/2011,1043575-1,2997,2103677 - SecureData Europe Ltd,WIRELESS CONSULTANCY
Tendring DC,http://statistics.data.gov.uk/id/local-authority-district/22UN,Corporate Performance,1760 - IT Direct Service Costs,4753 - Computer - Application Software,31/05/2011,2084642-1,940,2103677 - SecureData Europe Ltd,SECURITY SOFTWARE
Tendring DC,http://statistics.data.gov.uk/id/local-authority-district/22UN,Corporate Performance,1760 - IT Direct Service Costs,4753 - Computer - Application Software,31/05/2011,2084643-1,3090.63,2103677 - SecureData Europe Ltd,SECURITY SOFTWARE
Tendring DC,http://statistics.data.gov.uk/id/local-authority-district/22UN,Corporate Performance,1760 - IT Direct Service Costs,4753 - Computer - Application Software,25/05/2011,1043577-1,4150,2110131 - Solarwinds Software Europe Ltd,NETWORK MONITOR U'GRADE
Tendring DC,http://statistics.data.gov.uk/id/local-authority-district/22UN,Corporate Performance,1100 - Corporate Performance,4710 - Telephones - Charges,17/05/2011,1043140-1,139.6,2101522 - Vodafone Corporate,VODAFONE - CP
Tendring DC,http://statistics.data.gov.uk/id/local-authority-district/22UN,Corporate Performance,1100 - Corporate Performance,4716 - Mobile Telephone Costs,17/05/2011,1043140-2,109.28,2101522 - Vodafone Corporate,VODAFONE - CP
Tendring DC,http://statistics.data.gov.uk/id/local-authority-district/22UN,Corporate Performance,1620 - Corporate Performance - IT Section,4710 - Telephones - Charges,17/05/2011,1043306-1,38.1,2101522 - Vodafone Corporate,MOB TOM/MART
Tendring DC,http://statistics.data.gov.uk/id/local-authority-district/22UN,Corporate Performance,1620 - Corporate Performance - IT Section,4710 - Telephones - Charges,17/05/2011,1043306-2,3,2101522 - Vodafone Corporate,MOB TOM/MART
Tendring DC,http://statistics.data.gov.uk/id/local-authority-district/22UN,Corporate Performance,1620 - Corporate Performance - IT Section,4710 - Telephones - Charges,25/05/2011,1043573-1,36.99,2101532 - Vodafone Ltd,MOB TOM/MART
Tendring DC,http://statistics.data.gov.uk/id/local-authority-district/22UN,Corporate Performance,1620 - Corporate Performance - IT Section,4710 - Telephones - Charges,25/05/2011,1043573-2,3,2101532 - Vodafone Ltd,MOB TOM/MART
Tendring DC,http://statistics.data.gov.uk/id/local-authority-district/22UN,Corporate Performance,1620 - Corporate Performance - IT Section,4710 - Telephones - Charges,25/05/2011,1043573-3,0.69,2101532 - Vodafone Ltd,MOB TOM/MART
Tendring DC,http://statistics.data.gov.uk/id/local-authority-district/22UN,Environmental Services,4820 - Public Conveniences,2100 - Building Repairs,03/05/2011,1043017-1,491.23,2100051 - A L Wicken Carpenter & Building Contractor,WEEK B
Tendring DC,http://statistics.data.gov.uk/id/local-authority-district/22UN,Environmental Services,4820 - Public Conveniences,2100 - Building Repairs,03/05/2011,1043017-2,151.41,2100051 - A L Wicken Carpenter & Building Contractor,WEEK B
Tendring DC,http://statistics.data.gov.uk/id/local-authority-district/22UN,Environmental Services,4820 - Public Conveniences,2100 - Building Repairs,17/05/2011,1043451-1,389.88,2100051 - A L Wicken Carpenter & Building Contractor,WEEK A
Tendring DC,http://statistics.data.gov.uk/id/local-authority-district/22UN,Environmental Services,4820 - Public Conveniences,2100 - Building Repairs,17/05/2011,1043451-2,569.66,2100051 - A L Wicken Carpenter & Building Contractor,WEEK A
Tendring DC,http://statistics.data.gov.uk/id/local-authority-district/22UN,Environmental Services,4820 - Public Conveniences,2100 - Building Repairs,17/05/2011,1043452-1,170.45,REDACTED COMMERCIAL CONFIDENTIALITY,REDACTED COMMERCIAL CONFIDENTIALITY
Tendring DC,http://statistics.data.gov.uk/id/local-authority-district/22UN,Environmental Services,4820 - Public Conveniences,2100 - Building Repairs,17/05/2011,1043452-2,642.51,REDACTED COMMERCIAL CONFIDENTIALITY,REDACTED COMMERCIAL CONFIDENTIALITY
Tendring DC,http://statistics.data.gov.uk/id/local-authority-district/22UN,Environmental Services,4820 - Public Conveniences,2100 - Building Repairs,10/05/2011,2084595-1,466.69,2100051 - A L Wicken Carpenter & Building Contractor,Week C
Tendring DC,http://statistics.data.gov.uk/id/local-authority-district/22UN,Environmental Services,4820 - Public Conveniences,2100 - Building Repairs,10/05/2011,2084595-2,318.96,2100051 - A L Wicken Carpenter & Building Contractor,Week C
Tendring DC,http://statistics.data.gov.uk/id/local-authority-district/22UN,Environmental Services,4820 - Public Conveniences,2100 - Building Repairs,25/05/2011,2084603-1,212.37,2100051 - A L Wicken Carpenter & Building Contractor,WEEK B
Tendring DC,http://statistics.data.gov.uk/id/local-authority-district/22UN,Environmental Services,4820 - Public Conveniences,2100 - Building Repairs,25/05/2011,2084603-2,327.38,2100051 - A L Wicken Carpenter & Building Contractor,WEEK B
Tendring DC,http://statistics.data.gov.uk/id/local-authority-district/22UN,Environmental Services,H920 - DFGs,C400 - Grant payments,17/05/2011,1043284-1,3062.89,2108452 - Access Automation Ltd,REDACTED PERSONAL DATA
Tendring DC,http://statistics.data.gov.uk/id/local-authority-district/22UN,Environmental Services,4720 - Dog Warden,6300 - Contract Payment,03/05/2011,1043022-1,4528.36,2100027 - Animal Wardens Ltd,CONFEE DOGS MAR 11
Tendring DC,http://statistics.data.gov.uk/id/local-authority-district/22UN,Environmental Services,4720 - Dog Warden,6300 - Contract Payment,10/05/2011,2084596-1,4528.36,2100027 - Animal Wardens Ltd,Confee April 11 Dog
Tendring DC,http://statistics.data.gov.uk/id/local-authority-district/22UN,Environmental Services,4750 - Housing Disrepair,4080 - Materials & Consumables,17/05/2011,1043232-1,225,2101568 - Asgen Limited,REDACTED PERSONAL DATA
Tendring DC,http://statistics.data.gov.uk/id/local-authority-district/22UN,Environmental Services,1600 - Technical and Procurement - Technical Services,4300 - Printing & Stationery,31/05/2011,1043980-1,32,2100111 - Banner Business Supplies Ltd,BANNER-FOLDERS
Tendring DC,http://statistics.data.gov.uk/id/local-authority-district/22UN,Environmental Services,1060 - Environmental Services,4300 - Printing & Stationery,03/05/2011,2084409-1,21.52,2100111 - Banner Business Supplies Ltd,Banner - Envelopes & A4 Notepads
Tendring DC,http://statistics.data.gov.uk/id/local-authority-district/22UN,Environmental Services,H920 - DFGs,C400 - Grant payments,25/05/2011,1043519-1,50,2107495 - Blue Spark Electrical Ltd,REDACTED PERSONAL DATA
Tendring DC,http://statistics.data.gov.uk/id/local-authority-district/22UN,Environmental Services,H920 - DFGs,C400 - Grant payments,25/05/2011,1043520-1,50,2107495 - Blue Spark Electrical Ltd,REDACTED PERSONAL DATA
Tendring DC,http://statistics.data.gov.uk/id/local-authority-district/22UN,Environmental Services,H920 - DFGs,C400 - Grant payments,25/05/2011,1043521-1,50,2107495 - Blue Spark Electrical Ltd,REDACTED PERSONAL DATA
Tendring DC,http://statistics.data.gov.uk/id/local-authority-district/22UN,Environmental Services,H920 - DFGs,C400 - Grant payments,25/05/2011,1043522-1,50,2107495 - Blue Spark Electrical Ltd,REDACTED PERSONAL DATA
Tendring DC,http://statistics.data.gov.uk/id/local-authority-district/22UN,Environmental Services,H920 - DFGs,C400 - Grant payments,25/05/2011,1043523-1,50,2107495 - Blue Spark Electrical Ltd,REDACTED PERSONAL DATA
Tendring DC,http://statistics.data.gov.uk/id/local-authority-district/22UN,Environmental Services,H920 - DFGs,C400 - Grant payments,31/05/2011,1043922-1,50,2107495 - Blue Spark Electrical Ltd,REDACTED PERSONAL DATA
Tendring DC,http://statistics.data.gov.uk/id/local-authority-district/22UN,Environmental Services,H920 - DFGs,C400 - Grant payments,31/05/2011,1043942-1,50,2107495 - Blue Spark Electrical Ltd,REDACTED PERSONAL DATA
Tendring DC,http://statistics.data.gov.uk/id/local-authority-district/22UN,Environmental Services,H920 - DFGs,C400 - Grant payments,31/05/2011,2084727-1,50,2107495 - Blue Spark Electrical Ltd,REDACTED PERSONAL DATA
Tendring DC,http://statistics.data.gov.uk/id/local-authority-district/22UN,Environmental Services,4820 - Public Conveniences,4080 - Materials & Consumables,25/05/2011,1043702-1,124.5,2101624 - Bunzl,HAND SOAP
Tendring DC,http://statistics.data.gov.uk/id/local-authority-district/22UN,Environmental Services,4820 - Public Conveniences,4080 - Materials & Consumables,31/05/2011,2084703-1,625,2101624 - Bunzl,SOAP DISPENSERS
Tendring DC,http://statistics.data.gov.uk/id/local-authority-district/22UN,Environmental Services,4660 - Public Health,4300 - Printing & Stationery,31/05/2011,1044082-1,480,2101866 - C.I.E.H.,AG EHC NET SUBS
Tendring DC,http://statistics.data.gov.uk/id/local-authority-district/22UN,Environmental Services,4740 - Environmental Protection,4400 - Maintenance Under Service Agreements,03/05/2011,1042960-1,71.25,2107321 - Campbell Associates,CAMPBELL ASSOC
Tendring DC,http://statistics.data.gov.uk/id/local-authority-district/22UN,Environmental Services,1780 - Health & Safety,4210 - Protective Clothing,03/05/2011,1042961-1,166.45,2100205 - Chelmsford Safety Supplies,CHELMSFORD SAFETY SUPPLIES
Tendring DC,http://statistics.data.gov.uk/id/local-authority-district/22UN,Environmental Services,1780 - Health & Safety,4210 - Protective Clothing,31/05/2011,2084704-1,26,2100205 - Chelmsford Safety Supplies,AG LADIES SAFETY SHOE
Tendring DC,http://statistics.data.gov.uk/id/local-authority-district/22UN,Environmental Services,4840 - Recycling,5467 - Material Collection Payments,03/05/2011,1042999-1,299.14,2108608 - Clothes Aid (Services) Ltd,CLOTHES AID JAN FEB MAR
Tendring DC,http://statistics.data.gov.uk/id/local-authority-district/22UN,Environmental Services,4780 - Rodent & Pest Control,6300 - Contract Payment,17/05/2011,1043461-1,2015.7,2103418 - Command Pest Control Limited T/A Pestclear,CONFEE MARCH 11 PEST
Tendring DC,http://statistics.data.gov.uk/id/local-authority-district/22UN,Environmental Services,4780 - Rodent & Pest Control,6300 - Contract Payment,17/05/2011,1043461-2,65,2103418 - Command Pest Control Limited T/A Pestclear,CONFEE MARCH 11 PEST
Tendring DC,http://statistics.data.gov.uk/id/local-authority-district/22UN,Environmental Services,4780 - Rodent & Pest Control,6300 - Contract Payment,17/05/2011,1043462-1,2015.7,2103418 - Command Pest Control Limited T/A Pestclear,CONFEE FEB 11 PESTCLEAR
Tendring DC,http://statistics.data.gov.uk/id/local-authority-district/22UN,Environmental Services,4780 - Rodent & Pest Control,6300 - Contract Payment,17/05/2011,1043463-1,2015.7,2103418 - Command Pest Control Limited T/A Pestclear,CONFEE JAN 11 PESTCLEAR
Tendring DC,http://statistics.data.gov.uk/id/local-authority-district/22UN,Environmental Services,9900 - General Fund Balance Sheet,B382 - Rechargeable Works - Other,31/05/2011,1044107-1,1630,2103418 - Command Pest Control Limited T/A Pestclear,REDACTED PERSONAL DATA
Tendring DC,http://statistics.data.gov.uk/id/local-authority-district/22UN,Environmental Services,4780 - Rodent & Pest Control,6300 - Contract Payment,31/05/2011,2084709-1,2015.7,2103418 - Command Pest Control Limited T/A Pestclear,Confee Pestclear April
Tendring DC,http://statistics.data.gov.uk/id/local-authority-district/22UN,Environmental Services,H920 - DFGs,C400 - Grant payments,17/05/2011,1043270-1,5423.48,2101884 - Cooper & Brome (Plumbing & Heating) Ltd,REDACTED PERSONAL DATA
Tendring DC,http://statistics.data.gov.uk/id/local-authority-district/22UN,Environmental Services,H920 - DFGs,C400 - Grant payments,25/05/2011,1043518-1,2222.48,2101884 - Cooper & Brome (Plumbing & Heating) Ltd,REDACTED PERSONAL DATA
Tendring DC,http://statistics.data.gov.uk/id/local-authority-district/22UN,Environmental Services,H920 - DFGs,C400 - Grant payments,31/05/2011,1043934-1,4893.65,2101884 - Cooper & Brome (Plumbing & Heating) Ltd,REDACTED PERSONAL DATA
Tendring DC,http://statistics.data.gov.uk/id/local-authority-district/22UN,Environmental Services,4660 - Public Health,5500 - Miscellaneous Expenses,17/05/2011,1043226-1,25.97,2100397 - Danes of Colchester Ltd,DANES
Tendring DC,http://statistics.data.gov.uk/id/local-authority-district/22UN,Environmental Services,4820 - Public Conveniences,2100 - Building Repairs,25/05/2011,1043701-1,315.48,2108384 - DC Drains & Plumbing Services,PLUMBING
Tendring DC,http://statistics.data.gov.uk/id/local-authority-district/22UN,Environmental Services,4700 - Defective Drains,2102 - Investigation Costs,03/05/2011,2084408-1,39,2108384 - DC Drains & Plumbing Services,D C Drains
Tendring DC,http://statistics.data.gov.uk/id/local-authority-district/22UN,Environmental Services,4820 - Public Conveniences,2100 - Building Repairs,03/05/2011,2084459-1,378,2108384 - DC Drains & Plumbing Services,Seats
Tendring DC,http://statistics.data.gov.uk/id/local-authority-district/22UN,Environmental Services,4080 - Highways TDC - Patching Unmade Roads,4750 - Computer - Purchase Of Equipment,25/05/2011,1043865-1,171,2100503 - Ferret Information Systems Ltd,FERRET TDC RENEWAL
Tendring DC,http://statistics.data.gov.uk/id/local-authority-district/22UN,Environmental Services,4820 - Public Conveniences,6300 - Contract Payment,03/05/2011,1043023-1,1821.43,2108969 - Fountains,CONFEE ADDITION
Tendring DC,http://statistics.data.gov.uk/id/local-authority-district/22UN,Environmental Services,4820 - Public Conveniences,6300 - Contract Payment,17/05/2011,1043464-1,84.66,2108969 - Fountains,CONFEE ADDITIONAL
Tendring DC,http://statistics.data.gov.uk/id/local-authority-district/22UN,Environmental Services,4820 - Public Conveniences,6300 - Contract Payment,17/05/2011,1043465-1,21169.26,2108969 - Fountains,CONFEE APRIL 11
Tendring DC,http://statistics.data.gov.uk/id/local-authority-district/22UN,Environmental Services,1780 - Health & Safety,4597 - Hired Services - Payments to Contractors,03/05/2011,2084407-1,220,2107351 - Frinton Training Services Ltd,AG First Aid S Doolin
Tendring DC,http://statistics.data.gov.uk/id/local-authority-district/22UN,Environmental Services,H920 - DFGs,C400 - Grant payments,25/05/2011,1043514-1,5009,2111294 - GA Total Home Improvements,REDACTED PERSONAL DATA
Tendring DC,http://statistics.data.gov.uk/id/local-authority-district/22UN,Environmental Services,4740 - Environmental Protection,4614 - Hired Services - Emission Control,25/05/2011,1043870-1,79.55,2100518 - Gradko International Ltd,GRADKO
Tendring DC,http://statistics.data.gov.uk/id/local-authority-district/22UN,Environmental Services,4740 - Environmental Protection,4614 - Hired Services - Emission Control,25/05/2011,1043871-1,20.1,2100518 - Gradko International Ltd,GRADKO
Tendring DC,http://statistics.data.gov.uk/id/local-authority-district/22UN,Environmental Services,4740 - Environmental Protection,4614 - Hired Services - Emission Control,10/05/2011,2084467-1,23.85,2100518 - Gradko International Ltd,Gradko
Tendring DC,http://statistics.data.gov.uk/id/local-authority-district/22UN,Environmental Services,4740 - Environmental Protection,4614 - Hired Services - Emission Control,10/05/2011,2084468-1,116.25,2100518 - Gradko International Ltd,Gradko
Tendring DC,http://statistics.data.gov.uk/id/local-authority-district/22UN,Environmental Services,4740 - Environmental Protection,4614 - Hired Services - Emission Control,31/05/2011,2084688-1,40.2,2100518 - Gradko International Ltd,GRADKO DIF TUBES
Tendring DC,http://statistics.data.gov.uk/id/local-authority-district/22UN,Environmental Services,H920 - DFGs,C400 - Grant payments,17/05/2011,1043281-1,1175,2110586 - Handicare Ltd,REDACTED PERSONAL DATA
Tendring DC,http://statistics.data.gov.uk/id/local-authority-district/22UN,Environmental Services,H920 - DFGs,C400 - Grant payments,31/05/2011,1043927-1,1520,2110586 - Handicare Ltd,REDACTED PERSONAL DATA
Tendring DC,http://statistics.data.gov.uk/id/local-authority-district/22UN,Environmental Services,H920 - DFGs,C400 - Grant payments,31/05/2011,1043930-1,1421,2110586 - Handicare Ltd,REDACTED PERSONAL DATA
Tendring DC,http://statistics.data.gov.uk/id/local-authority-district/22UN,Environmental Services,H920 - DFGs,C400 - Grant payments,31/05/2011,1043940-1,2858.22,2110586 - Handicare Ltd,REDACTED PERSONAL DATA
Tendring DC,http://statistics.data.gov.uk/id/local-authority-district/22UN,Environmental Services,H920 - DFGs,C400 - Grant payments,31/05/2011,2084713-1,4051,2110586 - Handicare Ltd,REDACTED PERSONAL DATA
Tendring DC,http://statistics.data.gov.uk/id/local-authority-district/22UN,Environmental Services,H920 - DFGs,C400 - Grant payments,31/05/2011,2084725-1,1760,2110586 - Handicare Ltd,REDACTED PERSONAL DATA
Tendring DC,http://statistics.data.gov.uk/id/local-authority-district/22UN,Environmental Services,4740 - Environmental Protection,4040 - Equipment & Tools,03/05/2011,1042962-1,150,2110552 - Harrogate Borough Council,HARROGATE BC
Tendring DC,http://statistics.data.gov.uk/id/local-authority-district/22UN,Environmental Services,4840 - Recycling,5467 - Material Collection Payments,25/05/2011,1043888-1,611.82,2101959 - Harwich Reclaim,HARWICH RECLAIM APRIL 11
Tendring DC,http://statistics.data.gov.uk/id/local-authority-district/22UN,Environmental Services,H920 - DFGs,C400 - Grant payments,17/05/2011,1043280-1,15820.5,2101848 - Homecraft Contracts Ltd,REDACTED PERSONAL DATA
Tendring DC,http://statistics.data.gov.uk/id/local-authority-district/22UN,Environmental Services,H920 - DFGs,C400 - Grant payments,31/05/2011,1043923-1,2733.75,2101848 - Homecraft Contracts Ltd,REDACTED PERSONAL DATA
Tendring DC,http://statistics.data.gov.uk/id/local-authority-district/22UN,Environmental Services,H920 - DFGs,C400 - Grant payments,31/05/2011,2084728-1,3882.11,2101848 - Homecraft Contracts Ltd,REDACTED PERSONAL DATA
Tendring DC,http://statistics.data.gov.uk/id/local-authority-district/22UN,Environmental Services,1060 - Environmental Services,1700 - Training - Courses,31/05/2011,2084695-1,150,2100740 - ICCM,ICCM COURSE KWS
Tendring DC,http://statistics.data.gov.uk/id/local-authority-district/22UN,Environmental Services,1060 - Environmental Services,1700 - Training - Courses,25/05/2011,1043892-1,209.67,2111007 - In-House Legal Training Ltd,IN HOUSE EXPENSES
Tendring DC,http://statistics.data.gov.uk/id/local-authority-district/22UN,Environmental Services,H920 - DFGs,C400 - Grant payments,17/05/2011,1043282-1,5000,REDACTED PERSONAL DATA,REDACTED PERSONAL DATA
Tendring DC,http://statistics.data.gov.uk/id/local-authority-district/22UN,Environmental Services,H920 - DFGs,C400 - Grant payments,25/05/2011,1043512-1,3291.76,2110327 - JPS Plumbing & General Building,REDACTED PERSONAL DATA
Tendring DC,http://statistics.data.gov.uk/id/local-authority-district/22UN,Environmental Services,H920 - DFGs,C400 - Grant payments,25/05/2011,1043513-1,2180.17,2110327 - JPS Plumbing & General Building,REDACTED PERSONAL DATA
Tendring DC,http://statistics.data.gov.uk/id/local-authority-district/22UN,Environmental Services,H920 - DFGs,C400 - Grant payments,17/05/2011,1043271-1,50,2111067 - Lock Electrical,REDACTED PERSONAL DATA
Tendring DC,http://statistics.data.gov.uk/id/local-authority-district/22UN,Environmental Services,H920 - DFGs,C400 - Grant payments,17/05/2011,1043272-1,50,2111067 - Lock Electrical,REDACTED PERSONAL DATA
Tendring DC,http://statistics.data.gov.uk/id/local-authority-district/22UN,Environmental Services,H920 - DFGs,C400 - Grant payments,17/05/2011,1043273-1,50,2111067 - Lock Electrical,REDACTED PERSONAL DATA
Tendring DC,http://statistics.data.gov.uk/id/local-authority-district/22UN,Environmental Services,H920 - DFGs,C400 - Grant payments,17/05/2011,1043274-1,50,2111067 - Lock Electrical,REDACTED PERSONAL DATA
Tendring DC,http://statistics.data.gov.uk/id/local-authority-district/22UN,Environmental Services,H920 - DFGs,C400 - Grant payments,25/05/2011,1043524-1,50,2111067 - Lock Electrical,REDACTED PERSONAL DATA
Tendring DC,http://statistics.data.gov.uk/id/local-authority-district/22UN,Environmental Services,H920 - DFGs,C400 - Grant payments,25/05/2011,1043525-1,50,2111067 - Lock Electrical,REDACTED PERSONAL DATA
Tendring DC,http://statistics.data.gov.uk/id/local-authority-district/22UN,Environmental Services,H920 - DFGs,C400 - Grant payments,25/05/2011,1043526-1,50,2111067 - Lock Electrical,REDACTED PERSONAL DATA
Tendring DC,http://statistics.data.gov.uk/id/local-authority-district/22UN,Environmental Services,H920 - DFGs,C400 - Grant payments,31/05/2011,1043943-1,50,2111067 - Lock Electrical,REDACTED PERSONAL DATA
Tendring DC,http://statistics.data.gov.uk/id/local-authority-district/22UN,Environmental Services,H920 - DFGs,C400 - Grant payments,31/05/2011,1043944-1,50,2111067 - Lock Electrical,REDACTED PERSONAL DATA
Tendring DC,http://statistics.data.gov.uk/id/local-authority-district/22UN,Environmental Services,1060 - Environmental Services,4300 - Printing & Stationery,25/05/2011,1043890-1,69.09,2110099 - Lyreco UK Ltd,LYRECO
Tendring DC,http://statistics.data.gov.uk/id/local-authority-district/22UN,Environmental Services,H920 - DFGs,C400 - Grant payments,25/05/2011,1043527-1,796.87,REDACTED PERSONAL DATA,REDACTED PERSONAL DATA
Tendring DC,http://statistics.data.gov.uk/id/local-authority-district/22UN,Environmental Services,H920 - DFGs,C400 - Grant payments,31/05/2011,2084733-1,4755.83,REDACTED PERSONAL DATA,Muffins Colchester Road
Tendring DC,http://statistics.data.gov.uk/id/local-authority-district/22UN,Environmental Services,7325 - Licensing Under Licensing Act 2003,9090 - Premises Licenses - Conversion/Grant/Var AFTER Con,17/05/2011,1043475-1,89,REDACTED PERSONAL DATA,MINOR VARIATION-THE LOCAL 137 HIGH ST
Tendring DC,http://statistics.data.gov.uk/id/local-authority-district/22UN,Environmental Services,H920 - DFGs,C400 - Grant payments,31/05/2011,1043925-1,2377.71,2109199 - One Call Property Maintenance,REDACTED PERSONAL DATA
Tendring DC,http://statistics.data.gov.uk/id/local-authority-district/22UN,Environmental Services,H920 - DFGs,C400 - Grant payments,31/05/2011,1043928-1,2068.27,2109199 - One Call Property Maintenance,REDACTED PERSONAL DATA
Tendring DC,http://statistics.data.gov.uk/id/local-authority-district/22UN,Environmental Services,H920 - DFGs,C400 - Grant payments,31/05/2011,2084715-1,3723.93,2109199 - One Call Property Maintenance,REDACTED PERSONAL DATA
Tendring DC,http://statistics.data.gov.uk/id/local-authority-district/22UN,Environmental Services,H920 - DFGs,C400 - Grant payments,31/05/2011,2084719-1,3805.66,2109199 - One Call Property Maintenance,REDACTED PERSONAL DATA
Tendring DC,http://statistics.data.gov.uk/id/local-authority-district/22UN,Environmental Services,H920 - DFGs,C400 - Grant payments,25/05/2011,1043517-1,234,2111205 - Openreach Billing Team,REDACTED PERSONAL DATA
Tendring DC,http://statistics.data.gov.uk/id/local-authority-district/22UN,Environmental Services,4900 - Street Sweeping,4618 - Hired Services - Environmental Clean ups,25/05/2011,1043866-1,174.5,2106681 - PHS Waste Management,PHS WASTE WIX RD
Tendring DC,http://statistics.data.gov.uk/id/local-authority-district/22UN,Environmental Services,4900 - Street Sweeping,4618 - Hired Services - Environmental Clean ups,25/05/2011,1043867-1,167.5,2106681 - PHS Waste Management,PHS THESOILS
Tendring DC,http://statistics.data.gov.uk/id/local-authority-district/22UN,Environmental Services,4900 - Street Sweeping,4618 - Hired Services - Environmental Clean ups,25/05/2011,1043889-1,135,2106681 - PHS Waste Management,PHS SLADBURY LANE
Tendring DC,http://statistics.data.gov.uk/id/local-authority-district/22UN,Environmental Services,4900 - Street Sweeping,4618 - Hired Services - Environmental Clean ups,25/05/2011,1043891-1,137.5,2106681 - PHS Waste Management,PHS WASTE
Tendring DC,http://statistics.data.gov.uk/id/local-authority-district/22UN,Environmental Services,4900 - Street Sweeping,4618 - Hired Services - Environmental Clean ups,31/05/2011,1044105-1,199,2106681 - PHS Waste Management,PHS-THE SOILS
Tendring DC,http://statistics.data.gov.uk/id/local-authority-district/22UN,Environmental Services,4900 - Street Sweeping,4618 - Hired Services - Environmental Clean ups,31/05/2011,1044106-1,171,2106681 - PHS Waste Management,PHS WASTE-VEOLIA
Tendring DC,http://statistics.data.gov.uk/id/local-authority-district/22UN,Environmental Services,9900 - General Fund Balance Sheet,B350 - Welfare Burials Holding Account,31/05/2011,1043977-1,1341,2109476 - R Gwinnells & Son,REDACTED PERSONAL DATA
Tendring DC,http://statistics.data.gov.uk/id/local-authority-district/22UN,Environmental Services,9900 - General Fund Balance Sheet,B350 - Welfare Burials Holding Account,31/05/2011,1043978-1,1221,2109476 - R Gwinnells & Son,REDACTED PERSONAL DATA
Tendring DC,http://statistics.data.gov.uk/id/local-authority-district/22UN,Environmental Services,1060 - Environmental Services,4400 - Maintenance Under Service Agreements,03/05/2011,1042998-1,426.54,2101090 - Ricoh UK Ltd,RICOH JAN MAR 11
Tendring DC,http://statistics.data.gov.uk/id/local-authority-district/22UN,Environmental Services,1060 - Environmental Services,4700 - Postage,31/05/2011,2084696-1,14.18,2101139 - Royal Mail,ROYAL MAIL
Tendring DC,http://statistics.data.gov.uk/id/local-authority-district/22UN,Environmental Services,H920 - DFGs,C400 - Grant payments,17/05/2011,1043283-1,3381.66,2101221 - S W K Lenyk,REDACTED PERSONAL DATA
Tendring DC,http://statistics.data.gov.uk/id/local-authority-district/22UN,Environmental Services,H920 - DFGs,C400 - Grant payments,31/05/2011,1043932-1,3816.4,2101221 - S W K Lenyk,REDACTED PERSONAL DATA
Tendring DC,http://statistics.data.gov.uk/id/local-authority-district/22UN,Environmental Services,4820 - Public Conveniences,2100 - Building Repairs,17/05/2011,1043233-1,68.76,2100032 - Signs Made Easy,SIGNS
Tendring DC,http://statistics.data.gov.uk/id/local-authority-district/22UN,Environmental Services,H920 - DFGs,C400 - Grant payments,31/05/2011,2084731-1,5558,2101370 - Stannah Lift Services Ltd,REDACTED PERSONAL DATA
Tendring DC,http://statistics.data.gov.uk/id/local-authority-district/22UN,Environmental Services,1060 - Environmental Services,5500 - Miscellaneous Expenses,31/05/2011,1043991-1,9.99,2111146 - Tendring District Council,PETTY CASH
Tendring DC,http://statistics.data.gov.uk/id/local-authority-district/22UN,Environmental Services,1060 - Environmental Services,5500 - Miscellaneous Expenses,31/05/2011,1043991-2,2.99,2111146 - Tendring District Council,PETTY CASH
Tendring DC,http://statistics.data.gov.uk/id/local-authority-district/22UN,Environmental Services,9900 - General Fund Balance Sheet,B350 - Welfare Burials Holding Account,31/05/2011,1043991-3,14,2111146 - Tendring District Council,PETTY CASH
Tendring DC,http://statistics.data.gov.uk/id/local-authority-district/22UN,Environmental Services,9900 - General Fund Balance Sheet,B350 - Welfare Burials Holding Account,31/05/2011,1043991-4,7,2111146 - Tendring District Council,PETTY CASH
Tendring DC,http://statistics.data.gov.uk/id/local-authority-district/22UN,Environmental Services,4740 - Environmental Protection,4040 - Equipment & Tools,31/05/2011,1043991-5,6.97,2111146 - Tendring District Council,PETTY CASH
Tendring DC,http://statistics.data.gov.uk/id/local-authority-district/22UN,Environmental Services,4740 - Environmental Protection,4040 - Equipment & Tools,31/05/2011,1043991-6,20.96,2111146 - Tendring District Council,PETTY CASH
Tendring DC,http://statistics.data.gov.uk/id/local-authority-district/22UN,Environmental Services,4840 - Recycling,6299 - Contractors Reuse,25/05/2011,1043869-1,1002.93,2102267 - Tendring Reuse & Employment Enterprise,TREE APR 11
Tendring DC,http://statistics.data.gov.uk/id/local-authority-district/22UN,Environmental Services,H920 - DFGs,C400 - Grant payments,17/05/2011,1043275-1,86.12,2101401 - The Guinness Trust,REDACTED PERSONAL DATA
Tendring DC,http://statistics.data.gov.uk/id/local-authority-district/22UN,Environmental Services,H920 - DFGs,C400 - Grant payments,17/05/2011,1043276-1,117.5,2101401 - The Guinness Trust,REDACTED PERSONAL DATA
Tendring DC,http://statistics.data.gov.uk/id/local-authority-district/22UN,Environmental Services,H920 - DFGs,C400 - Grant payments,17/05/2011,1043277-1,106,2101401 - The Guinness Trust,REDACTED PERSONAL DATA
Tendring DC,http://statistics.data.gov.uk/id/local-authority-district/22UN,Environmental Services,H920 - DFGs,C400 - Grant payments,17/05/2011,1043278-1,434.02,2101401 - The Guinness Trust,REDACTED PERSONAL DATA
Tendring DC,http://statistics.data.gov.uk/id/local-authority-district/22UN,Environmental Services,H920 - DFGs,C400 - Grant payments,25/05/2011,1043528-1,122.82,2101401 - The Guinness Trust,REDACTED PERSONAL DATA
Tendring DC,http://statistics.data.gov.uk/id/local-authority-district/22UN,Environmental Services,H920 - DFGs,C400 - Grant payments,25/05/2011,1043529-1,148.03,2101401 - The Guinness Trust,REDACTED PERSONAL DATA
Tendring DC,http://statistics.data.gov.uk/id/local-authority-district/22UN,Environmental Services,H920 - DFGs,C400 - Grant payments,25/05/2011,1043530-1,195.96,2101401 - The Guinness Trust,REDACTED PERSONAL DATA
Tendring DC,http://statistics.data.gov.uk/id/local-authority-district/22UN,Environmental Services,H920 - DFGs,C400 - Grant payments,25/05/2011,1043531-1,708.67,2101401 - The Guinness Trust,REDACTED PERSONAL DATA
Tendring DC,http://statistics.data.gov.uk/id/local-authority-district/22UN,Environmental Services,H920 - DFGs,C400 - Grant payments,25/05/2011,1043532-1,236.64,2101401 - The Guinness Trust,REDACTED PERSONAL DATA
Tendring DC,http://statistics.data.gov.uk/id/local-authority-district/22UN,Environmental Services,H920 - DFGs,C400 - Grant payments,25/05/2011,1043533-1,324.06,2101401 - The Guinness Trust,REDACTED PERSONAL DATA
Tendring DC,http://statistics.data.gov.uk/id/local-authority-district/22UN,Environmental Services,H920 - DFGs,C400 - Grant payments,31/05/2011,1043924-1,217.38,2101401 - The Guinness Trust,REDACTED PERSONAL DATA
Tendring DC,http://statistics.data.gov.uk/id/local-authority-district/22UN,Environmental Services,H920 - DFGs,C400 - Grant payments,31/05/2011,1043926-1,222.6,2101401 - The Guinness Trust,REDACTED PERSONAL DATA
Tendring DC,http://statistics.data.gov.uk/id/local-authority-district/22UN,Environmental Services,H920 - DFGs,C400 - Grant payments,31/05/2011,1043929-1,248.95,2101401 - The Guinness Trust,REDACTED PERSONAL DATA
Tendring DC,http://statistics.data.gov.uk/id/local-authority-district/22UN,Environmental Services,H920 - DFGs,C400 - Grant payments,31/05/2011,1043931-1,35.52,2101401 - The Guinness Trust,REDACTED PERSONAL DATA
Tendring DC,http://statistics.data.gov.uk/id/local-authority-district/22UN,Environmental Services,H920 - DFGs,C400 - Grant payments,31/05/2011,1043933-1,110.53,2101401 - The Guinness Trust,REDACTED PERSONAL DATA
Tendring DC,http://statistics.data.gov.uk/id/local-authority-district/22UN,Environmental Services,H920 - DFGs,C400 - Grant payments,31/05/2011,1043935-1,249.11,2101401 - The Guinness Trust,REDACTED PERSONAL DATA
Tendring DC,http://statistics.data.gov.uk/id/local-authority-district/22UN,Environmental Services,H920 - DFGs,C400 - Grant payments,31/05/2011,1043937-1,711.54,2101401 - The Guinness Trust,REDACTED PERSONAL DATA
Tendring DC,http://statistics.data.gov.uk/id/local-authority-district/22UN,Environmental Services,H920 - DFGs,C400 - Grant payments,31/05/2011,1043939-1,146.6,2101401 - The Guinness Trust,REDACTED PERSONAL DATA
Tendring DC,http://statistics.data.gov.uk/id/local-authority-district/22UN,Environmental Services,H920 - DFGs,C400 - Grant payments,31/05/2011,1043941-1,426.6,2101401 - The Guinness Trust,REDACTED PERSONAL DATA
Tendring DC,http://statistics.data.gov.uk/id/local-authority-district/22UN,Environmental Services,H920 - DFGs,C400 - Grant payments,31/05/2011,2084714-1,91.9,2101401 - The Guinness Trust,REDACTED PERSONAL DATA
Tendring DC,http://statistics.data.gov.uk/id/local-authority-district/22UN,Environmental Services,H920 - DFGs,C400 - Grant payments,31/05/2011,2084716-1,135.77,2101401 - The Guinness Trust,REDACTED PERSONAL DATA
Tendring DC,http://statistics.data.gov.uk/id/local-authority-district/22UN,Environmental Services,H920 - DFGs,C400 - Grant payments,31/05/2011,2084718-1,629.23,2101401 - The Guinness Trust,REDACTED PERSONAL DATA
Tendring DC,http://statistics.data.gov.uk/id/local-authority-district/22UN,Environmental Services,H920 - DFGs,C400 - Grant payments,31/05/2011,2084720-1,169.88,2101401 - The Guinness Trust,REDACTED PERSONAL DATA
Tendring DC,http://statistics.data.gov.uk/id/local-authority-district/22UN,Environmental Services,H920 - DFGs,C400 - Grant payments,31/05/2011,2084722-1,674.31,2101401 - The Guinness Trust,REDACTED PERSONAL DATA
Tendring DC,http://statistics.data.gov.uk/id/local-authority-district/22UN,Environmental Services,H920 - DFGs,C400 - Grant payments,31/05/2011,2084724-1,60.24,2101401 - The Guinness Trust,REDACTED PERSONAL DATA
Tendring DC,http://statistics.data.gov.uk/id/local-authority-district/22UN,Environmental Services,H920 - DFGs,C400 - Grant payments,31/05/2011,2084726-1,38,2101401 - The Guinness Trust,REDACTED PERSONAL DATA
Tendring DC,http://statistics.data.gov.uk/id/local-authority-district/22UN,Environmental Services,H920 - DFGs,C400 - Grant payments,31/05/2011,2084730-1,117.96,2101401 - The Guinness Trust,Bergholt
Tendring DC,http://statistics.data.gov.uk/id/local-authority-district/22UN,Environmental Services,H920 - DFGs,C400 - Grant payments,31/05/2011,2084732-1,272.24,2101401 - The Guinness Trust,REDACTED PERSONAL DATA
Tendring DC,http://statistics.data.gov.uk/id/local-authority-district/22UN,Environmental Services,H920 - DFGs,C400 - Grant payments,31/05/2011,2084734-1,1207.5,2101401 - The Guinness Trust,Muffins Colchester Road
Tendring DC,http://statistics.data.gov.uk/id/local-authority-district/22UN,Environmental Services,4840 - Recycling,6299 - Contractors Reuse,25/05/2011,1043868-1,375.11,2101336 - The Tendring Furniture Scheme,FURNITURE SCHEME APR 11
Tendring DC,http://statistics.data.gov.uk/id/local-authority-district/22UN,Environmental Services,5140 - Homelessness,4683 - Other Homelessness Expenses,31/05/2011,2084667-1,80,2101336 - The Tendring Furniture Scheme,FURNITURE T PURCHASE
Tendring DC,http://statistics.data.gov.uk/id/local-authority-district/22UN,Environmental Services,4820 - Public Conveniences,4080 - Materials & Consumables,17/05/2011,1043234-1,55.91,2111202 - Trade UK,SUPPLIES
Tendring DC,http://statistics.data.gov.uk/id/local-authority-district/22UN,Environmental Services,H920 - DFGs,C400 - Grant payments,17/05/2011,1043279-1,2327.21,2104393 - Trinity Construction Services,REDACTED PERSONAL DATA
Tendring DC,http://statistics.data.gov.uk/id/local-authority-district/22UN,Environmental Services,H920 - DFGs,C400 - Grant payments,25/05/2011,1043515-1,2578.53,2104393 - Trinity Construction Services,REDACTED PERSONAL DATA
Tendring DC,http://statistics.data.gov.uk/id/local-authority-district/22UN,Environmental Services,H920 - DFGs,C400 - Grant payments,25/05/2011,1043516-1,6264.68,2104393 - Trinity Construction Services,REDACTED PERSONAL DATA
Tendring DC,http://statistics.data.gov.uk/id/local-authority-district/22UN,Environmental Services,H920 - DFGs,C400 - Grant payments,31/05/2011,1043936-1,4716.95,2104393 - Trinity Construction Services,REDACTED PERSONAL DATA
Tendring DC,http://statistics.data.gov.uk/id/local-authority-district/22UN,Environmental Services,H920 - DFGs,C400 - Grant payments,31/05/2011,1043938-1,4648.15,2104393 - Trinity Construction Services,REDACTED PERSONAL DATA
Tendring DC,http://statistics.data.gov.uk/id/local-authority-district/22UN,Environmental Services,H920 - DFGs,C400 - Grant payments,31/05/2011,2084717-1,4168.22,2104393 - Trinity Construction Services,REDACTED PERSONAL DATA
Tendring DC,http://statistics.data.gov.uk/id/local-authority-district/22UN,Environmental Services,H920 - DFGs,C400 - Grant payments,31/05/2011,2084721-1,3739.2,2104393 - Trinity Construction Services,REDACTED PERSONAL DATA
Tendring DC,http://statistics.data.gov.uk/id/local-authority-district/22UN,Environmental Services,H920 - DFGs,C400 - Grant payments,31/05/2011,2084723-1,1606.33,2104393 - Trinity Construction Services,REDACTED PERSONAL DATA
Tendring DC,http://statistics.data.gov.uk/id/local-authority-district/22UN,Environmental Services,H920 - DFGs,C400 - Grant payments,31/05/2011,2084729-1,4163.4,2104393 - Trinity Construction Services,Bergholt
Tendring DC,http://statistics.data.gov.uk/id/local-authority-district/22UN,Environmental Services,1060 - Environmental Services,4355 - Books & Periodicals,03/05/2011,1042997-1,6,2104195 - TSO Publications Centre,TSO NOISE ICECREAM
Tendring DC,http://statistics.data.gov.uk/id/local-authority-district/22UN,Environmental Services,4840 - Recycling,5467 - Material Collection Payments,25/05/2011,1043554-1,1441.55,2101092 - Veolia ES (UK) Limited,VEOLIA-SCRAP METAL
Tendring DC,http://statistics.data.gov.uk/id/local-authority-district/22UN,Environmental Services,4820 - Public Conveniences,2500 - Water Services - Metered,31/05/2011,1044047-1,39.65,2101318 - Veolia Water East Ltd,VEOLIA WATER QUEENSWAY
Tendring DC,http://statistics.data.gov.uk/id/local-authority-district/22UN,Environmental Services,4820 - Public Conveniences,2520 - Sewerage & Environmental Charges,31/05/2011,1044047-2,81.97,2101318 - Veolia Water East Ltd,VEOLIA WATER QUEENSWAY
Tendring DC,http://statistics.data.gov.uk/id/local-authority-district/22UN,Environmental Services,4280 - Highways TDC - General,2500 - Water Services - Metered,31/05/2011,1044048-1,318.01,2101318 - Veolia Water East Ltd,VEOLIA WATER MANOR WAY
Tendring DC,http://statistics.data.gov.uk/id/local-authority-district/22UN,Environmental Services,4280 - Highways TDC - General,2520 - Sewerage & Environmental Charges,31/05/2011,1044048-2,306.47,2101318 - Veolia Water East Ltd,VEOLIA WATER MANOR WAY
Tendring DC,http://statistics.data.gov.uk/id/local-authority-district/22UN,Environmental Services,4820 - Public Conveniences,2500 - Water Services - Metered,31/05/2011,1044049-1,192.34,2101318 - Veolia Water East Ltd,VEOLIA WATER LYNDHURST
Tendring DC,http://statistics.data.gov.uk/id/local-authority-district/22UN,Environmental Services,4820 - Public Conveniences,2520 - Sewerage & Environmental Charges,31/05/2011,1044049-2,205.09,2101318 - Veolia Water East Ltd,VEOLIA WATER LYNDHURST
Tendring DC,http://statistics.data.gov.uk/id/local-authority-district/22UN,Environmental Services,4820 - Public Conveniences,2500 - Water Services - Metered,31/05/2011,1044050-1,55.45,2101318 - Veolia Water East Ltd,VEOLIA WATER AMBLESIDE
Tendring DC,http://statistics.data.gov.uk/id/local-authority-district/22UN,Environmental Services,4820 - Public Conveniences,2520 - Sewerage & Environmental Charges,31/05/2011,1044050-2,97.96,2101318 - Veolia Water East Ltd,VEOLIA WATER AMBLESIDE
Tendring DC,http://statistics.data.gov.uk/id/local-authority-district/22UN,Environmental Services,4820 - Public Conveniences,2500 - Water Services - Metered,31/05/2011,1044051-1,95.22,2101318 - Veolia Water East Ltd,VEOLIA WATER BRIGHTON RD
Tendring DC,http://statistics.data.gov.uk/id/local-authority-district/22UN,Environmental Services,4820 - Public Conveniences,2520 - Sewerage & Environmental Charges,31/05/2011,1044051-2,130.03,2101318 - Veolia Water East Ltd,VEOLIA WATER BRIGHTON RD
Tendring DC,http://statistics.data.gov.uk/id/local-authority-district/22UN,Environmental Services,4820 - Public Conveniences,2500 - Water Services - Metered,31/05/2011,1044052-1,90.07,2101318 - Veolia Water East Ltd,VEOLIA WATER FRINTON RD
Tendring DC,http://statistics.data.gov.uk/id/local-authority-district/22UN,Environmental Services,4820 - Public Conveniences,2520 - Sewerage & Environmental Charges,31/05/2011,1044052-2,122.63,2101318 - Veolia Water East Ltd,VEOLIA WATER FRINTON RD
Tendring DC,http://statistics.data.gov.uk/id/local-authority-district/22UN,Environmental Services,1060 - Environmental Services,4710 - Telephones - Charges,25/05/2011,1043898-1,0.59,2101522 - Vodafone Corporate,VODAFONE ES BILLS
Tendring DC,http://statistics.data.gov.uk/id/local-authority-district/22UN,Environmental Services,1060 - Environmental Services,4710 - Telephones - Charges,25/05/2011,1043898-2,569.3,2101522 - Vodafone Corporate,VODAFONE ES BILLS
Tendring DC,http://statistics.data.gov.uk/id/local-authority-district/22UN,Environmental Services,4740 - Environmental Protection,4614 - Hired Services - Emission Control,25/05/2011,2083023-1,5.1,2101532 - Vodafone Ltd,Vodafone
Tendring DC,http://statistics.data.gov.uk/id/local-authority-district/22UN,Environmental Services,4740 - Environmental Protection,4614 - Hired Services - Emission Control,25/05/2011,2083023-2,-9.97,2101532 - Vodafone Ltd,Vodafone
Tendring DC,http://statistics.data.gov.uk/id/local-authority-district/22UN,Environmental Services,4840 - Recycling,5467 - Material Collection Payments,25/05/2011,1043887-1,2748.11,2101553 - Waste Recycling Limited,WASTE REC APRIL 11
Tendring DC,http://statistics.data.gov.uk/id/local-authority-district/22UN,Financial Services,1180 - Benefit Fraud Investigation,4880 - Subscriptions Paid,25/05/2011,1043691-1,1150,2102829 - Audit Commission,NFI
Tendring DC,http://statistics.data.gov.uk/id/local-authority-district/22UN,Financial Services,1220 - Financial Management & Administration,4300 - Printing & Stationery,17/05/2011,1043150-1,60.6,2100111 - Banner Business Supplies Ltd,PAPER
Tendring DC,http://statistics.data.gov.uk/id/local-authority-district/22UN,Financial Services,1180 - Benefit Fraud Investigation,4300 - Printing & Stationery,31/05/2011,1043981-1,24.24,2100111 - Banner Business Supplies Ltd,PAPER
Tendring DC,http://statistics.data.gov.uk/id/local-authority-district/22UN,Financial Services,1180 - Benefit Fraud Investigation,4880 - Subscriptions Paid,25/05/2011,1043692-1,317.91,2102227 - Brighton & Hove City Council,NAFN
Tendring DC,http://statistics.data.gov.uk/id/local-authority-district/22UN,Financial Services,9900 - General Fund Balance Sheet,B879 - Charges made by Merchant Acquirer,10/05/2011,1043741-1,225.72,2100202 - Capita Business Services Ltd,CAPITA APR 11
Tendring DC,http://statistics.data.gov.uk/id/local-authority-district/22UN,Financial Services,9900 - General Fund Balance Sheet,B879 - Charges made by Merchant Acquirer,10/05/2011,1043741-2,505.48,2100202 - Capita Business Services Ltd,CAPITA APR 11
Tendring DC,http://statistics.data.gov.uk/id/local-authority-district/22UN,Financial Services,9900 - General Fund Balance Sheet,B879 - Charges made by Merchant Acquirer,10/05/2011,1043741-3,225.54,2100202 - Capita Business Services Ltd,CAPITA APR 11
Tendring DC,http://statistics.data.gov.uk/id/local-authority-district/22UN,Financial Services,9900 - General Fund Balance Sheet,B879 - Charges made by Merchant Acquirer,10/05/2011,1043741-4,446.16,2100202 - Capita Business Services Ltd,CAPITA APR 11
Tendring DC,http://statistics.data.gov.uk/id/local-authority-district/22UN,Financial Services,9900 - General Fund Balance Sheet,B879 - Charges made by Merchant Acquirer,10/05/2011,1043741-5,183.24,2100202 - Capita Business Services Ltd,CAPITA APR 11
Tendring DC,http://statistics.data.gov.uk/id/local-authority-district/22UN,Financial Services,9900 - General Fund Balance Sheet,B879 - Charges made by Merchant Acquirer,10/05/2011,1043741-6,97.31,2100202 - Capita Business Services Ltd,CAPITA APR 11
Tendring DC,http://statistics.data.gov.uk/id/local-authority-district/22UN,Financial Services,9900 - General Fund Balance Sheet,B879 - Charges made by Merchant Acquirer,10/05/2011,1043741-7,173.88,2100202 - Capita Business Services Ltd,CAPITA APR 11
Tendring DC,http://statistics.data.gov.uk/id/local-authority-district/22UN,Financial Services,9900 - General Fund Balance Sheet,B879 - Charges made by Merchant Acquirer,10/05/2011,1043741-8,236.41,2100202 - Capita Business Services Ltd,CAPITA APR 11
Tendring DC,http://statistics.data.gov.uk/id/local-authority-district/22UN,Financial Services,1180 - Benefit Fraud Investigation,5500 - Miscellaneous Expenses,17/05/2011,1043126-1,18.99,2100265 - Child Poverty Action Group,POSTERS
Tendring DC,http://statistics.data.gov.uk/id/local-authority-district/22UN,Financial Services,1180 - Benefit Fraud Investigation,4597 - Hired Services - Payments to Contractors,25/05/2011,1043690-1,137.7,2109766 - Cintra Ltd,
Tendring DC,http://statistics.data.gov.uk/id/local-authority-district/22UN,Financial Services,1120 - Accountancy,4880 - Subscriptions Paid,03/05/2011,1042952-1,2325,2109394 - CIPFA Business Ltd,TISONLINE 1/4/11 TO 31/3/12
Tendring DC,http://statistics.data.gov.uk/id/local-authority-district/22UN,Financial Services,6640 - Treasury Management,4880 - Subscriptions Paid,17/05/2011,1043088-1,2085,2109394 - CIPFA Business Ltd,TM NETWORK 1/4/11 TO 31/3/12
Tendring DC,http://statistics.data.gov.uk/id/local-authority-district/22UN,Financial Services,1120 - Accountancy,4880 - Subscriptions Paid,10/05/2011,2084565-1,2250,2109394 - CIPFA Business Ltd,CIPFA Stats 1/4/11 - 31/3/12
Tendring DC,http://statistics.data.gov.uk/id/local-authority-district/22UN,Financial Services,8700 - Small Projects,4900 - Grants,03/05/2011,2084436-1,625,2111270 - Clacton Canoe Club,To puchase a kayak ergo machine
Tendring DC,http://statistics.data.gov.uk/id/local-authority-district/22UN,Financial Services,8700 - Small Projects,4900 - Grants,03/05/2011,2084436-2,625,2111270 - Clacton Canoe Club,To puchase a kayak ergo machine
Tendring DC,http://statistics.data.gov.uk/id/local-authority-district/22UN,Financial Services,8700 - Small Projects,4900 - Grants,03/05/2011,2084436-3,1250,2111270 - Clacton Canoe Club,To puchase a kayak ergo machine
Tendring DC,http://statistics.data.gov.uk/id/local-authority-district/22UN,Financial Services,1080 - Management Board,4300 - Printing & Stationery,03/05/2011,1043737-1,11.56,2100269 - Co operative Bank plc,KLN VISA MAY 11
Tendring DC,http://statistics.data.gov.uk/id/local-authority-district/22UN,Financial Services,6620 - Corporate Management - General,5190 - Bank Commission Charges,03/05/2011,1043737-2,2,2100269 - Co operative Bank plc,KLN VISA MAY 11
Tendring DC,http://statistics.data.gov.uk/id/local-authority-district/22UN,Financial Services,6640 - Treasury Management,5192 - Brokerage,06/05/2011,1043950-1,91,2100269 - Co operative Bank plc,FD APR 2011
Tendring DC,http://statistics.data.gov.uk/id/local-authority-district/22UN,Financial Services,6620 - Corporate Management - General,5190 - Bank Commission Charges,06/05/2011,1043950-2,161,2100269 - Co operative Bank plc,FD APR 2011
Tendring DC,http://statistics.data.gov.uk/id/local-authority-district/22UN,Financial Services,1140 - Audit Services,4880 - Subscriptions Paid,31/05/2011,2084707-1,100,2111249 - Essex Audit Group,ESSEX AUDIT GROUP
Tendring DC,http://statistics.data.gov.uk/id/local-authority-district/22UN,Financial Services,8700 - Small Projects,4900 - Grants,17/05/2011,1043476-1,500,2102460 - Essex Blind Charity,CONTRIBUTION TO RENT AND MATERIALS FOR ART CLUB
Tendring DC,http://statistics.data.gov.uk/id/local-authority-district/22UN,Financial Services,8971 - MIRS - Contributions Payable to the Pension Scheme,1822 - Superannuation - Port Health Pensions etc.,10/05/2011,1043076-1,704.65,2100419 - Essex County Council,PORT HEALTH AUTHORITY
Tendring DC,http://statistics.data.gov.uk/id/local-authority-district/22UN,Financial Services,8971 - MIRS - Contributions Payable to the Pension Scheme,1816 - Superannuation Deficiency Contribution,10/05/2011,1043080-4,137750,2100419 - Essex County Council,PENSION 00013
Tendring DC,http://statistics.data.gov.uk/id/local-authority-district/22UN,Financial Services,8971 - MIRS - Contributions Payable to the Pension Scheme,1810 - Superannuation  -  Financial Strain/Added Years,10/05/2011,1043080-5,16581.43,2100419 - Essex County Council,PENSION 00013
Tendring DC,http://statistics.data.gov.uk/id/local-authority-district/22UN,Financial Services,9880 - Collection Fund - Council Tax,R100 - Precept - ECC,25/05/2011,1044199-1,5574365,2100409 - Essex County Council,PRECEPT 250511
Tendring DC,http://statistics.data.gov.uk/id/local-authority-district/22UN,Financial Services,9880 - Collection Fund - Council Tax,R110 - Council Tax Balance - ECC,25/05/2011,1044199-2,48964,2100409 - Essex County Council,PRECEPT 250511
Tendring DC,http://statistics.data.gov.uk/id/local-authority-district/22UN,Financial Services,8070 - On Street Parking,5436 - ECC PCT Levy,25/05/2011,1044199-3,-5418,2100409 - Essex County Council,PRECEPT 250511
Tendring DC,http://statistics.data.gov.uk/id/local-authority-district/22UN,Financial Services,4520 - Land Charges,5448 - CON 29 Payments,25/05/2011,1044199-4,5023.3,2100409 - Essex County Council,PRECEPT 250511
Tendring DC,http://statistics.data.gov.uk/id/local-authority-district/22UN,Financial Services,6683 - Second Homes Discount Scheme,8109 - Second Homes Discount Scheme - ECC Contribution,25/05/2011,1044199-5,-41777,2100409 - Essex County Council,PRECEPT 250511
Tendring DC,http://statistics.data.gov.uk/id/local-authority-district/22UN,Financial Services,9880 - Collection Fund - Council Tax,R101 - Precept - Essex Fire,25/05/2011,1044198-1,340694,2100469 - Essex Fire Authority,PRECEPT 250511 FIRE
Tendring DC,http://statistics.data.gov.uk/id/local-authority-district/22UN,Financial Services,9880 - Collection Fund - Council Tax,R111 - Council Tax Balance - Essex Fire,25/05/2011,1044198-2,2993,2100469 - Essex Fire Authority,PRECEPT 250511 FIRE
Tendring DC,http://statistics.data.gov.uk/id/local-authority-district/22UN,Financial Services,9880 - Collection Fund - Council Tax,R102 - Precept - Essex Police,25/05/2011,1044200-1,677695,2100500 - Essex Police Authority,PRECEPT 250511 POL
Tendring DC,http://statistics.data.gov.uk/id/local-authority-district/22UN,Financial Services,9880 - Collection Fund - Council Tax,R112 - Council Tax Balance - Essex Police,25/05/2011,1044200-2,5953,2100500 - Essex Police Authority,PRECEPT 250511 POL
Tendring DC,http://statistics.data.gov.uk/id/local-authority-district/22UN,Financial Services,1660 - Other Apportionable Overheads,4609 - Child Care Vouchers Management Fee,10/05/2011,2084594-2,95.88,2104459 - Fideliti Ltd,May 11 Vouchers
Tendring DC,http://statistics.data.gov.uk/id/local-authority-district/22UN,Financial Services,1180 - Benefit Fraud Investigation,4460 - Legal & Professional Expenses,17/05/2011,1043127-1,454.8,2100672 - Harris Cuffaro & Nichols Solicitors,SOLICITOR COSTS
Tendring DC,http://statistics.data.gov.uk/id/local-authority-district/22UN,Financial Services,1180 - Benefit Fraud Investigation,4460 - Legal & Professional Expenses,17/05/2011,1043128-1,630.9,2100672 - Harris Cuffaro & Nichols Solicitors,SOLICITOR COSTS
Tendring DC,http://statistics.data.gov.uk/id/local-authority-district/22UN,Financial Services,1180 - Benefit Fraud Investigation,4460 - Legal & Professional Expenses,17/05/2011,1043129-1,1251,2100672 - Harris Cuffaro & Nichols Solicitors,SOLICITOR COSTS
Tendring DC,http://statistics.data.gov.uk/id/local-authority-district/22UN,Financial Services,1180 - Benefit Fraud Investigation,4460 - Legal & Professional Expenses,03/05/2011,2084460-1,1817.4,2100672 - Harris Cuffaro & Nichols Solicitors,Solicitor Costs
Tendring DC,http://statistics.data.gov.uk/id/local-authority-district/22UN,Financial Services,1180 - Benefit Fraud Investigation,4460 - Legal & Professional Expenses,03/05/2011,2084460-2,11,2100672 - Harris Cuffaro & Nichols Solicitors,Solicitor Costs
Tendring DC,http://statistics.data.gov.uk/id/local-authority-district/22UN,Financial Services,1180 - Benefit Fraud Investigation,4460 - Legal & Professional Expenses,31/05/2011,2084702-1,1412.7,2100672 - Harris Cuffaro & Nichols Solicitors,SOLICITOR COSTS
Tendring DC,http://statistics.data.gov.uk/id/local-authority-district/22UN,Financial Services,6640 - Treasury Management,5192 - Brokerage,16/05/2011,1043742-2,1345.2,2107040 - King & Shaxson Limited,FEES RE TREASURY MANAGEMENT
Tendring DC,http://statistics.data.gov.uk/id/local-authority-district/22UN,Financial Services,8915 - Interest & Investment Income,9600 - External Investment Interest Receivable,16/05/2011,1043742-3,-19122.47,2107040 - King & Shaxson Limited,FEES RE TREASURY MANAGEMENT
Tendring DC,http://statistics.data.gov.uk/id/local-authority-district/22UN,Financial Services,8700 - Small Projects,4900 - Grants,25/05/2011,1043826-1,144,REDACTED PERSONAL DATA,CONTRIBUTION TO DANCE GROUP LOCAL ACTIVITIES
Tendring DC,http://statistics.data.gov.uk/id/local-authority-district/22UN,Financial Services,8700 - Small Projects,4900 - Grants,25/05/2011,1043826-2,145,REDACTED PERSONAL DATA,CONTRIBUTION TO DANCE GROUP LOCAL ACTIVITIES
Tendring DC,http://statistics.data.gov.uk/id/local-authority-district/22UN,Financial Services,1660 - Other Apportionable Overheads,5222 - General Write Offs/Adjustments,10/05/2011,2084592-1,149.62,REDACTED PERSONAL DATA,REDACTED PERSONAL DATA
Tendring DC,http://statistics.data.gov.uk/id/local-authority-district/22UN,Financial Services,6620 - Corporate Management - General,5190 - Bank Commission Charges,25/05/2011,1043795-1,27.5,2108951 - Natwest,NAT WEST AUDIT REPORT FEES
Tendring DC,http://statistics.data.gov.uk/id/local-authority-district/22UN,Financial Services,6540 - Members Allowance,5160 - Advertising,03/05/2011,2084401-1,882.82,2100989 - Newsquest (London) Ltd,Advert in Local Paper
Tendring DC,http://statistics.data.gov.uk/id/local-authority-district/22UN,Financial Services,5680 - HRA Subsidy,6680 - HRA Negative Subsidy payment,04/05/2011,1044201-1,224524,2101081 - ODPM,HRA SURPLUS
Tendring DC,http://statistics.data.gov.uk/id/local-authority-district/22UN,Financial Services,9900 - General Fund Balance Sheet,B886 - Rail Warrants Allocation Holding Account,27/05/2011,1044202-1,466.1,2101174 - R S P Ltd,RAIL WARRANTS
Tendring DC,http://statistics.data.gov.uk/id/local-authority-district/22UN,Financial Services,1180 - Benefit Fraud Investigation,5500 - Miscellaneous Expenses,03/05/2011,2084449-1,9.25,REDACTED PERSONAL DATA,Marriage Certificate for Fraud Investigation
Tendring DC,http://statistics.data.gov.uk/id/local-authority-district/22UN,Financial Services,8700 - Small Projects,4900 - Grants,25/05/2011,1043825-1,250,2109430 - Shorefields School,CONTRIBUTION TO LOCAL TRIP FOR STUDENTS SHOREFIELDS SCHOOL
Tendring DC,http://statistics.data.gov.uk/id/local-authority-district/22UN,Financial Services,8700 - Small Projects,4900 - Grants,25/05/2011,1043825-2,250,2109430 - Shorefields School,CONTRIBUTION TO LOCAL TRIP FOR STUDENTS SHOREFIELDS SCHOOL
Tendring DC,http://statistics.data.gov.uk/id/local-authority-district/22UN,Financial Services,8700 - Small Projects,4900 - Grants,31/05/2011,1044109-1,500,2111259 - St Andrews C of E Primary School,DEVELOP SCHOOL GROUNDS INSTALLING A GYM TRAIL ON ALL WEATHER SURFACE
Tendring DC,http://statistics.data.gov.uk/id/local-authority-district/22UN,Financial Services,9900 - General Fund Balance Sheet,B654 - Petty Cash/Imprests,31/05/2011,1043969-1,50,2111146 - Tendring District Council,ENVIRONMENTAL HEALTH WEELEY
Tendring DC,http://statistics.data.gov.uk/id/local-authority-district/22UN,Financial Services,9900 - General Fund Balance Sheet,B658 - Cash Floats,03/05/2011,2084431-1,1000,2101637 - Tendring District Council,Change machine - Walton
Tendring DC,http://statistics.data.gov.uk/id/local-authority-district/22UN,Financial Services,8700 - Small Projects,4900 - Grants,25/05/2011,1043824-1,1824.02,2111276 - Tendring District Youth Council,CONTRIBUTION TO HOSTING PRIDE OF TENDRING AWARDS 2011
Tendring DC,http://statistics.data.gov.uk/id/local-authority-district/22UN,Financial Services,8700 - Small Projects,4900 - Grants,25/05/2011,1043824-2,2510,2111276 - Tendring District Youth Council,CONTRIBUTION TO HOSTING PRIDE OF TENDRING AWARDS 2011
Tendring DC,http://statistics.data.gov.uk/id/local-authority-district/22UN,Financial Services,C272 - Harwich Masterplan,C200 - Main Contractor,03/05/2011,2084439-1,2050,2111201 - Tendring Regeneration Ltd,Mooring - HGP Harwich
Tendring DC,http://statistics.data.gov.uk/id/local-authority-district/22UN,Financial Services,7728 - Regeneration Projects and Initiatives in District,5500 - Miscellaneous Expenses,03/05/2011,2084440-1,25000,2111201 - Tendring Regeneration Ltd,Windport 1st Instal
Tendring DC,http://statistics.data.gov.uk/id/local-authority-district/22UN,Financial Services,8700 - Small Projects,4900 - Grants,03/05/2011,2084435-1,500,2111260 - The Mayflower Primary School,Conrtribution towards the Mole Project
Tendring DC,http://statistics.data.gov.uk/id/local-authority-district/22UN,Financial Services,1180 - Benefit Fraud Investigation,4716 - Mobile Telephone Costs,17/05/2011,1043138-1,22.98,2101522 - Vodafone Corporate,MOBILE PHONE COSTS
Tendring DC,http://statistics.data.gov.uk/id/local-authority-district/22UN,Financial Services,1200 - Exchequer,4300 - Printing & Stationery,17/05/2011,1043155-1,36.77,2107546 - XMA Limited,TONER
Tendring DC,http://statistics.data.gov.uk/id/local-authority-district/22UN,Housing Services,5480 - Repair & Maintenance,2018 - Other  Responsive Repairs,17/05/2011,1043341-1,110,2101597 - A Hill T/A Yorkshire Bath Resurfacing,NAYLAND DRIVE
Tendring DC,http://statistics.data.gov.uk/id/local-authority-district/22UN,Housing Services,5480 - Repair & Maintenance,2018 - Other  Responsive Repairs,17/05/2011,1043342-1,110,2101597 - A Hill T/A Yorkshire Bath Resurfacing,NAYLAND DRIVE
Tendring DC,http://statistics.data.gov.uk/id/local-authority-district/22UN,Housing Services,5480 - Repair & Maintenance,2018 - Other  Responsive Repairs,17/05/2011,1043343-1,110,2101597 - A Hill T/A Yorkshire Bath Resurfacing,NAYLAND DR
Tendring DC,http://statistics.data.gov.uk/id/local-authority-district/22UN,Housing Services,5480 - Repair & Maintenance,2008 - Responsive Maintenance - Floor Wall And Ceiling Fi,17/05/2011,1043344-1,110,2101597 - A Hill T/A Yorkshire Bath Resurfacing,NAYLAND DRIVE
Tendring DC,http://statistics.data.gov.uk/id/local-authority-district/22UN,Housing Services,1240 - Housing Services,1700 - Training - Courses,25/05/2011,2084606-1,655,2111277 - aaa training Co Ltd,BOHS P406
Tendring DC,http://statistics.data.gov.uk/id/local-authority-district/22UN,Housing Services,1240 - Housing Services,1700 - Training - Courses,25/05/2011,2084606-2,105,2111277 - aaa training Co Ltd,BOHS P406
Tendring DC,http://statistics.data.gov.uk/id/local-authority-district/22UN,Housing Services,5140 - Homelessness,4683 - Other Homelessness Expenses,25/05/2011,1043755-1,450,REDACTED PERSONAL DATA,REDACTED PERSONAL DATA
Tendring DC,http://statistics.data.gov.uk/id/local-authority-district/22UN,Housing Services,5480 - Repair & Maintenance,2095 - Other General Planned Repairs,17/05/2011,1043350-1,115.75,2100072 - Acorn Pressurisation Services Ltd,SPENDELLS HOUSE
Tendring DC,http://statistics.data.gov.uk/id/local-authority-district/22UN,Housing Services,5240 - Managing Tenancies,5242 - Tenant Relations,25/05/2011,1043791-1,10,REDACTED PERSONAL DATA,TENANTS PANEL
Tendring DC,http://statistics.data.gov.uk/id/local-authority-district/22UN,Housing Services,5240 - Managing Tenancies,5242 - Tenant Relations,31/05/2011,1043965-1,10,REDACTED PERSONAL DATA,TENANTS PANEL TRAINING
Tendring DC,http://statistics.data.gov.uk/id/local-authority-district/22UN,Housing Services,5240 - Managing Tenancies,5242 - Tenant Relations,10/05/2011,2084583-1,10,REDACTED PERSONAL DATA,Tenants Panel
Tendring DC,http://statistics.data.gov.uk/id/local-authority-district/22UN,Housing Services,5240 - Managing Tenancies,6625 - Tenants Compensation Scheme,10/05/2011,2084561-1,32,2100057 - Applebys (Removals) Ltd,Weekly Storage 18/3/11
Tendring DC,http://statistics.data.gov.uk/id/local-authority-district/22UN,Housing Services,5240 - Managing Tenancies,6625 - Tenants Compensation Scheme,31/05/2011,2084637-1,32,2100057 - Applebys (Removals) Ltd,WEEKLY STORAGE
Tendring DC,http://statistics.data.gov.uk/id/local-authority-district/22UN,Housing Services,5220 - Policy & Management,5930 - Business Planning Expenses,17/05/2011,1043358-1,2000,2109359 - ARCH,ARCH MEMBERSHIP
Tendring DC,http://statistics.data.gov.uk/id/local-authority-district/22UN,Housing Services,5480 - Repair & Maintenance,2012 - Responsive Maintenance - Clearance And Cleaning,17/05/2011,1043348-1,100,2107707 - ASP Cleaning Ltd,SAVILLE STREET
Tendring DC,http://statistics.data.gov.uk/id/local-authority-district/22UN,Housing Services,5480 - Repair & Maintenance,2012 - Responsive Maintenance - Clearance And Cleaning,17/05/2011,1043349-1,100,2107707 - ASP Cleaning Ltd,NAYLAND DR
Tendring DC,http://statistics.data.gov.uk/id/local-authority-district/22UN,Housing Services,5480 - Repair & Maintenance,2012 - Responsive Maintenance - Clearance And Cleaning,25/05/2011,1043829-1,45,2107707 - ASP Cleaning Ltd,DE VERE ESTATE
Tendring DC,http://statistics.data.gov.uk/id/local-authority-district/22UN,Housing Services,5480 - Repair & Maintenance,2012 - Responsive Maintenance - Clearance And Cleaning,25/05/2011,1043842-1,45,2107707 - ASP Cleaning Ltd,KATE DANIELS HOUSE
Tendring DC,http://statistics.data.gov.uk/id/local-authority-district/22UN,Housing Services,5240 - Managing Tenancies,5248 - Estate Management Expenses,10/05/2011,1043064-1,155,2100111 - Banner Business Supplies Ltd,NOTICE BOARD
Tendring DC,http://statistics.data.gov.uk/id/local-authority-district/22UN,Housing Services,5240 - Managing Tenancies,5248 - Estate Management Expenses,10/05/2011,1043065-1,155,2100111 - Banner Business Supplies Ltd,NOTICE BOARD
Tendring DC,http://statistics.data.gov.uk/id/local-authority-district/22UN,Housing Services,5240 - Managing Tenancies,5248 - Estate Management Expenses,10/05/2011,1043066-1,155,2100111 - Banner Business Supplies Ltd,NOTICE BOARD
Tendring DC,http://statistics.data.gov.uk/id/local-authority-district/22UN,Housing Services,1240 - Housing Services,4300 - Printing & Stationery,10/05/2011,1043067-1,89.26,2100111 - Banner Business Supplies Ltd,STATIONERY
Tendring DC,http://statistics.data.gov.uk/id/local-authority-district/22UN,Housing Services,1240 - Housing Services,4300 - Printing & Stationery,31/05/2011,1043985-1,96.75,2100111 - Banner Business Supplies Ltd,STATIONERY-PAPER
Tendring DC,http://statistics.data.gov.uk/id/local-authority-district/22UN,Housing Services,H805 - Major Refurbishment of Heating,C200 - Main Contractor,17/05/2011,1043466-1,46041.55,2100155 - Blue Flame,HEATER REFURBISHMENT CONTRACT 09/12
Tendring DC,http://statistics.data.gov.uk/id/local-authority-district/22UN,Housing Services,5240 - Managing Tenancies,6625 - Tenants Compensation Scheme,25/05/2011,1043852-1,87.5,2100175 - Bobs Skips,REDACTED PERSONAL DATA
Tendring DC,http://statistics.data.gov.uk/id/local-authority-district/22UN,Housing Services,5140 - Homelessness,4683 - Other Homelessness Expenses,25/05/2011,1043754-1,750,REDACTED PERSONAL DATA,REDACTED PERSONAL DATA
Tendring DC,http://statistics.data.gov.uk/id/local-authority-district/22UN,Housing Services,5140 - Homelessness,4683 - Other Homelessness Expenses,25/05/2011,1043828-1,300,REDACTED PERSONAL DATA,REDACTED PERSONAL DATA
Tendring DC,http://statistics.data.gov.uk/id/local-authority-district/22UN,Housing Services,5240 - Managing Tenancies,5242 - Tenant Relations,10/05/2011,2084574-1,10,REDACTED PERSONAL DATA,Tenants Panel
Tendring DC,http://statistics.data.gov.uk/id/local-authority-district/22UN,Housing Services,5360 - Sheltered Units,2304 - Energy Costs - Electricity,25/05/2011,1043555-1,401.42,2100197 - British Gas Trading Ltd,Apr-11
Tendring DC,http://statistics.data.gov.uk/id/local-authority-district/22UN,Housing Services,5340 - Communal Central Heating,2304 - Energy Costs - Electricity,25/05/2011,1043555-2,1207.15,2100197 - British Gas Trading Ltd,Apr-11
Tendring DC,http://statistics.data.gov.uk/id/local-authority-district/22UN,Housing Services,5440 - Communal Electricity,2304 - Energy Costs - Electricity,25/05/2011,1043555-3,8339.1,2100197 - British Gas Trading Ltd,Apr-11
Tendring DC,http://statistics.data.gov.uk/id/local-authority-district/22UN,Housing Services,5440 - Communal Electricity,2304 - Energy Costs - Electricity,25/05/2011,1043555-4,347.65,2100197 - British Gas Trading Ltd,Apr-11
Tendring DC,http://statistics.data.gov.uk/id/local-authority-district/22UN,Housing Services,5440 - Communal Electricity,2304 - Energy Costs - Electricity,25/05/2011,1043555-5,-4616,2100197 - British Gas Trading Ltd,Apr-11
Tendring DC,http://statistics.data.gov.uk/id/local-authority-district/22UN,Housing Services,5440 - Communal Electricity,2304 - Energy Costs - Electricity,25/05/2011,1043555-6,-92.27,2100197 - British Gas Trading Ltd,Apr-11
Tendring DC,http://statistics.data.gov.uk/id/local-authority-district/22UN,Housing Services,5440 - Communal Electricity,2304 - Energy Costs - Electricity,25/05/2011,1043555-7,-299.63,2100197 - British Gas Trading Ltd,Apr-11
Tendring DC,http://statistics.data.gov.uk/id/local-authority-district/22UN,Housing Services,5440 - Communal Electricity,2304 - Energy Costs - Electricity,25/05/2011,1043555-8,-339.87,2100197 - British Gas Trading Ltd,Apr-11
Tendring DC,http://statistics.data.gov.uk/id/local-authority-district/22UN,Housing Services,5480 - Repair & Maintenance,4044 - Building & Safety Equipment,17/05/2011,1043346-1,114,2107321 - Campbell Associates,HIRE EQUIPMENT
Tendring DC,http://statistics.data.gov.uk/id/local-authority-district/22UN,Housing Services,5240 - Managing Tenancies,5242 - Tenant Relations,31/05/2011,2084636-1,90,2100243 - Caterway,BUFFET 24 PPL @3.75 PER HEAD
Tendring DC,http://statistics.data.gov.uk/id/local-authority-district/22UN,Housing Services,5240 - Managing Tenancies,5242 - Tenant Relations,10/05/2011,2084562-1,900,2100254 - Chartered Institute of Housing,Mystery Shopping Course 5/4/11
Tendring DC,http://statistics.data.gov.uk/id/local-authority-district/22UN,Housing Services,5260 - Rent Collection And Accounting,4460 - Legal & Professional Expenses,03/05/2011,1043739-1,295,2100269 - Co operative Bank plc,PO ONLINE APRIL
Tendring DC,http://statistics.data.gov.uk/id/local-authority-district/22UN,Housing Services,6620 - Corporate Management - General,5190 - Bank Commission Charges,03/05/2011,1043739-2,2,2100269 - Co operative Bank plc,PO ONLINE APRIL
Tendring DC,http://statistics.data.gov.uk/id/local-authority-district/22UN,Housing Services,5480 - Repair & Maintenance,2079 - External Decoration,03/05/2011,1043016-1,3286.37,2101598 - Coldec Ltd,EXTERNAL DECORATION 2011
Tendring DC,http://statistics.data.gov.uk/id/local-authority-district/22UN,Housing Services,5480 - Repair & Maintenance,2075 - Gas Service Contract Servicing/Testing (Domestic I,17/05/2011,1043456-1,249.69,2100314 - Cooper & Brome (Plumbing & Heating) Ltd,GAS SERVICE & REPAIR-SOUTH AREA
Tendring DC,http://statistics.data.gov.uk/id/local-authority-district/22UN,Housing Services,5480 - Repair & Maintenance,2076 - Gas Service Contract Other Refurbishment/Repairs (,17/05/2011,1043456-2,11480.36,2100314 - Cooper & Brome (Plumbing & Heating) Ltd,GAS SERVICE & REPAIR-SOUTH AREA
Tendring DC,http://statistics.data.gov.uk/id/local-authority-district/22UN,Housing Services,5480 - Repair & Maintenance,2073 - Smoke Alarm Service/Testing,17/05/2011,1043456-3,44.51,2100314 - Cooper & Brome (Plumbing & Heating) Ltd,GAS SERVICE & REPAIR-SOUTH AREA
Tendring DC,http://statistics.data.gov.uk/id/local-authority-district/22UN,Housing Services,5480 - Repair & Maintenance,2077 - Gas Service Contract  Servicing/Testing (Large Sca,17/05/2011,1043457-1,1465.5,2100314 - Cooper & Brome (Plumbing & Heating) Ltd,LARGE SCALE BOILERS CONTRACT 09/12
Tendring DC,http://statistics.data.gov.uk/id/local-authority-district/22UN,Housing Services,5480 - Repair & Maintenance,2078 - Gas Service Contract Other Refurbishment/Repairs (,17/05/2011,1043457-2,3868.82,2100314 - Cooper & Brome (Plumbing & Heating) Ltd,LARGE SCALE BOILERS CONTRACT 09/12
Tendring DC,http://statistics.data.gov.uk/id/local-authority-district/22UN,Housing Services,5360 - Sheltered Units,2308 - Energy Costs - Gas (Including LPG),25/05/2011,1043537-1,-16.5,2104620 - Corona Energy Retail 4 Limited,GF-W-APRIL 11
Tendring DC,http://statistics.data.gov.uk/id/local-authority-district/22UN,Housing Services,5340 - Communal Central Heating,2304 - Energy Costs - Electricity,25/05/2011,1043538-1,-36.09,2104620 - Corona Energy Retail 4 Limited,GH-W-APRIL 11
Tendring DC,http://statistics.data.gov.uk/id/local-authority-district/22UN,Housing Services,5340 - Communal Central Heating,2308 - Energy Costs - Gas (Including LPG),25/05/2011,1043832-1,510.4,2104620 - Corona Energy Retail 4 Limited,CE APRIL
Tendring DC,http://statistics.data.gov.uk/id/local-authority-district/22UN,Housing Services,5340 - Communal Central Heating,2308 - Energy Costs - Gas (Including LPG),25/05/2011,1043833-1,647.7,2104620 - Corona Energy Retail 4 Limited,6F APRIL 11
Tendring DC,http://statistics.data.gov.uk/id/local-authority-district/22UN,Housing Services,5340 - Communal Central Heating,2308 - Energy Costs - Gas (Including LPG),25/05/2011,1043834-1,608.81,2104620 - Corona Energy Retail 4 Limited,6H APRIL 11
Tendring DC,http://statistics.data.gov.uk/id/local-authority-district/22UN,Housing Services,5340 - Communal Central Heating,2308 - Energy Costs - Gas (Including LPG),25/05/2011,1043835-1,757.85,2104620 - Corona Energy Retail 4 Limited,HC APRIL 11
Tendring DC,http://statistics.data.gov.uk/id/local-authority-district/22UN,Housing Services,5340 - Communal Central Heating,2308 - Energy Costs - Gas (Including LPG),25/05/2011,1043836-1,408.4,2104620 - Corona Energy Retail 4 Limited,KD APRIL 11
Tendring DC,http://statistics.data.gov.uk/id/local-authority-district/22UN,Housing Services,5340 - Communal Central Heating,2308 - Energy Costs - Gas (Including LPG),25/05/2011,1043837-1,462.19,2104620 - Corona Energy Retail 4 Limited,MH APRIL 11
Tendring DC,http://statistics.data.gov.uk/id/local-authority-district/22UN,Housing Services,5340 - Communal Central Heating,2308 - Energy Costs - Gas (Including LPG),25/05/2011,1043838-1,675.73,2104620 - Corona Energy Retail 4 Limited,SH APRIL 11
Tendring DC,http://statistics.data.gov.uk/id/local-authority-district/22UN,Housing Services,5340 - Communal Central Heating,2308 - Energy Costs - Gas (Including LPG),25/05/2011,1043839-1,511.48,2104620 - Corona Energy Retail 4 Limited,VYN H APRIL 11
Tendring DC,http://statistics.data.gov.uk/id/local-authority-district/22UN,Housing Services,5240 - Managing Tenancies,5242 - Tenant Relations,10/05/2011,2084557-1,1190.8,2104177 - Corporate Document Services Ltd,Tendring Reports Iss 2
Tendring DC,http://statistics.data.gov.uk/id/local-authority-district/22UN,Housing Services,5240 - Managing Tenancies,5242 - Tenant Relations,10/05/2011,2084558-1,1031.4,2104177 - Corporate Document Services Ltd,Hopme Fire Safety
Tendring DC,http://statistics.data.gov.uk/id/local-authority-district/22UN,Housing Services,5140 - Homelessness,4683 - Other Homelessness Expenses,17/05/2011,1043484-1,550,REDACTED PERSONAL DATA,REDACTED PERSONAL DATA
Tendring DC,http://statistics.data.gov.uk/id/local-authority-district/22UN,Housing Services,5240 - Managing Tenancies,5242 - Tenant Relations,31/05/2011,1043966-1,10,REDACTED PERSONAL DATA,TENANTS PANEL TRAINING
Tendring DC,http://statistics.data.gov.uk/id/local-authority-district/22UN,Housing Services,5480 - Repair & Maintenance,2068 - Other Minor Equipment Repairs,25/05/2011,1043830-1,185,2100490 - DORMA UK Ltd - Service Division,VYNTONER HOUSE
Tendring DC,http://statistics.data.gov.uk/id/local-authority-district/22UN,Housing Services,5480 - Repair & Maintenance,2017 - Mechanical Equipment /Extract Fans,17/05/2011,1043183-1,520,2100572 - Envirovent Ltd,WEST STREET
Tendring DC,http://statistics.data.gov.uk/id/local-authority-district/22UN,Housing Services,5480 - Repair & Maintenance,2017 - Mechanical Equipment /Extract Fans,25/05/2011,1043639-1,506.42,REDACTED COMMERCIAL CONFIDENTIALITY,REDACTED COMMERCIAL CONFIDENTIALITY
Tendring DC,http://statistics.data.gov.uk/id/local-authority-district/22UN,Housing Services,5480 - Repair & Maintenance,2017 - Mechanical Equipment /Extract Fans,25/05/2011,1043640-1,520,REDACTED COMMERCIAL CONFIDENTIALITY,REDACTED COMMERCIAL CONFIDENTIALITY
Tendring DC,http://statistics.data.gov.uk/id/local-authority-district/22UN,Housing Services,5480 - Repair & Maintenance,2017 - Mechanical Equipment /Extract Fans,25/05/2011,1043641-1,520,REDACTED COMMERCIAL CONFIDENTIALITY,REDACTED COMMERCIAL CONFIDENTIALITY
Tendring DC,http://statistics.data.gov.uk/id/local-authority-district/22UN,Housing Services,5480 - Repair & Maintenance,2057 - Fire Alarms Servicing,25/05/2011,1043856-1,165,2108583 - Firesite,MEAD HOUSE
Tendring DC,http://statistics.data.gov.uk/id/local-authority-district/22UN,Housing Services,5480 - Repair & Maintenance,2057 - Fire Alarms Servicing,25/05/2011,1043857-1,100,2108583 - Firesite,VYNTONER HOUSE
Tendring DC,http://statistics.data.gov.uk/id/local-authority-district/22UN,Housing Services,5480 - Repair & Maintenance,2058 - Fire Alarms Repairs,25/05/2011,1043858-1,50,2108583 - Firesite,ST MARYS COURT
Tendring DC,http://statistics.data.gov.uk/id/local-authority-district/22UN,Housing Services,5480 - Repair & Maintenance,2057 - Fire Alarms Servicing,25/05/2011,1043859-1,100,2108583 - Firesite,CROOKED ELMS
Tendring DC,http://statistics.data.gov.uk/id/local-authority-district/22UN,Housing Services,5480 - Repair & Maintenance,2058 - Fire Alarms Repairs,31/05/2011,2084631-1,80,2108583 - Firesite,CROOKED ELMS
Tendring DC,http://statistics.data.gov.uk/id/local-authority-district/22UN,Housing Services,5480 - Repair & Maintenance,2058 - Fire Alarms Repairs,31/05/2011,2084632-1,50,2108583 - Firesite,KATE DANIELS HOUSE
Tendring DC,http://statistics.data.gov.uk/id/local-authority-district/22UN,Housing Services,5480 - Repair & Maintenance,2057 - Fire Alarms Servicing,31/05/2011,2084633-1,150,2108583 - Firesite,BELMANS COURT
Tendring DC,http://statistics.data.gov.uk/id/local-authority-district/22UN,Housing Services,1240 - Housing Services,4300 - Printing & Stationery,17/05/2011,1043354-1,29.95,2108293 - GB Office Group Ltd,TRODAT 2910 TIME STAMP
Tendring DC,http://statistics.data.gov.uk/id/local-authority-district/22UN,Housing Services,5480 - Repair & Maintenance,2082 - CCTV repairs,31/05/2011,2084634-1,50,2100546 - GCS Alarms,GROOM HOUSE
Tendring DC,http://statistics.data.gov.uk/id/local-authority-district/22UN,Housing Services,5480 - Repair & Maintenance,2018 - Other  Responsive Repairs,25/05/2011,1043840-1,56.2,2108238 - GEM Doors,STOURVIEW AVE
Tendring DC,http://statistics.data.gov.uk/id/local-authority-district/22UN,Housing Services,5480 - Repair & Maintenance,2018 - Other  Responsive Repairs,25/05/2011,1043841-1,26.5,2108238 - GEM Doors,STOURVIEW AVE
Tendring DC,http://statistics.data.gov.uk/id/local-authority-district/22UN,Housing Services,H815 - Re-roofing,C200 - Main Contractor,17/05/2011,1043458-1,16407.35,2101539 - GHB Roofing Ltd,RE-ROOFING
Tendring DC,http://statistics.data.gov.uk/id/local-authority-district/22UN,Housing Services,5480 - Repair & Maintenance,2017 - Mechanical Equipment /Extract Fans,17/05/2011,1043347-1,75,2106272 - Greenleaf Pest Control Services,BELMANS CRT
Tendring DC,http://statistics.data.gov.uk/id/local-authority-district/22UN,Housing Services,5240 - Managing Tenancies,5242 - Tenant Relations,10/05/2011,2084559-1,52,2100604 - Harwich Taxis,29/03 Harwich to Maldon Way & Return
Tendring DC,http://statistics.data.gov.uk/id/local-authority-district/22UN,Housing Services,5240 - Managing Tenancies,5242 - Tenant Relations,31/05/2011,2084665-1,96,2100604 - Harwich Taxis,HARWICH TAXIS
Tendring DC,http://statistics.data.gov.uk/id/local-authority-district/22UN,Housing Services,5140 - Homelessness,4683 - Other Homelessness Expenses,25/05/2011,1043757-1,565.76,REDACTED PERSONAL DATA,REDACTED PERSONAL DATA
Tendring DC,http://statistics.data.gov.uk/id/local-authority-district/22UN,Housing Services,5140 - Homelessness,4683 - Other Homelessness Expenses,25/05/2011,1043756-1,432.17,REDACTED PERSONAL DATA,REDACTED PERSONAL DATA
Tendring DC,http://statistics.data.gov.uk/id/local-authority-district/22UN,Housing Services,H805 - Major Refurbishment of Heating,C200 - Main Contractor,25/05/2011,1043853-1,25,2100667 - Homebase Ltd,GROOM PARK
Tendring DC,http://statistics.data.gov.uk/id/local-authority-district/22UN,Housing Services,5480 - Repair & Maintenance,2064 - Domestic Appliance Repairs,25/05/2011,1043860-1,775,REDACTED COMMERCIAL CONFIDENTIALITY,REDACTED COMMERCIAL CONFIDENTIALITY
Tendring DC,http://statistics.data.gov.uk/id/local-authority-district/22UN,Housing Services,5480 - Repair & Maintenance,2064 - Domestic Appliance Repairs,17/05/2011,1043432-1,20,2100700 - Ian Barker Domestic Appliances,MEAD HSE
Tendring DC,http://statistics.data.gov.uk/id/local-authority-district/22UN,Housing Services,5480 - Repair & Maintenance,2064 - Domestic Appliance Repairs,17/05/2011,1043433-1,44.12,2100700 - Ian Barker Domestic Appliances,HONEYCROFT
Tendring DC,http://statistics.data.gov.uk/id/local-authority-district/22UN,Housing Services,5480 - Repair & Maintenance,2064 - Domestic Appliance Repairs,17/05/2011,1043434-1,107.65,2100700 - Ian Barker Domestic Appliances,ST MARYS CRT
Tendring DC,http://statistics.data.gov.uk/id/local-authority-district/22UN,Housing Services,5480 - Repair & Maintenance,2064 - Domestic Appliance Repairs,17/05/2011,1043435-1,103.48,2100700 - Ian Barker Domestic Appliances,SPENDELLS HSE
Tendring DC,http://statistics.data.gov.uk/id/local-authority-district/22UN,Housing Services,5480 - Repair & Maintenance,2064 - Domestic Appliance Repairs,17/05/2011,1043436-1,88.6,2100700 - Ian Barker Domestic Appliances,HONEYCROFT
Tendring DC,http://statistics.data.gov.uk/id/local-authority-district/22UN,Housing Services,5480 - Repair & Maintenance,2014 - Decoration Allowances,25/05/2011,1043854-1,1212.66,2109778 - ICI Contract Direct,VARIOUS
Tendring DC,http://statistics.data.gov.uk/id/local-authority-district/22UN,Housing Services,5240 - Managing Tenancies,5242 - Tenant Relations,31/05/2011,1043962-1,10,REDACTED PERSONAL DATA,TENANTS PANEL TRAINING
Tendring DC,http://statistics.data.gov.uk/id/local-authority-district/22UN,Housing Services,5480 - Repair & Maintenance,2018 - Other  Responsive Repairs,17/05/2011,1043428-1,50,2100707 - JMC Fabrications,NAYLAND DR
Tendring DC,http://statistics.data.gov.uk/id/local-authority-district/22UN,Housing Services,5480 - Repair & Maintenance,2018 - Other  Responsive Repairs,17/05/2011,1043429-1,85,2100707 - JMC Fabrications,ST MARYS CRT
Tendring DC,http://statistics.data.gov.uk/id/local-authority-district/22UN,Housing Services,5240 - Managing Tenancies,5242 - Tenant Relations,31/05/2011,1043963-1,10,REDACTED PERSONAL DATA,TENANTS PANEL TRAINING
Tendring DC,http://statistics.data.gov.uk/id/local-authority-district/22UN,Housing Services,5240 - Managing Tenancies,5242 - Tenant Relations,10/05/2011,2084576-1,10,REDACTED PERSONAL DATA,Tenants Panel
Tendring DC,http://statistics.data.gov.uk/id/local-authority-district/22UN,Housing Services,5240 - Managing Tenancies,5242 - Tenant Relations,31/05/2011,1043974-1,30,2100728 - Just Flowers,FLOWERS
Tendring DC,http://statistics.data.gov.uk/id/local-authority-district/22UN,Housing Services,5140 - Homelessness,4683 - Other Homelessness Expenses,17/05/2011,1043486-1,450,REDACTED PERSONAL DATA,REDACTED PERSONAL DATA
Tendring DC,http://statistics.data.gov.uk/id/local-authority-district/22UN,Housing Services,5140 - Homelessness,4683 - Other Homelessness Expenses,17/05/2011,1043487-1,675.57,REDACTED PERSONAL DATA,REDACTED PERSONAL DATA
Tendring DC,http://statistics.data.gov.uk/id/local-authority-district/22UN,Housing Services,5240 - Managing Tenancies,4312 - Tenancy Stationery,17/05/2011,1043352-1,391.95,2100729 - Kalamazoo Secure Solutions Ltd,TENANT RECORD CARDS
Tendring DC,http://statistics.data.gov.uk/id/local-authority-district/22UN,Housing Services,1240 - Housing Services,4300 - Printing & Stationery,17/05/2011,1043357-1,24.06,2110099 - Lyreco UK Ltd,STATIONERY APRIL 11
Tendring DC,http://statistics.data.gov.uk/id/local-authority-district/22UN,Housing Services,1240 - Housing Services,4300 - Printing & Stationery,25/05/2011,1043831-1,38.61,2110099 - Lyreco UK Ltd,STATIONERY MAY 2011
Tendring DC,http://statistics.data.gov.uk/id/local-authority-district/22UN,Housing Services,5480 - Repair & Maintenance,6302 - Contract Re-Tender Costs,31/05/2011,2084635-1,340,2100658 - M3 Housing Limited,SOR ANNUAL LICENCE FEE
Tendring DC,http://statistics.data.gov.uk/id/local-authority-district/22UN,Housing Services,5140 - Homelessness,4680 - Bed & Breakfast Accommodation,17/05/2011,1043423-1,140,2100819 - Marine View,REDACTED PERSONAL DATA
Tendring DC,http://statistics.data.gov.uk/id/local-authority-district/22UN,Housing Services,5140 - Homelessness,9032 - Homelessness Accommodation Charges,17/05/2011,1043423-2,-14.18,2100819 - Marine View,REDACTED PERSONAL DATA
Tendring DC,http://statistics.data.gov.uk/id/local-authority-district/22UN,Housing Services,5140 - Homelessness,4680 - Bed & Breakfast Accommodation,17/05/2011,1043424-1,140,2100819 - Marine View,REDACTED PERSONAL DATA
Tendring DC,http://statistics.data.gov.uk/id/local-authority-district/22UN,Housing Services,5140 - Homelessness,9032 - Homelessness Accommodation Charges,17/05/2011,1043424-2,-14.18,2100819 - Marine View,REDACTED PERSONAL DATA
Tendring DC,http://statistics.data.gov.uk/id/local-authority-district/22UN,Housing Services,5140 - Homelessness,4680 - Bed & Breakfast Accommodation,17/05/2011,1043425-1,140,2100819 - Marine View,REDACTED PERSONAL DATA
Tendring DC,http://statistics.data.gov.uk/id/local-authority-district/22UN,Housing Services,5140 - Homelessness,9032 - Homelessness Accommodation Charges,17/05/2011,1043425-2,-14.18,2100819 - Marine View,REDACTED PERSONAL DATA
Tendring DC,http://statistics.data.gov.uk/id/local-authority-district/22UN,Housing Services,5140 - Homelessness,4680 - Bed & Breakfast Accommodation,17/05/2011,1043426-1,400,2100819 - Marine View,REDACTED PERSONAL DATA
Tendring DC,http://statistics.data.gov.uk/id/local-authority-district/22UN,Housing Services,5140 - Homelessness,9032 - Homelessness Accommodation Charges,17/05/2011,1043426-2,-10.15,2100819 - Marine View,REDACTED PERSONAL DATA
Tendring DC,http://statistics.data.gov.uk/id/local-authority-district/22UN,Housing Services,5140 - Homelessness,4680 - Bed & Breakfast Accommodation,17/05/2011,1043427-1,80,2100819 - Marine View,REDACTED PERSONAL DATA
Tendring DC,http://statistics.data.gov.uk/id/local-authority-district/22UN,Housing Services,5140 - Homelessness,9032 - Homelessness Accommodation Charges,17/05/2011,1043427-2,-8.12,2100819 - Marine View,REDACTED PERSONAL DATA
Tendring DC,http://statistics.data.gov.uk/id/local-authority-district/22UN,Housing Services,5140 - Homelessness,4680 - Bed & Breakfast Accommodation,25/05/2011,1043539-1,140,2100819 - Marine View,REDACTED PERSONAL DATA
Tendring DC,http://statistics.data.gov.uk/id/local-authority-district/22UN,Housing Services,5140 - Homelessness,9032 - Homelessness Accommodation Charges,25/05/2011,1043539-2,-14.18,2100819 - Marine View,REDACTED PERSONAL DATA
Tendring DC,http://statistics.data.gov.uk/id/local-authority-district/22UN,Housing Services,5140 - Homelessness,4680 - Bed & Breakfast Accommodation,25/05/2011,1043540-1,560,2100819 - Marine View,REDACTED PERSONAL DATA
Tendring DC,http://statistics.data.gov.uk/id/local-authority-district/22UN,Housing Services,5140 - Homelessness,9032 - Homelessness Accommodation Charges,25/05/2011,1043540-2,-14.18,2100819 - Marine View,REDACTED PERSONAL DATA
Tendring DC,http://statistics.data.gov.uk/id/local-authority-district/22UN,Housing Services,5140 - Homelessness,4680 - Bed & Breakfast Accommodation,25/05/2011,1043541-1,120,2100819 - Marine View,REDACTED PERSONAL DATA
Tendring DC,http://statistics.data.gov.uk/id/local-authority-district/22UN,Housing Services,5140 - Homelessness,9032 - Homelessness Accommodation Charges,25/05/2011,1043541-2,-12.18,2100819 - Marine View,REDACTED PERSONAL DATA
Tendring DC,http://statistics.data.gov.uk/id/local-authority-district/22UN,Housing Services,5240 - Managing Tenancies,5242 - Tenant Relations,10/05/2011,2084581-1,10,REDACTED PERSONAL DATA,Tenants Panel
Tendring DC,http://statistics.data.gov.uk/id/local-authority-district/22UN,Housing Services,9920 - HRA Balance Sheet,B860 - Housing Rents - Cash,03/05/2011,2084438-1,217.54,REDACTED PERSONAL DATA,Rent Refund
Tendring DC,http://statistics.data.gov.uk/id/local-authority-district/22UN,Housing Services,9920 - HRA Balance Sheet,B860 - Housing Rents - Cash,25/05/2011,1043915-1,27.72,REDACTED PERSONAL DATA,RENT REFUND
Tendring DC,http://statistics.data.gov.uk/id/local-authority-district/22UN,Housing Services,9920 - HRA Balance Sheet,B860 - Housing Rents - Cash,17/05/2011,1043334-1,30.39,REDACTED PERSONAL DATA,Rent Refund
Tendring DC,http://statistics.data.gov.uk/id/local-authority-district/22UN,Housing Services,9920 - HRA Balance Sheet,B860 - Housing Rents - Cash,25/05/2011,1043914-1,92.4,REDACTED PERSONAL DATA,RENT REFUND
Tendring DC,http://statistics.data.gov.uk/id/local-authority-district/22UN,Housing Services,9920 - HRA Balance Sheet,B860 - Housing Rents - Cash,10/05/2011,2084584-1,243.95,REDACTED PERSONAL DATA,Rent Refund
Tendring DC,http://statistics.data.gov.uk/id/local-authority-district/22UN,Housing Services,5140 - Homelessness,4683 - Other Homelessness Expenses,17/05/2011,1043483-1,460,REDACTED PERSONAL DATA,REDACTED PERSONAL DATA
Tendring DC,http://statistics.data.gov.uk/id/local-authority-district/22UN,Housing Services,9920 - HRA Balance Sheet,B860 - Housing Rents - Cash,17/05/2011,1043329-1,48.72,REDACTED PERSONAL DATA,Rent Refund
Tendring DC,http://statistics.data.gov.uk/id/local-authority-district/22UN,Housing Services,9920 - HRA Balance Sheet,B860 - Housing Rents - Cash,17/05/2011,1043332-1,35.48,REDACTED PERSONAL DATA,Rent Refund
Tendring DC,http://statistics.data.gov.uk/id/local-authority-district/22UN,Housing Services,9920 - HRA Balance Sheet,B860 - Housing Rents - Cash,10/05/2011,2084588-1,441.94,REDACTED PERSONAL DATA,Rent Refund
Tendring DC,http://statistics.data.gov.uk/id/local-authority-district/22UN,Housing Services,9920 - HRA Balance Sheet,B860 - Housing Rents - Cash,25/05/2011,1043918-1,766.2,REDACTED PERSONAL DATA,RENT REFUND
Tendring DC,http://statistics.data.gov.uk/id/local-authority-district/22UN,Housing Services,9920 - HRA Balance Sheet,B860 - Housing Rents - Cash,17/05/2011,1043331-1,37.36,REDACTED PERSONAL DATA,Rent Refund
Tendring DC,http://statistics.data.gov.uk/id/local-authority-district/22UN,Housing Services,5240 - Managing Tenancies,6620 - Under Occupation Incentive Scheme,25/05/2011,1043793-1,925.29,REDACTED PERSONAL DATA,Underoccupation transfer incentive sheme
Tendring DC,http://statistics.data.gov.uk/id/local-authority-district/22UN,Housing Services,9920 - HRA Balance Sheet,B860 - Housing Rents - Cash,10/05/2011,2084586-1,157.18,REDACTED PERSONAL DATA,Rent Refund
Tendring DC,http://statistics.data.gov.uk/id/local-authority-district/22UN,Housing Services,9920 - HRA Balance Sheet,B860 - Housing Rents - Cash,17/05/2011,1043469-1,93.84,REDACTED PERSONAL DATA,RENT REFUND
Tendring DC,http://statistics.data.gov.uk/id/local-authority-district/22UN,Housing Services,9920 - HRA Balance Sheet,B860 - Housing Rents - Cash,25/05/2011,1043913-1,141.12,REDACTED PERSONAL DATA,RENT REFUND
Tendring DC,http://statistics.data.gov.uk/id/local-authority-district/22UN,Housing Services,9920 - HRA Balance Sheet,B860 - Housing Rents - Cash,31/05/2011,1043952-1,26.61,REDACTED PERSONAL DATA,RENT REFUND
Tendring DC,http://statistics.data.gov.uk/id/local-authority-district/22UN,Housing Services,9920 - HRA Balance Sheet,B860 - Housing Rents - Cash,10/05/2011,2084587-1,128.86,REDACTED PERSONAL DATA,Rent Refund
Tendring DC,http://statistics.data.gov.uk/id/local-authority-district/22UN,Housing Services,9920 - HRA Balance Sheet,B860 - Housing Rents - Cash,25/05/2011,1043909-1,5.03,REDACTED PERSONAL DATA,RENT REFUND
Tendring DC,http://statistics.data.gov.uk/id/local-authority-district/22UN,Housing Services,9920 - HRA Balance Sheet,B860 - Housing Rents - Cash,25/05/2011,1043910-1,17.74,REDACTED PERSONAL DATA,RENT REFUND
Tendring DC,http://statistics.data.gov.uk/id/local-authority-district/22UN,Housing Services,9920 - HRA Balance Sheet,B860 - Housing Rents - Cash,17/05/2011,1043328-1,17.74,REDACTED PERSONAL DATA,RENT REFUND
Tendring DC,http://statistics.data.gov.uk/id/local-authority-district/22UN,Housing Services,9920 - HRA Balance Sheet,B860 - Housing Rents - Cash,25/05/2011,1043917-1,8.28,REDACTED PERSONAL DATA,RENT REFUND
Tendring DC,http://statistics.data.gov.uk/id/local-authority-district/22UN,Housing Services,9920 - HRA Balance Sheet,B860 - Housing Rents - Cash,31/05/2011,1043951-1,967.5,REDACTED PERSONAL DATA,RENT REFUND
Tendring DC,http://statistics.data.gov.uk/id/local-authority-district/22UN,Housing Services,9920 - HRA Balance Sheet,B860 - Housing Rents - Cash,10/05/2011,2084589-1,103.6,REDACTED PERSONAL DATA,Rent Refund
Tendring DC,http://statistics.data.gov.uk/id/local-authority-district/22UN,Housing Services,5240 - Managing Tenancies,5242 - Tenant Relations,31/05/2011,1043961-1,10,REDACTED PERSONAL DATA,TENANTS PANEL TRAINING
Tendring DC,http://statistics.data.gov.uk/id/local-authority-district/22UN,Housing Services,5240 - Managing Tenancies,5242 - Tenant Relations,10/05/2011,2084577-1,10,REDACTED PERSONAL DATA,Tenants Panel
Tendring DC,http://statistics.data.gov.uk/id/local-authority-district/22UN,Housing Services,9920 - HRA Balance Sheet,B860 - Housing Rents - Cash,10/05/2011,2084585-1,315.6,REDACTED PERSONAL DATA,Rent Refund
Tendring DC,http://statistics.data.gov.uk/id/local-authority-district/22UN,Housing Services,9920 - HRA Balance Sheet,B860 - Housing Rents - Cash,17/05/2011,1043327-1,37.36,REDACTED PERSONAL DATA,RENT REFUND
Tendring DC,http://statistics.data.gov.uk/id/local-authority-district/22UN,Housing Services,H810 - Electrical Re-wiring,C200 - Main Contractor,17/05/2011,1043460-1,5304.15,2110096 - MRM Electrical,WORKS AS VALUATION 3
Tendring DC,http://statistics.data.gov.uk/id/local-authority-district/22UN,Housing Services,9920 - HRA Balance Sheet,B860 - Housing Rents - Cash,17/05/2011,1043330-1,171.5,REDACTED PERSONAL DATA,Rent Refund
Tendring DC,http://statistics.data.gov.uk/id/local-authority-district/22UN,Housing Services,5240 - Managing Tenancies,5242 - Tenant Relations,25/05/2011,1043792-1,10,REDACTED PERSONAL DATA,TENANTS PANEL
Tendring DC,http://statistics.data.gov.uk/id/local-authority-district/22UN,Housing Services,5240 - Managing Tenancies,6625 - Tenants Compensation Scheme,25/05/2011,1043794-1,49.99,REDACTED PERSONAL DATA,REIMBURSEMENT
Tendring DC,http://statistics.data.gov.uk/id/local-authority-district/22UN,Housing Services,9920 - HRA Balance Sheet,B860 - Housing Rents - Cash,25/05/2011,1043916-1,6.9,REDACTED PERSONAL DATA,RENT REFUND
Tendring DC,http://statistics.data.gov.uk/id/local-authority-district/22UN,Housing Services,5240 - Managing Tenancies,5242 - Tenant Relations,10/05/2011,2084575-1,10,REDACTED PERSONAL DATA,Tenants Panel
Tendring DC,http://statistics.data.gov.uk/id/local-authority-district/22UN,Housing Services,9920 - HRA Balance Sheet,B860 - Housing Rents - Cash,10/05/2011,2084590-1,534.24,REDACTED PERSONAL DATA,Rent Refund
Tendring DC,http://statistics.data.gov.uk/id/local-authority-district/22UN,Housing Services,9920 - HRA Balance Sheet,B860 - Housing Rents - Cash,17/05/2011,1043333-1,170.7,REDACTED PERSONAL DATA,Rent Refund
Tendring DC,http://statistics.data.gov.uk/id/local-authority-district/22UN,Housing Services,9920 - HRA Balance Sheet,B860 - Housing Rents - Cash,25/05/2011,1043912-1,263.68,REDACTED PERSONAL DATA,RENT REFUND
Tendring DC,http://statistics.data.gov.uk/id/local-authority-district/22UN,Housing Services,9920 - HRA Balance Sheet,B860 - Housing Rents - Cash,03/05/2011,2084432-1,227.92,REDACTED PERSONAL DATA,Rent Refund
Tendring DC,http://statistics.data.gov.uk/id/local-authority-district/22UN,Housing Services,9920 - HRA Balance Sheet,B860 - Housing Rents - Cash,25/05/2011,1043911-1,8.11,REDACTED PERSONAL DATA,RENT REFUND
Tendring DC,http://statistics.data.gov.uk/id/local-authority-district/22UN,Housing Services,5240 - Managing Tenancies,5242 - Tenant Relations,25/05/2011,1043790-1,10,REDACTED PERSONAL DATA,TENANTS PANEL
Tendring DC,http://statistics.data.gov.uk/id/local-authority-district/22UN,Housing Services,5240 - Managing Tenancies,5242 - Tenant Relations,31/05/2011,1043959-1,10,REDACTED PERSONAL DATA,TENANTS PANEL TRAINING
Tendring DC,http://statistics.data.gov.uk/id/local-authority-district/22UN,Housing Services,5240 - Managing Tenancies,5242 - Tenant Relations,10/05/2011,2084582-1,10,REDACTED PERSONAL DATA,Tenants Panel
Tendring DC,http://statistics.data.gov.uk/id/local-authority-district/22UN,Housing Services,5220 - Policy & Management,5930 - Business Planning Expenses,31/05/2011,2084666-1,532.86,2105490 - Northgate Housing User Group,NORTHGATE EXP 10
Tendring DC,http://statistics.data.gov.uk/id/local-authority-district/22UN,Housing Services,5260 - Rent Collection And Accounting,4757 - IT External Charges,25/05/2011,1043851-1,210.03,2107153 - Northgate Information Solutions UK Limited,EXPENSES 2010
Tendring DC,http://statistics.data.gov.uk/id/local-authority-district/22UN,Housing Services,5140 - Homelessness,4683 - Other Homelessness Expenses,17/05/2011,1043355-1,140,2107920 - NowMedical,MEDICAL ADVICE APRILL 11
Tendring DC,http://statistics.data.gov.uk/id/local-authority-district/22UN,Housing Services,5240 - Managing Tenancies,4644 - Energy Performance Certificate Costs,25/05/2011,1043855-1,1086.84,REDACTED COMMERCIAL CONFIDENTIALITY,REDACTED COMMERCIAL CONFIDENTIALITY
Tendring DC,http://statistics.data.gov.uk/id/local-authority-district/22UN,Housing Services,5140 - Homelessness,4683 - Other Homelessness Expenses,17/05/2011,1043485-1,575,REDACTED PERSONAL DATA,REDACTED PERSONAL DATA
Tendring DC,http://statistics.data.gov.uk/id/local-authority-district/22UN,Housing Services,5140 - Homelessness,4683 - Other Homelessness Expenses,25/05/2011,1043750-1,695,REDACTED PERSONAL DATA,REDACTED PERSONAL DATA
Tendring DC,http://statistics.data.gov.uk/id/local-authority-district/22UN,Housing Services,5140 - Homelessness,4683 - Other Homelessness Expenses,25/05/2011,1043751-1,272,REDACTED PERSONAL DATA,REDACTED PERSONAL DATA
Tendring DC,http://statistics.data.gov.uk/id/local-authority-district/22UN,Housing Services,5140 - Homelessness,4683 - Other Homelessness Expenses,25/05/2011,1043752-1,440,REDACTED PERSONAL DATA,REDACTED PERSONAL DATA
Tendring DC,http://statistics.data.gov.uk/id/local-authority-district/22UN,Housing Services,5140 - Homelessness,4683 - Other Homelessness Expenses,25/05/2011,1043753-1,800,REDACTED PERSONAL DATA,REDACTED PERSONAL DATA
Tendring DC,http://statistics.data.gov.uk/id/local-authority-district/22UN,Housing Services,5240 - Managing Tenancies,5242 - Tenant Relations,10/05/2011,2084580-1,10,REDACTED PERSONAL DATA,Tenants Panel
Tendring DC,http://statistics.data.gov.uk/id/local-authority-district/22UN,Housing Services,5480 - Repair & Maintenance,2003 - Responsive Maintenance - Brickwork And Blockwork,17/05/2011,1043181-1,128,REDACTED PERSONAL DATA,HARBOUR CRESCENT
Tendring DC,http://statistics.data.gov.uk/id/local-authority-district/22UN,Housing Services,5480 - Repair & Maintenance,2003 - Responsive Maintenance - Brickwork And Blockwork,17/05/2011,1043181-2,42,REDACTED PERSONAL DATA,HARBOUR CRESCENT
Tendring DC,http://statistics.data.gov.uk/id/local-authority-district/22UN,Housing Services,5480 - Repair & Maintenance,2017 - Mechanical Equipment /Extract Fans,17/05/2011,1043182-1,40,REDACTED PERSONAL DATA,FRONKS RD
Tendring DC,http://statistics.data.gov.uk/id/local-authority-district/22UN,Housing Services,5480 - Repair & Maintenance,2017 - Mechanical Equipment /Extract Fans,17/05/2011,1043182-2,68,REDACTED PERSONAL DATA,FRONKS RD
Tendring DC,http://statistics.data.gov.uk/id/local-authority-district/22UN,Housing Services,5480 - Repair & Maintenance,2017 - Mechanical Equipment /Extract Fans,31/05/2011,1044022-1,190,REDACTED PERSONAL DATA,THE GREEN
Tendring DC,http://statistics.data.gov.uk/id/local-authority-district/22UN,Housing Services,5480 - Repair & Maintenance,2017 - Mechanical Equipment /Extract Fans,31/05/2011,1044022-2,116,REDACTED PERSONAL DATA,THE GREEN
Tendring DC,http://statistics.data.gov.uk/id/local-authority-district/22UN,Housing Services,H710 - Selected Improvements,C200 - Main Contractor,25/05/2011,1043808-1,18225,2101837 - Phelan Construction Ltd,STAIR TOWERS-VALUATION NO.1
Tendring DC,http://statistics.data.gov.uk/id/local-authority-district/22UN,Housing Services,5240 - Managing Tenancies,5248 - Estate Management Expenses,25/05/2011,1043843-1,45,2107884 - Pinnacle Essex,SCHOOL COURT
Tendring DC,http://statistics.data.gov.uk/id/local-authority-district/22UN,Housing Services,5240 - Managing Tenancies,5248 - Estate Management Expenses,25/05/2011,1043844-1,45,2107884 - Pinnacle Essex,LANGHAM DRIVE
Tendring DC,http://statistics.data.gov.uk/id/local-authority-district/22UN,Housing Services,5240 - Managing Tenancies,5248 - Estate Management Expenses,25/05/2011,1043845-1,36,2107884 - Pinnacle Essex,boxted ave
Tendring DC,http://statistics.data.gov.uk/id/local-authority-district/22UN,Housing Services,5240 - Managing Tenancies,5248 - Estate Management Expenses,10/05/2011,2084563-1,45,2107884 - Pinnacle Essex,Remove Paint Grove Ave/Walton
Tendring DC,http://statistics.data.gov.uk/id/local-authority-district/22UN,Housing Services,5240 - Managing Tenancies,5248 - Estate Management Expenses,10/05/2011,2084564-1,243,2107884 - Pinnacle Essex,Cleaning @ 10-16 @ 45-61 Stourview
Tendring DC,http://statistics.data.gov.uk/id/local-authority-district/22UN,Housing Services,5240 - Managing Tenancies,5248 - Estate Management Expenses,10/05/2011,1043041-1,46.6,2101187 - Roalco Limited,REDACTED PERSONAL DATA
Tendring DC,http://statistics.data.gov.uk/id/local-authority-district/22UN,Housing Services,5240 - Managing Tenancies,5248 - Estate Management Expenses,10/05/2011,1043042-1,36.6,2101187 - Roalco Limited,BOXTED AVE C-O-S
Tendring DC,http://statistics.data.gov.uk/id/local-authority-district/22UN,Housing Services,5480 - Repair & Maintenance,2000 - Responsive Maintenance - Miscellaneous,17/05/2011,1043454-1,1764.81,2101187 - Roalco Limited,ROALCO
Tendring DC,http://statistics.data.gov.uk/id/local-authority-district/22UN,Housing Services,5480 - Repair & Maintenance,2000 - Responsive Maintenance - Miscellaneous,17/05/2011,1043454-2,111315.69,2101187 - Roalco Limited,ROALCO
Tendring DC,http://statistics.data.gov.uk/id/local-authority-district/22UN,Housing Services,5240 - Managing Tenancies,5248 - Estate Management Expenses,25/05/2011,1043818-1,45,2101187 - Roalco Limited,COLCHESTER RD
Tendring DC,http://statistics.data.gov.uk/id/local-authority-district/22UN,Housing Services,5240 - Managing Tenancies,5242 - Tenant Relations,31/05/2011,1043960-1,10,REDACTED PERSONAL DATA,TENANTS PANEL TRAINING
Tendring DC,http://statistics.data.gov.uk/id/local-authority-district/22UN,Housing Services,5240 - Managing Tenancies,5242 - Tenant Relations,10/05/2011,2084578-1,10,REDACTED PERSONAL DATA,Tenants Panel
Tendring DC,http://statistics.data.gov.uk/id/local-authority-district/22UN,Housing Services,5240 - Managing Tenancies,5242 - Tenant Relations,17/05/2011,1043353-1,53.24,2101139 - Royal Mail,LARGE RESPONSE POST
Tendring DC,http://statistics.data.gov.uk/id/local-authority-district/22UN,Housing Services,5240 - Managing Tenancies,5242 - Tenant Relations,10/05/2011,2084560-1,35,2101139 - Royal Mail,Large Post
Tendring DC,http://statistics.data.gov.uk/id/local-authority-district/22UN,Housing Services,5220 - Policy & Management,5930 - Business Planning Expenses,25/05/2011,1043846-1,1000,REDACTED COMMERCIAL CONFIDENTIALITY,REDACTED COMMERCIAL CONFIDENTIALITY
Tendring DC,http://statistics.data.gov.uk/id/local-authority-district/22UN,Housing Services,5220 - Policy & Management,5253 - HRA Health & Safety Expenses,31/05/2011,2084668-1,23.35,2102268 - St John Ambulance Supplies,FIRST AID EQUIPMENT
Tendring DC,http://statistics.data.gov.uk/id/local-authority-district/22UN,Housing Services,5220 - Policy & Management,5253 - HRA Health & Safety Expenses,31/05/2011,2084668-2,8.33,2102268 - St John Ambulance Supplies,FIRST AID EQUIPMENT
Tendring DC,http://statistics.data.gov.uk/id/local-authority-district/22UN,Housing Services,5480 - Repair & Maintenance,2069 - Lift/Stairlift Servicing,17/05/2011,1043453-1,1484.23,2101360 - Stannah Lift Services Limited,LIFT SERVICE & REAPIR
Tendring DC,http://statistics.data.gov.uk/id/local-authority-district/22UN,Housing Services,5480 - Repair & Maintenance,2070 - Lift/Stairlift Repairs,17/05/2011,1043453-2,560.64,2101360 - Stannah Lift Services Limited,LIFT SERVICE & REAPIR
Tendring DC,http://statistics.data.gov.uk/id/local-authority-district/22UN,Housing Services,5240 - Managing Tenancies,5242 - Tenant Relations,31/05/2011,1043964-1,10,REDACTED PERSONAL DATA,TENANTS PANEL TRAINING
Tendring DC,http://statistics.data.gov.uk/id/local-authority-district/22UN,Housing Services,5240 - Managing Tenancies,5242 - Tenant Relations,10/05/2011,2084573-1,10,REDACTED PERSONAL DATA,Tenants Panel
Tendring DC,http://statistics.data.gov.uk/id/local-authority-district/22UN,Housing Services,5240 - Managing Tenancies,5242 - Tenant Relations,17/05/2011,1043430-1,18,2101331 - Stour Taxis,TAXI RETURN TRIP
Tendring DC,http://statistics.data.gov.uk/id/local-authority-district/22UN,Housing Services,5240 - Managing Tenancies,5242 - Tenant Relations,17/05/2011,1043431-1,32,2101331 - Stour Taxis,TAXI RETURN TRIP
Tendring DC,http://statistics.data.gov.uk/id/local-authority-district/22UN,Housing Services,5240 - Managing Tenancies,5242 - Tenant Relations,31/05/2011,1043975-1,32,2101331 - Stour Taxis,5 SVC TO WEELEY RETURN
Tendring DC,http://statistics.data.gov.uk/id/local-authority-district/22UN,Housing Services,5480 - Repair & Maintenance,2016 - PVCu Window And Door Repairs,10/05/2011,1043045-1,907.42,2101444 - Thermoshield Windows Ltd,REDACTED PERSONAL DATA
Tendring DC,http://statistics.data.gov.uk/id/local-authority-district/22UN,Housing Services,5480 - Repair & Maintenance,2016 - PVCu Window And Door Repairs,10/05/2011,1043046-1,25.22,2101444 - Thermoshield Windows Ltd,REDACTED PERSONAL DATA
Tendring DC,http://statistics.data.gov.uk/id/local-authority-district/22UN,Housing Services,5480 - Repair & Maintenance,2106 - Grounds Maintenance Horticultural Svs Programmed,10/05/2011,1043047-1,90.41,2101444 - Thermoshield Windows Ltd,REDACTED PERSONAL DATA
Tendring DC,http://statistics.data.gov.uk/id/local-authority-district/22UN,Housing Services,5480 - Repair & Maintenance,2016 - PVCu Window And Door Repairs,10/05/2011,1043048-1,27.79,2101444 - Thermoshield Windows Ltd,REDACTED PERSONAL DATA
Tendring DC,http://statistics.data.gov.uk/id/local-authority-district/22UN,Housing Services,5480 - Repair & Maintenance,2016 - PVCu Window And Door Repairs,10/05/2011,1043049-1,50.44,2101444 - Thermoshield Windows Ltd,REDACTED PERSONAL DATA
Tendring DC,http://statistics.data.gov.uk/id/local-authority-district/22UN,Housing Services,5480 - Repair & Maintenance,2016 - PVCu Window And Door Repairs,10/05/2011,1043050-1,100.87,2101444 - Thermoshield Windows Ltd,REDACTED PERSONAL DATA
Tendring DC,http://statistics.data.gov.uk/id/local-authority-district/22UN,Housing Services,5480 - Repair & Maintenance,2016 - PVCu Window And Door Repairs,10/05/2011,1043051-1,30.81,2101444 - Thermoshield Windows Ltd,REDACTED PERSONAL DATA
Tendring DC,http://statistics.data.gov.uk/id/local-authority-district/22UN,Housing Services,5480 - Repair & Maintenance,2016 - PVCu Window And Door Repairs,10/05/2011,1043052-1,90.41,2101444 - Thermoshield Windows Ltd,REDACTED PERSONAL DATA
Tendring DC,http://statistics.data.gov.uk/id/local-authority-district/22UN,Housing Services,5480 - Repair & Maintenance,2016 - PVCu Window And Door Repairs,10/05/2011,1043053-1,72.29,2101444 - Thermoshield Windows Ltd,REDACTED PERSONAL DATA
Tendring DC,http://statistics.data.gov.uk/id/local-authority-district/22UN,Housing Services,5480 - Repair & Maintenance,2016 - PVCu Window And Door Repairs,10/05/2011,1043054-1,58.95,2101444 - Thermoshield Windows Ltd,REDACTED PERSONAL DATA
Tendring DC,http://statistics.data.gov.uk/id/local-authority-district/22UN,Housing Services,5480 - Repair & Maintenance,2016 - PVCu Window And Door Repairs,10/05/2011,1043055-1,310.66,2101444 - Thermoshield Windows Ltd,REDACTED PERSONAL DATA
Tendring DC,http://statistics.data.gov.uk/id/local-authority-district/22UN,Housing Services,5480 - Repair & Maintenance,2016 - PVCu Window And Door Repairs,10/05/2011,1043056-1,79.73,2101444 - Thermoshield Windows Ltd,REDACTED PERSONAL DATA
Tendring DC,http://statistics.data.gov.uk/id/local-authority-district/22UN,Housing Services,5480 - Repair & Maintenance,2016 - PVCu Window And Door Repairs,10/05/2011,1043057-1,12.46,2101444 - Thermoshield Windows Ltd,REDACTED PERSONAL DATA
Tendring DC,http://statistics.data.gov.uk/id/local-authority-district/22UN,Housing Services,5480 - Repair & Maintenance,2016 - PVCu Window And Door Repairs,10/05/2011,1043058-1,49.82,2101444 - Thermoshield Windows Ltd,REDACTED PERSONAL DATA
Tendring DC,http://statistics.data.gov.uk/id/local-authority-district/22UN,Housing Services,5480 - Repair & Maintenance,2016 - PVCu Window And Door Repairs,17/05/2011,1043161-1,129.31,2101444 - Thermoshield Windows Ltd,ELM GROVE
Tendring DC,http://statistics.data.gov.uk/id/local-authority-district/22UN,Housing Services,5480 - Repair & Maintenance,2016 - PVCu Window And Door Repairs,17/05/2011,1043162-1,146.03,2101444 - Thermoshield Windows Ltd,SPARROWS FARM CORNER
Tendring DC,http://statistics.data.gov.uk/id/local-authority-district/22UN,Housing Services,5480 - Repair & Maintenance,2016 - PVCu Window And Door Repairs,17/05/2011,1043163-1,75.4,2101444 - Thermoshield Windows Ltd,HONEYCROFT
Tendring DC,http://statistics.data.gov.uk/id/local-authority-district/22UN,Housing Services,5480 - Repair & Maintenance,2016 - PVCu Window And Door Repairs,17/05/2011,1043164-1,79.73,2101444 - Thermoshield Windows Ltd,CLARKES RD
Tendring DC,http://statistics.data.gov.uk/id/local-authority-district/22UN,Housing Services,5480 - Repair & Maintenance,2016 - PVCu Window And Door Repairs,17/05/2011,1043165-1,147.77,2101444 - Thermoshield Windows Ltd,ST CLAIRS RD
Tendring DC,http://statistics.data.gov.uk/id/local-authority-district/22UN,Housing Services,5480 - Repair & Maintenance,2016 - PVCu Window And Door Repairs,17/05/2011,1043166-1,238.4,2101444 - Thermoshield Windows Ltd,COTSWOLD ROAD
Tendring DC,http://statistics.data.gov.uk/id/local-authority-district/22UN,Housing Services,5480 - Repair & Maintenance,2016 - PVCu Window And Door Repairs,17/05/2011,1043167-1,36.32,2101444 - Thermoshield Windows Ltd,DEVERE ESTATE
Tendring DC,http://statistics.data.gov.uk/id/local-authority-district/22UN,Housing Services,5480 - Repair & Maintenance,2016 - PVCu Window And Door Repairs,17/05/2011,1043168-1,41.57,2101444 - Thermoshield Windows Ltd,PONDTAIL COURT
Tendring DC,http://statistics.data.gov.uk/id/local-authority-district/22UN,Housing Services,5480 - Repair & Maintenance,2016 - PVCu Window And Door Repairs,17/05/2011,1043169-1,9.44,2101444 - Thermoshield Windows Ltd,MEAD HOUSE
Tendring DC,http://statistics.data.gov.uk/id/local-authority-district/22UN,Housing Services,5480 - Repair & Maintenance,2016 - PVCu Window And Door Repairs,17/05/2011,1043170-1,12.46,2101444 - Thermoshield Windows Ltd,MEAD HOUSE
Tendring DC,http://statistics.data.gov.uk/id/local-authority-district/22UN,Housing Services,5480 - Repair & Maintenance,2016 - PVCu Window And Door Repairs,17/05/2011,1043171-1,64.47,2101444 - Thermoshield Windows Ltd,LANGHAM DRIVE
Tendring DC,http://statistics.data.gov.uk/id/local-authority-district/22UN,Housing Services,5480 - Repair & Maintenance,2016 - PVCu Window And Door Repairs,17/05/2011,1043172-1,27.79,2101444 - Thermoshield Windows Ltd,CHAPEL RD
Tendring DC,http://statistics.data.gov.uk/id/local-authority-district/22UN,Housing Services,5480 - Repair & Maintenance,2016 - PVCu Window And Door Repairs,17/05/2011,1043173-1,34.68,2101444 - Thermoshield Windows Ltd,MASON RD
Tendring DC,http://statistics.data.gov.uk/id/local-authority-district/22UN,Housing Services,5480 - Repair & Maintenance,2016 - PVCu Window And Door Repairs,17/05/2011,1043174-1,392.01,2101444 - Thermoshield Windows Ltd,ALTON PARK RD
Tendring DC,http://statistics.data.gov.uk/id/local-authority-district/22UN,Housing Services,5480 - Repair & Maintenance,2016 - PVCu Window And Door Repairs,17/05/2011,1043175-1,137.83,2101444 - Thermoshield Windows Ltd,SEAVIEW AVE
Tendring DC,http://statistics.data.gov.uk/id/local-authority-district/22UN,Housing Services,5480 - Repair & Maintenance,2016 - PVCu Window And Door Repairs,17/05/2011,1043176-1,29.87,2101444 - Thermoshield Windows Ltd,BERIFFE PLACE
Tendring DC,http://statistics.data.gov.uk/id/local-authority-district/22UN,Housing Services,5480 - Repair & Maintenance,2016 - PVCu Window And Door Repairs,17/05/2011,1043177-1,41.57,2101444 - Thermoshield Windows Ltd,LANGHAM DRIVE
Tendring DC,http://statistics.data.gov.uk/id/local-authority-district/22UN,Housing Services,5480 - Repair & Maintenance,2016 - PVCu Window And Door Repairs,17/05/2011,1043178-1,52.29,2101444 - Thermoshield Windows Ltd,NAYLAND DRIVE
Tendring DC,http://statistics.data.gov.uk/id/local-authority-district/22UN,Housing Services,5480 - Repair & Maintenance,2016 - PVCu Window And Door Repairs,17/05/2011,1043179-1,23.22,2101444 - Thermoshield Windows Ltd,MARKET STREET
Tendring DC,http://statistics.data.gov.uk/id/local-authority-district/22UN,Housing Services,5480 - Repair & Maintenance,2016 - PVCu Window And Door Repairs,17/05/2011,1043180-1,99.56,2101444 - Thermoshield Windows Ltd,MAIN ROAD
Tendring DC,http://statistics.data.gov.uk/id/local-authority-district/22UN,Housing Services,5480 - Repair & Maintenance,2016 - PVCu Window And Door Repairs,17/05/2011,1043184-1,78.2,2101444 - Thermoshield Windows Ltd,COLCHESTER RD
Tendring DC,http://statistics.data.gov.uk/id/local-authority-district/22UN,Housing Services,5480 - Repair & Maintenance,2016 - PVCu Window And Door Repairs,17/05/2011,1043185-1,17.77,2101444 - Thermoshield Windows Ltd,COLCHESTER RD
Tendring DC,http://statistics.data.gov.uk/id/local-authority-district/22UN,Housing Services,5480 - Repair & Maintenance,2016 - PVCu Window And Door Repairs,17/05/2011,1043186-1,79.73,2101444 - Thermoshield Windows Ltd,WARGRAVE RD
Tendring DC,http://statistics.data.gov.uk/id/local-authority-district/22UN,Housing Services,5480 - Repair & Maintenance,2016 - PVCu Window And Door Repairs,17/05/2011,1043187-1,34.84,2101444 - Thermoshield Windows Ltd,GROOM PARK
Tendring DC,http://statistics.data.gov.uk/id/local-authority-district/22UN,Housing Services,5480 - Repair & Maintenance,2016 - PVCu Window And Door Repairs,17/05/2011,1043188-1,29.23,2101444 - Thermoshield Windows Ltd,GROOM PARK
Tendring DC,http://statistics.data.gov.uk/id/local-authority-district/22UN,Housing Services,5480 - Repair & Maintenance,2016 - PVCu Window And Door Repairs,17/05/2011,1043189-1,24.93,2101444 - Thermoshield Windows Ltd,TANNER CLOSE
Tendring DC,http://statistics.data.gov.uk/id/local-authority-district/22UN,Housing Services,5480 - Repair & Maintenance,2016 - PVCu Window And Door Repairs,17/05/2011,1043190-1,18.35,2101444 - Thermoshield Windows Ltd,LANGHAM DRIVE
Tendring DC,http://statistics.data.gov.uk/id/local-authority-district/22UN,Housing Services,5480 - Repair & Maintenance,2016 - PVCu Window And Door Repairs,17/05/2011,1043191-1,119.09,2101444 - Thermoshield Windows Ltd,WINDMILL PARK
Tendring DC,http://statistics.data.gov.uk/id/local-authority-district/22UN,Housing Services,5480 - Repair & Maintenance,2016 - PVCu Window And Door Repairs,17/05/2011,1043192-1,184.69,2101444 - Thermoshield Windows Ltd,ABDY AVENUE
Tendring DC,http://statistics.data.gov.uk/id/local-authority-district/22UN,Housing Services,5480 - Repair & Maintenance,2016 - PVCu Window And Door Repairs,17/05/2011,1043193-1,49.82,2101444 - Thermoshield Windows Ltd,HADLEIGH ROAD
Tendring DC,http://statistics.data.gov.uk/id/local-authority-district/22UN,Housing Services,5480 - Repair & Maintenance,2016 - PVCu Window And Door Repairs,17/05/2011,1043194-1,17.77,2101444 - Thermoshield Windows Ltd,RIGBY AVE
Tendring DC,http://statistics.data.gov.uk/id/local-authority-district/22UN,Housing Services,5480 - Repair & Maintenance,2016 - PVCu Window And Door Repairs,17/05/2011,1043195-1,89.55,2101444 - Thermoshield Windows Ltd,NAYLAND DRIVE
Tendring DC,http://statistics.data.gov.uk/id/local-authority-district/22UN,Housing Services,5480 - Repair & Maintenance,2016 - PVCu Window And Door Repairs,25/05/2011,1043631-1,22.64,2101444 - Thermoshield Windows Ltd,LAVENHAM CLOSE
Tendring DC,http://statistics.data.gov.uk/id/local-authority-district/22UN,Housing Services,5480 - Repair & Maintenance,2016 - PVCu Window And Door Repairs,25/05/2011,1043632-1,216.48,2101444 - Thermoshield Windows Ltd,BYNG CRESCENT
Tendring DC,http://statistics.data.gov.uk/id/local-authority-district/22UN,Housing Services,5480 - Repair & Maintenance,2016 - PVCu Window And Door Repairs,25/05/2011,1043633-1,212.87,2101444 - Thermoshield Windows Ltd,ANCHOR ROAD
Tendring DC,http://statistics.data.gov.uk/id/local-authority-district/22UN,Housing Services,5480 - Repair & Maintenance,2016 - PVCu Window And Door Repairs,25/05/2011,1043634-1,122.29,2101444 - Thermoshield Windows Ltd,KINGS QUAY STREET
Tendring DC,http://statistics.data.gov.uk/id/local-authority-district/22UN,Housing Services,5480 - Repair & Maintenance,2016 - PVCu Window And Door Repairs,25/05/2011,1043635-1,27.79,2101444 - Thermoshield Windows Ltd,INGRAMS PIECE
Tendring DC,http://statistics.data.gov.uk/id/local-authority-district/22UN,Housing Services,5480 - Repair & Maintenance,2016 - PVCu Window And Door Repairs,25/05/2011,1043636-1,15.37,2101444 - Thermoshield Windows Ltd,BOXTED AVE
Tendring DC,http://statistics.data.gov.uk/id/local-authority-district/22UN,Housing Services,5480 - Repair & Maintenance,2016 - PVCu Window And Door Repairs,25/05/2011,1043637-1,23.22,2101444 - Thermoshield Windows Ltd,FLATFORD DRIVE
Tendring DC,http://statistics.data.gov.uk/id/local-authority-district/22UN,Housing Services,5480 - Repair & Maintenance,2016 - PVCu Window And Door Repairs,25/05/2011,1043638-1,22.29,2101444 - Thermoshield Windows Ltd,ALBERT STREET
Tendring DC,http://statistics.data.gov.uk/id/local-authority-district/22UN,Housing Services,5480 - Repair & Maintenance,2016 - PVCu Window And Door Repairs,31/05/2011,1043992-1,55.07,2101444 - Thermoshield Windows Ltd,KING GEORGES AVE
Tendring DC,http://statistics.data.gov.uk/id/local-authority-district/22UN,Housing Services,5480 - Repair & Maintenance,2016 - PVCu Window And Door Repairs,31/05/2011,1043993-1,24.93,2101444 - Thermoshield Windows Ltd,HOLBROOK CLOSE
Tendring DC,http://statistics.data.gov.uk/id/local-authority-district/22UN,Housing Services,5480 - Repair & Maintenance,2016 - PVCu Window And Door Repairs,31/05/2011,1043994-1,24.93,2101444 - Thermoshield Windows Ltd,BEAUMONT RD
Tendring DC,http://statistics.data.gov.uk/id/local-authority-district/22UN,Housing Services,5480 - Repair & Maintenance,2016 - PVCu Window And Door Repairs,31/05/2011,1043995-1,39.55,2101444 - Thermoshield Windows Ltd,BELLFIELD AVE
Tendring DC,http://statistics.data.gov.uk/id/local-authority-district/22UN,Housing Services,5480 - Repair & Maintenance,2016 - PVCu Window And Door Repairs,31/05/2011,1043996-1,39.55,2101444 - Thermoshield Windows Ltd,BELLFIELD AVE
Tendring DC,http://statistics.data.gov.uk/id/local-authority-district/22UN,Housing Services,5480 - Repair & Maintenance,2016 - PVCu Window And Door Repairs,31/05/2011,1043997-1,25.55,2101444 - Thermoshield Windows Ltd,WESTMORLANDS CLOSE
Tendring DC,http://statistics.data.gov.uk/id/local-authority-district/22UN,Housing Services,5480 - Repair & Maintenance,2016 - PVCu Window And Door Repairs,31/05/2011,1043998-1,27.91,2101444 - Thermoshield Windows Ltd,OLD SCHOOL LANE
Tendring DC,http://statistics.data.gov.uk/id/local-authority-district/22UN,Housing Services,5480 - Repair & Maintenance,2016 - PVCu Window And Door Repairs,31/05/2011,1043999-1,164.76,2101444 - Thermoshield Windows Ltd,BELLFIELD CLOSE
Tendring DC,http://statistics.data.gov.uk/id/local-authority-district/22UN,Housing Services,5480 - Repair & Maintenance,2016 - PVCu Window And Door Repairs,31/05/2011,1044000-1,52.29,2101444 - Thermoshield Windows Ltd,HILLTOP CRESCENT
Tendring DC,http://statistics.data.gov.uk/id/local-authority-district/22UN,Housing Services,5480 - Repair & Maintenance,2016 - PVCu Window And Door Repairs,31/05/2011,1044001-1,79.73,2101444 - Thermoshield Windows Ltd,WARGRAVE ROAD
Tendring DC,http://statistics.data.gov.uk/id/local-authority-district/22UN,Housing Services,5480 - Repair & Maintenance,2016 - PVCu Window And Door Repairs,31/05/2011,1044002-1,113.45,2101444 - Thermoshield Windows Ltd,OXFORD ROAD
Tendring DC,http://statistics.data.gov.uk/id/local-authority-district/22UN,Housing Services,5480 - Repair & Maintenance,2016 - PVCu Window And Door Repairs,31/05/2011,1044003-1,90.41,2101444 - Thermoshield Windows Ltd,BOXTED AVE
Tendring DC,http://statistics.data.gov.uk/id/local-authority-district/22UN,Housing Services,5480 - Repair & Maintenance,2016 - PVCu Window And Door Repairs,31/05/2011,1044004-1,80,2101444 - Thermoshield Windows Ltd,POLSTEAD WAY
Tendring DC,http://statistics.data.gov.uk/id/local-authority-district/22UN,Housing Services,5480 - Repair & Maintenance,2016 - PVCu Window And Door Repairs,31/05/2011,1044005-1,12.18,2101444 - Thermoshield Windows Ltd,SPENDELLS HSE
Tendring DC,http://statistics.data.gov.uk/id/local-authority-district/22UN,Housing Services,5480 - Repair & Maintenance,2016 - PVCu Window And Door Repairs,31/05/2011,1044006-1,85.34,2101444 - Thermoshield Windows Ltd,POLSTEAD WAY
Tendring DC,http://statistics.data.gov.uk/id/local-authority-district/22UN,Housing Services,5480 - Repair & Maintenance,2016 - PVCu Window And Door Repairs,31/05/2011,1044007-1,130.41,2101444 - Thermoshield Windows Ltd,NORTH ROAD
Tendring DC,http://statistics.data.gov.uk/id/local-authority-district/22UN,Housing Services,5480 - Repair & Maintenance,2016 - PVCu Window And Door Repairs,31/05/2011,1044008-1,39.55,2101444 - Thermoshield Windows Ltd,BAYVIEW CRESCENT
Tendring DC,http://statistics.data.gov.uk/id/local-authority-district/22UN,Housing Services,5480 - Repair & Maintenance,2016 - PVCu Window And Door Repairs,31/05/2011,1044009-1,9.44,2101444 - Thermoshield Windows Ltd,SPENDELLS HOUSE
Tendring DC,http://statistics.data.gov.uk/id/local-authority-district/22UN,Housing Services,5480 - Repair & Maintenance,2016 - PVCu Window And Door Repairs,31/05/2011,1044010-1,49.82,2101444 - Thermoshield Windows Ltd,PORTER WAY
Tendring DC,http://statistics.data.gov.uk/id/local-authority-district/22UN,Housing Services,5480 - Repair & Maintenance,2016 - PVCu Window And Door Repairs,31/05/2011,1044011-1,62.23,2101444 - Thermoshield Windows Ltd,WALDEGRAVE WAY
Tendring DC,http://statistics.data.gov.uk/id/local-authority-district/22UN,Housing Services,5480 - Repair & Maintenance,2016 - PVCu Window And Door Repairs,31/05/2011,1044012-1,23.22,2101444 - Thermoshield Windows Ltd,GROVE AVE
Tendring DC,http://statistics.data.gov.uk/id/local-authority-district/22UN,Housing Services,5480 - Repair & Maintenance,2016 - PVCu Window And Door Repairs,31/05/2011,1044013-1,25.22,2101444 - Thermoshield Windows Ltd,LAUREL AVE
Tendring DC,http://statistics.data.gov.uk/id/local-authority-district/22UN,Housing Services,5480 - Repair & Maintenance,2016 - PVCu Window And Door Repairs,31/05/2011,1044014-1,39.55,2101444 - Thermoshield Windows Ltd,HARBOUR CRESCENT
Tendring DC,http://statistics.data.gov.uk/id/local-authority-district/22UN,Housing Services,5480 - Repair & Maintenance,2016 - PVCu Window And Door Repairs,31/05/2011,1044015-1,27.79,2101444 - Thermoshield Windows Ltd,LANGHAM DRIVE
Tendring DC,http://statistics.data.gov.uk/id/local-authority-district/22UN,Housing Services,5480 - Repair & Maintenance,2016 - PVCu Window And Door Repairs,31/05/2011,1044016-1,12.18,2101444 - Thermoshield Windows Ltd,BLENHEIM RD
Tendring DC,http://statistics.data.gov.uk/id/local-authority-district/22UN,Housing Services,5480 - Repair & Maintenance,2016 - PVCu Window And Door Repairs,31/05/2011,1044017-1,121.35,2101444 - Thermoshield Windows Ltd,NAYLAND DRIVE
Tendring DC,http://statistics.data.gov.uk/id/local-authority-district/22UN,Housing Services,5480 - Repair & Maintenance,2016 - PVCu Window And Door Repairs,31/05/2011,1044018-1,62.23,2101444 - Thermoshield Windows Ltd,WALDEGRAVE WAY
Tendring DC,http://statistics.data.gov.uk/id/local-authority-district/22UN,Housing Services,5480 - Repair & Maintenance,2016 - PVCu Window And Door Repairs,31/05/2011,1044019-1,85.54,2101444 - Thermoshield Windows Ltd,CLAYTON RD
Tendring DC,http://statistics.data.gov.uk/id/local-authority-district/22UN,Housing Services,5480 - Repair & Maintenance,2016 - PVCu Window And Door Repairs,31/05/2011,1044020-1,17.61,2101444 - Thermoshield Windows Ltd,GROVE AVE
Tendring DC,http://statistics.data.gov.uk/id/local-authority-district/22UN,Housing Services,5480 - Repair & Maintenance,2016 - PVCu Window And Door Repairs,31/05/2011,1044021-1,115.7,2101444 - Thermoshield Windows Ltd,REDACTED PERSONAL DATA
Tendring DC,http://statistics.data.gov.uk/id/local-authority-district/22UN,Housing Services,5480 - Repair & Maintenance,2016 - PVCu Window And Door Repairs,10/05/2011,2084462-1,44.42,2101444 - Thermoshield Windows Ltd,REDACTED PERSONAL DATA
Tendring DC,http://statistics.data.gov.uk/id/local-authority-district/22UN,Housing Services,5480 - Repair & Maintenance,2016 - PVCu Window And Door Repairs,10/05/2011,2084537-1,17.05,2101444 - Thermoshield Windows Ltd,REDACTED PERSONAL DATA
Tendring DC,http://statistics.data.gov.uk/id/local-authority-district/22UN,Housing Services,5480 - Repair & Maintenance,2016 - PVCu Window And Door Repairs,10/05/2011,2084538-1,42.23,2101444 - Thermoshield Windows Ltd,REDACTED PERSONAL DATA
Tendring DC,http://statistics.data.gov.uk/id/local-authority-district/22UN,Housing Services,5480 - Repair & Maintenance,2016 - PVCu Window And Door Repairs,10/05/2011,2084539-1,4.57,2101444 - Thermoshield Windows Ltd,REDACTED PERSONAL DATA
Tendring DC,http://statistics.data.gov.uk/id/local-authority-district/22UN,Housing Services,5480 - Repair & Maintenance,2016 - PVCu Window And Door Repairs,10/05/2011,2084540-1,32.66,2101444 - Thermoshield Windows Ltd,REDACTED PERSONAL DATA
Tendring DC,http://statistics.data.gov.uk/id/local-authority-district/22UN,Housing Services,5480 - Repair & Maintenance,2016 - PVCu Window And Door Repairs,10/05/2011,2084541-1,7.59,2101444 - Thermoshield Windows Ltd,REDACTED PERSONAL DATA
Tendring DC,http://statistics.data.gov.uk/id/local-authority-district/22UN,Housing Services,5480 - Repair & Maintenance,2016 - PVCu Window And Door Repairs,10/05/2011,2084542-1,17.77,2101444 - Thermoshield Windows Ltd,REDACTED PERSONAL DATA
Tendring DC,http://statistics.data.gov.uk/id/local-authority-district/22UN,Housing Services,5480 - Repair & Maintenance,2016 - PVCu Window And Door Repairs,10/05/2011,2084543-1,809.05,REDACTED PERSONAL DATA,REDACTED PERSONAL DATA
Tendring DC,http://statistics.data.gov.uk/id/local-authority-district/22UN,Housing Services,5480 - Repair & Maintenance,2016 - PVCu Window And Door Repairs,10/05/2011,2084544-1,10.37,2101444 - Thermoshield Windows Ltd,REDACTED PERSONAL DATA
Tendring DC,http://statistics.data.gov.uk/id/local-authority-district/22UN,Housing Services,5480 - Repair & Maintenance,2016 - PVCu Window And Door Repairs,10/05/2011,2084545-1,280.6,2101444 - Thermoshield Windows Ltd,REDACTED PERSONAL DATA
Tendring DC,http://statistics.data.gov.uk/id/local-authority-district/22UN,Housing Services,5480 - Repair & Maintenance,2016 - PVCu Window And Door Repairs,10/05/2011,2084546-1,26.85,2101444 - Thermoshield Windows Ltd,REDACTED PERSONAL DATA
Tendring DC,http://statistics.data.gov.uk/id/local-authority-district/22UN,Housing Services,5480 - Repair & Maintenance,2016 - PVCu Window And Door Repairs,10/05/2011,2084547-1,34.68,2101444 - Thermoshield Windows Ltd,REDACTED PERSONAL DATA
Tendring DC,http://statistics.data.gov.uk/id/local-authority-district/22UN,Housing Services,5480 - Repair & Maintenance,2016 - PVCu Window And Door Repairs,10/05/2011,2084548-1,88.57,2101444 - Thermoshield Windows Ltd,REDACTED PERSONAL DATA
Tendring DC,http://statistics.data.gov.uk/id/local-authority-district/22UN,Housing Services,5480 - Repair & Maintenance,2016 - PVCu Window And Door Repairs,10/05/2011,2084549-1,39.55,2101444 - Thermoshield Windows Ltd,REDACTED PERSONAL DATA
Tendring DC,http://statistics.data.gov.uk/id/local-authority-district/22UN,Housing Services,5480 - Repair & Maintenance,2016 - PVCu Window And Door Repairs,10/05/2011,2084550-1,17.77,2101444 - Thermoshield Windows Ltd,Tanner - Close
Tendring DC,http://statistics.data.gov.uk/id/local-authority-district/22UN,Housing Services,5480 - Repair & Maintenance,2016 - PVCu Window And Door Repairs,10/05/2011,2084551-1,23.22,2101444 - Thermoshield Windows Ltd,REDACTED PERSONAL DATA
Tendring DC,http://statistics.data.gov.uk/id/local-authority-district/22UN,Housing Services,5480 - Repair & Maintenance,2016 - PVCu Window And Door Repairs,10/05/2011,2084552-1,34.68,2101444 - Thermoshield Windows Ltd,REDACTED PERSONAL DATA
Tendring DC,http://statistics.data.gov.uk/id/local-authority-district/22UN,Housing Services,5480 - Repair & Maintenance,2016 - PVCu Window And Door Repairs,10/05/2011,2084553-1,34.68,2101444 - Thermoshield Windows Ltd,REDACTED PERSONAL DATA
Tendring DC,http://statistics.data.gov.uk/id/local-authority-district/22UN,Housing Services,5480 - Repair & Maintenance,2016 - PVCu Window And Door Repairs,10/05/2011,2084554-1,23.22,2101444 - Thermoshield Windows Ltd,REDACTED PERSONAL DATA
Tendring DC,http://statistics.data.gov.uk/id/local-authority-district/22UN,Housing Services,5480 - Repair & Maintenance,2016 - PVCu Window And Door Repairs,10/05/2011,2084555-1,40.41,2101444 - Thermoshield Windows Ltd,REDACTED PERSONAL DATA
Tendring DC,http://statistics.data.gov.uk/id/local-authority-district/22UN,Housing Services,5480 - Repair & Maintenance,2016 - PVCu Window And Door Repairs,10/05/2011,2084556-1,13.82,2101444 - Thermoshield Windows Ltd,REDACTED PERSONAL DATA
Tendring DC,http://statistics.data.gov.uk/id/local-authority-district/22UN,Housing Services,5140 - Homelessness,4683 - Other Homelessness Expenses,17/05/2011,1043356-1,25.15,2111282 - Tollgate Medical Centre,REDACTED PERSONAL DATA
Tendring DC,http://statistics.data.gov.uk/id/local-authority-district/22UN,Housing Services,5240 - Managing Tenancies,5242 - Tenant Relations,10/05/2011,2084579-1,10,REDACTED PERSONAL DATA,Tenants Panel
Tendring DC,http://statistics.data.gov.uk/id/local-authority-district/22UN,Housing Services,1240 - Housing Services,4714 - Telephones - Officers Rentals Reimbursed,10/05/2011,2084566-1,1.17,2101522 - Vodafone Corporate,Vodafone April 2011
Tendring DC,http://statistics.data.gov.uk/id/local-authority-district/22UN,Housing Services,1240 - Housing Services,4714 - Telephones - Officers Rentals Reimbursed,10/05/2011,2084566-2,408.79,2101522 - Vodafone Corporate,Vodafone April 2011
Tendring DC,http://statistics.data.gov.uk/id/local-authority-district/22UN,Housing Services,5480 - Repair & Maintenance,2096 - Asbestos testing/removal,17/05/2011,1043345-1,1250,2103956 - Walther Environmental Ltd,HARWICH RD
Tendring DC,http://statistics.data.gov.uk/id/local-authority-district/22UN,Housing Services,5240 - Managing Tenancies,5242 - Tenant Relations,10/05/2011,1043059-1,75,2101523 - Walton Taxis,GREENFIELDS TO WEELEY & WIX RETURN
Tendring DC,http://statistics.data.gov.uk/id/local-authority-district/22UN,Housing Services,5240 - Managing Tenancies,5242 - Tenant Relations,17/05/2011,1043351-1,22,2100887 - Weston's Taxis,WARGRAVE RD TO WEELEY RETURN
Tendring DC,http://statistics.data.gov.uk/id/local-authority-district/22UN,Housing Services,1240 - Housing Services,4300 - Printing & Stationery,17/05/2011,1043153-1,80,2107546 - XMA Limited,INKJET CARTS
Tendring DC,http://statistics.data.gov.uk/id/local-authority-district/22UN,Human Resources and Customer Services,1880 - Office Accommodation Expenses,2100 - Building Repairs,03/05/2011,1042985-1,102,REDACTED COMMERCIAL CONFIDENTIALITY,REDACTED COMMERCIAL CONFIDENTIALITY
Tendring DC,http://statistics.data.gov.uk/id/local-authority-district/22UN,Human Resources and Customer Services,1880 - Office Accommodation Expenses,2100 - Building Repairs,17/05/2011,1043300-1,124,REDACTED COMMERCIAL CONFIDENTIALITY,REDACTED COMMERCIAL CONFIDENTIALITY
Tendring DC,http://statistics.data.gov.uk/id/local-authority-district/22UN,Human Resources and Customer Services,1880 - Office Accommodation Expenses,2100 - Building Repairs,17/05/2011,1043371-1,550,REDACTED PERSONAL DATA,REDACTED PERSONAL DATA
Tendring DC,http://statistics.data.gov.uk/id/local-authority-district/22UN,Human Resources and Customer Services,1880 - Office Accommodation Expenses,2100 - Building Repairs,03/05/2011,1042988-1,20.12,REDACTED PERSONAL DATA,REDACTED PERSONAL DATA
Tendring DC,http://statistics.data.gov.uk/id/local-authority-district/22UN,Human Resources and Customer Services,1880 - Office Accommodation Expenses,4080 - Materials & Consumables,25/05/2011,1043897-1,24.47,REDACTED COMMERCIAL CONFIDENTIALITY,REDACTED COMMERCIAL CONFIDENTIALITY
Tendring DC,http://statistics.data.gov.uk/id/local-authority-district/22UN,Human Resources and Customer Services,1880 - Office Accommodation Expenses,4080 - Materials & Consumables,31/05/2011,1044055-1,4.96,2100099 - B & Q Trade Account,BQ
Tendring DC,http://statistics.data.gov.uk/id/local-authority-district/22UN,Human Resources and Customer Services,1880 - Office Accommodation Expenses,4080 - Materials & Consumables,31/05/2011,1044056-1,79.17,2100099 - B & Q Trade Account,BQ
Tendring DC,http://statistics.data.gov.uk/id/local-authority-district/22UN,Human Resources and Customer Services,1810 - Manpower Planning Summary,4460 - Legal & Professional Expenses,25/05/2011,1043498-1,621,REDACTED COMMERCIAL CONFIDENTIALITY,REDACTED COMMERCIAL CONFIDENTIALITY
Tendring DC,http://statistics.data.gov.uk/id/local-authority-district/22UN,Human Resources and Customer Services,1810 - Manpower Planning Summary,4460 - Legal & Professional Expenses,25/05/2011,1043499-1,659.5,REDACTED COMMERCIAL CONFIDENTIALITY,REDACTED COMMERCIAL CONFIDENTIALITY
Tendring DC,http://statistics.data.gov.uk/id/local-authority-district/22UN,Human Resources and Customer Services,1880 - Office Accommodation Expenses,2304 - Energy Costs - Electricity,25/05/2011,1043556-1,91.27,REDACTED COMMERCIAL CONFIDENTIALITY,REDACTED COMMERCIAL CONFIDENTIALITY
Tendring DC,http://statistics.data.gov.uk/id/local-authority-district/22UN,Human Resources and Customer Services,1860 - Depots General,2304 - Energy Costs - Electricity,25/05/2011,1043556-10,120.58,REDACTED COMMERCIAL CONFIDENTIALITY,REDACTED COMMERCIAL CONFIDENTIALITY
Tendring DC,http://statistics.data.gov.uk/id/local-authority-district/22UN,Human Resources and Customer Services,1880 - Office Accommodation Expenses,2304 - Energy Costs - Electricity,25/05/2011,1043556-2,40.36,REDACTED COMMERCIAL CONFIDENTIALITY,REDACTED COMMERCIAL CONFIDENTIALITY
Tendring DC,http://statistics.data.gov.uk/id/local-authority-district/22UN,Human Resources and Customer Services,1880 - Office Accommodation Expenses,2304 - Energy Costs - Electricity,25/05/2011,1043556-3,83.8,REDACTED COMMERCIAL CONFIDENTIALITY,REDACTED COMMERCIAL CONFIDENTIALITY
Tendring DC,http://statistics.data.gov.uk/id/local-authority-district/22UN,Human Resources and Customer Services,1880 - Office Accommodation Expenses,2304 - Energy Costs - Electricity,25/05/2011,1043556-4,544.86,REDACTED COMMERCIAL CONFIDENTIALITY,REDACTED COMMERCIAL CONFIDENTIALITY
Tendring DC,http://statistics.data.gov.uk/id/local-authority-district/22UN,Human Resources and Customer Services,1860 - Depots General,2304 - Energy Costs - Electricity,25/05/2011,1043556-5,112.89,REDACTED COMMERCIAL CONFIDENTIALITY,REDACTED COMMERCIAL CONFIDENTIALITY
Tendring DC,http://statistics.data.gov.uk/id/local-authority-district/22UN,Human Resources and Customer Services,1880 - Office Accommodation Expenses,2304 - Energy Costs - Electricity,25/05/2011,1043556-6,71.32,REDACTED COMMERCIAL CONFIDENTIALITY,REDACTED COMMERCIAL CONFIDENTIALITY
Tendring DC,http://statistics.data.gov.uk/id/local-authority-district/22UN,Human Resources and Customer Services,1880 - Office Accommodation Expenses,2304 - Energy Costs - Electricity,25/05/2011,1043556-7,73.75,REDACTED COMMERCIAL CONFIDENTIALITY,REDACTED COMMERCIAL CONFIDENTIALITY
Tendring DC,http://statistics.data.gov.uk/id/local-authority-district/22UN,Human Resources and Customer Services,1880 - Office Accommodation Expenses,2304 - Energy Costs - Electricity,25/05/2011,1043556-8,899.48,REDACTED COMMERCIAL CONFIDENTIALITY,REDACTED COMMERCIAL CONFIDENTIALITY
Tendring DC,http://statistics.data.gov.uk/id/local-authority-district/22UN,Human Resources and Customer Services,1880 - Office Accommodation Expenses,2304 - Energy Costs - Electricity,25/05/2011,1043556-9,1102.49,REDACTED COMMERCIAL CONFIDENTIALITY,REDACTED COMMERCIAL CONFIDENTIALITY
Tendring DC,http://statistics.data.gov.uk/id/local-authority-district/22UN,Human Resources and Customer Services,1840 - Central Telephone Service,4710 - Telephones - Charges,25/05/2011,1043896-1,6261.22,REDACTED COMMERCIAL CONFIDENTIALITY,REDACTED COMMERCIAL CONFIDENTIALITY
Tendring DC,http://statistics.data.gov.uk/id/local-authority-district/22UN,Human Resources and Customer Services,1560 - Cashiers,4710 - Telephones - Charges,31/05/2011,2084683-1,407.6,REDACTED COMMERCIAL CONFIDENTIALITY,REDACTED COMMERCIAL CONFIDENTIALITY
Tendring DC,http://statistics.data.gov.uk/id/local-authority-district/22UN,Human Resources and Customer Services,1040 - Regeneration Services,4730 - Fax Machine,31/05/2011,2084683-10,40.38,REDACTED COMMERCIAL CONFIDENTIALITY,REDACTED COMMERCIAL CONFIDENTIALITY
Tendring DC,http://statistics.data.gov.uk/id/local-authority-district/22UN,Human Resources and Customer Services,1600 - Technical and Procurement - Technical Services,4710 - Telephones - Charges,31/05/2011,2084683-11,38.83,REDACTED COMMERCIAL CONFIDENTIALITY,REDACTED COMMERCIAL CONFIDENTIALITY
Tendring DC,http://statistics.data.gov.uk/id/local-authority-district/22UN,Human Resources and Customer Services,6480 - Emergency Planning,4710 - Telephones - Charges,31/05/2011,2084683-12,76.03,REDACTED COMMERCIAL CONFIDENTIALITY,REDACTED COMMERCIAL CONFIDENTIALITY
Tendring DC,http://statistics.data.gov.uk/id/local-authority-district/22UN,Human Resources and Customer Services,1580 - Benefits & Revenues,4718 - Fixed Communication Lines,31/05/2011,2084683-2,139.56,REDACTED COMMERCIAL CONFIDENTIALITY,REDACTED COMMERCIAL CONFIDENTIALITY
Tendring DC,http://statistics.data.gov.uk/id/local-authority-district/22UN,Human Resources and Customer Services,4780 - Rodent & Pest Control,4710 - Telephones - Charges,31/05/2011,2084683-3,142.02,REDACTED COMMERCIAL CONFIDENTIALITY,REDACTED COMMERCIAL CONFIDENTIALITY
Tendring DC,http://statistics.data.gov.uk/id/local-authority-district/22UN,Human Resources and Customer Services,4680 - Abandoned Vehicles,4597 - Hired Services - Payments to Contractors,31/05/2011,2084683-4,87.82,REDACTED COMMERCIAL CONFIDENTIALITY,REDACTED COMMERCIAL CONFIDENTIALITY
Tendring DC,http://statistics.data.gov.uk/id/local-authority-district/22UN,Human Resources and Customer Services,1880 - Office Accommodation Expenses,4632 - Security,31/05/2011,2084683-5,553.09,REDACTED COMMERCIAL CONFIDENTIALITY,REDACTED COMMERCIAL CONFIDENTIALITY
Tendring DC,http://statistics.data.gov.uk/id/local-authority-district/22UN,Human Resources and Customer Services,1840 - Central Telephone Service,4710 - Telephones - Charges,31/05/2011,2084683-6,123.66,REDACTED COMMERCIAL CONFIDENTIALITY,REDACTED COMMERCIAL CONFIDENTIALITY
Tendring DC,http://statistics.data.gov.uk/id/local-authority-district/22UN,Human Resources and Customer Services,1661 - Other Apportionable Overheads - L & A,4700 - Postage,31/05/2011,2084683-7,38.85,REDACTED COMMERCIAL CONFIDENTIALITY,REDACTED COMMERCIAL CONFIDENTIALITY
Tendring DC,http://statistics.data.gov.uk/id/local-authority-district/22UN,Human Resources and Customer Services,1320 - Print Unit,4710 - Telephones - Charges,31/05/2011,2084683-8,49.06,REDACTED COMMERCIAL CONFIDENTIALITY,REDACTED COMMERCIAL CONFIDENTIALITY
Tendring DC,http://statistics.data.gov.uk/id/local-authority-district/22UN,Human Resources and Customer Services,7620 - Air Show,4710 - Telephones - Charges,31/05/2011,2084683-9,161.62,REDACTED COMMERCIAL CONFIDENTIALITY,REDACTED COMMERCIAL CONFIDENTIALITY
Tendring DC,http://statistics.data.gov.uk/id/local-authority-district/22UN,Human Resources and Customer Services,1422 - Contact Centre,4752 - Computer - Operating Systems Maintenance,17/05/2011,1043374-1,41130,REDACTED COMMERCIAL CONFIDENTIALITY,REDACTED COMMERCIAL CONFIDENTIALITY
Tendring DC,http://statistics.data.gov.uk/id/local-authority-district/22UN,Human Resources and Customer Services,1840 - Central Telephone Service,4752 - Computer - Operating Systems Maintenance,17/05/2011,1043374-2,21110,REDACTED COMMERCIAL CONFIDENTIALITY,REDACTED COMMERCIAL CONFIDENTIALITY
Tendring DC,http://statistics.data.gov.uk/id/local-authority-district/22UN,Human Resources and Customer Services,1760 - IT Direct Service Costs,4715 - Data Communication Charge,17/05/2011,1043374-3,5222.58,REDACTED COMMERCIAL CONFIDENTIALITY,REDACTED COMMERCIAL CONFIDENTIALITY
Tendring DC,http://statistics.data.gov.uk/id/local-authority-district/22UN,Human Resources and Customer Services,8150 - Office Cleaning,4080 - Materials & Consumables,03/05/2011,1042983-1,317.49,REDACTED COMMERCIAL CONFIDENTIALITY,REDACTED COMMERCIAL CONFIDENTIALITY
Tendring DC,http://statistics.data.gov.uk/id/local-authority-district/22UN,Human Resources and Customer Services,8150 - Office Cleaning,4080 - Materials & Consumables,03/05/2011,1042984-1,114.32,REDACTED COMMERCIAL CONFIDENTIALITY,REDACTED COMMERCIAL CONFIDENTIALITY
Tendring DC,http://statistics.data.gov.uk/id/local-authority-district/22UN,Human Resources and Customer Services,8150 - Office Cleaning,4080 - Materials & Consumables,10/05/2011,1043028-1,38.35,REDACTED COMMERCIAL CONFIDENTIALITY,REDACTED COMMERCIAL CONFIDENTIALITY
Tendring DC,http://statistics.data.gov.uk/id/local-authority-district/22UN,Human Resources and Customer Services,8150 - Office Cleaning,4080 - Materials & Consumables,17/05/2011,1043373-1,65.92,REDACTED COMMERCIAL CONFIDENTIALITY,REDACTED COMMERCIAL CONFIDENTIALITY
Tendring DC,http://statistics.data.gov.uk/id/local-authority-district/22UN,Human Resources and Customer Services,8150 - Office Cleaning,4080 - Materials & Consumables,25/05/2011,1043581-1,278.52,2101624 - Bunzl,BUNZL
Tendring DC,http://statistics.data.gov.uk/id/local-authority-district/22UN,Human Resources and Customer Services,8150 - Office Cleaning,4080 - Materials & Consumables,10/05/2011,2084464-1,250.79,REDACTED COMMERCIAL CONFIDENTIALITY,REDACTED COMMERCIAL CONFIDENTIALITY
Tendring DC,http://statistics.data.gov.uk/id/local-authority-district/22UN,Human Resources and Customer Services,1880 - Office Accommodation Expenses,4080 - Materials & Consumables,10/05/2011,1043025-1,10.6,REDACTED COMMERCIAL CONFIDENTIALITY,REDACTED COMMERCIAL CONFIDENTIALITY
Tendring DC,http://statistics.data.gov.uk/id/local-authority-district/22UN,Human Resources and Customer Services,1804 - Long Service Scheme,5400 - Awards & Gifts,03/05/2011,1043740-1,110.99,REDACTED COMMERCIAL CONFIDENTIALITY,REDACTED COMMERCIAL CONFIDENTIALITY
Tendring DC,http://statistics.data.gov.uk/id/local-authority-district/22UN,Human Resources and Customer Services,1803 - Workforce Development,1700 - Training - Courses,03/05/2011,1043740-2,84.64,REDACTED COMMERCIAL CONFIDENTIALITY,REDACTED COMMERCIAL CONFIDENTIALITY
Tendring DC,http://statistics.data.gov.uk/id/local-authority-district/22UN,Human Resources and Customer Services,6620 - Corporate Management - General,5190 - Bank Commission Charges,03/05/2011,1043740-3,2,REDACTED COMMERCIAL CONFIDENTIALITY,REDACTED COMMERCIAL CONFIDENTIALITY
Tendring DC,http://statistics.data.gov.uk/id/local-authority-district/22UN,Human Resources and Customer Services,1880 - Office Accommodation Expenses,2100 - Building Repairs,17/05/2011,1043260-1,66,REDACTED COMMERCIAL CONFIDENTIALITY,REDACTED COMMERCIAL CONFIDENTIALITY
Tendring DC,http://statistics.data.gov.uk/id/local-authority-district/22UN,Human Resources and Customer Services,1880 - Office Accommodation Expenses,2100 - Building Repairs,17/05/2011,1043261-1,38,REDACTED COMMERCIAL CONFIDENTIALITY,REDACTED COMMERCIAL CONFIDENTIALITY
Tendring DC,http://statistics.data.gov.uk/id/local-authority-district/22UN,Human Resources and Customer Services,1860 - Depots General,2100 - Building Repairs,25/05/2011,1043628-1,204.82,REDACTED COMMERCIAL CONFIDENTIALITY,REDACTED COMMERCIAL CONFIDENTIALITY
Tendring DC,http://statistics.data.gov.uk/id/local-authority-district/22UN,Human Resources and Customer Services,1880 - Office Accommodation Expenses,2100 - Building Repairs,25/05/2011,1043629-1,97.29,REDACTED COMMERCIAL CONFIDENTIALITY,REDACTED COMMERCIAL CONFIDENTIALITY
Tendring DC,http://statistics.data.gov.uk/id/local-authority-district/22UN,Human Resources and Customer Services,1880 - Office Accommodation Expenses,2308 - Energy Costs - Gas (Including LPG),25/05/2011,1043492-1,86.37,REDACTED COMMERCIAL CONFIDENTIALITY,REDACTED COMMERCIAL CONFIDENTIALITY
Tendring DC,http://statistics.data.gov.uk/id/local-authority-district/22UN,Human Resources and Customer Services,1880 - Office Accommodation Expenses,2308 - Energy Costs - Gas (Including LPG),25/05/2011,1043493-1,47.94,REDACTED COMMERCIAL CONFIDENTIALITY,REDACTED COMMERCIAL CONFIDENTIALITY
Tendring DC,http://statistics.data.gov.uk/id/local-authority-district/22UN,Human Resources and Customer Services,1880 - Office Accommodation Expenses,2308 - Energy Costs - Gas (Including LPG),25/05/2011,1043494-1,28.94,REDACTED COMMERCIAL CONFIDENTIALITY,REDACTED COMMERCIAL CONFIDENTIALITY
Tendring DC,http://statistics.data.gov.uk/id/local-authority-district/22UN,Human Resources and Customer Services,1880 - Office Accommodation Expenses,2308 - Energy Costs - Gas (Including LPG),25/05/2011,1043495-1,345.2,REDACTED COMMERCIAL CONFIDENTIALITY,REDACTED COMMERCIAL CONFIDENTIALITY
Tendring DC,http://statistics.data.gov.uk/id/local-authority-district/22UN,Human Resources and Customer Services,6160 - Princes Theatre,2308 - Energy Costs - Gas (Including LPG),25/05/2011,1043495-2,38.36,REDACTED COMMERCIAL CONFIDENTIALITY,REDACTED COMMERCIAL CONFIDENTIALITY
Tendring DC,http://statistics.data.gov.uk/id/local-authority-district/22UN,Human Resources and Customer Services,6460 - Career Track,4688 - Career Track Exam Fees,03/05/2011,1042987-1,30,REDACTED COMMERCIAL CONFIDENTIALITY,REDACTED COMMERCIAL CONFIDENTIALITY
Tendring DC,http://statistics.data.gov.uk/id/local-authority-district/22UN,Human Resources and Customer Services,1880 - Office Accommodation Expenses,2100 - Building Repairs,17/05/2011,1043368-1,68.48,REDACTED COMMERCIAL CONFIDENTIALITY,REDACTED COMMERCIAL CONFIDENTIALITY
Tendring DC,http://statistics.data.gov.uk/id/local-authority-district/22UN,Human Resources and Customer Services,1880 - Office Accommodation Expenses,2100 - Building Repairs,17/05/2011,1043369-1,43.98,REDACTED COMMERCIAL CONFIDENTIALITY,REDACTED COMMERCIAL CONFIDENTIALITY
Tendring DC,http://statistics.data.gov.uk/id/local-authority-district/22UN,Human Resources and Customer Services,1860 - Depots General,2100 - Building Repairs,17/05/2011,1043370-1,68.48,REDACTED COMMERCIAL CONFIDENTIALITY,REDACTED COMMERCIAL CONFIDENTIALITY
Tendring DC,http://statistics.data.gov.uk/id/local-authority-district/22UN,Human Resources and Customer Services,1880 - Office Accommodation Expenses,2304 - Energy Costs - Electricity,17/05/2011,1043401-1,3700.92,REDACTED COMMERCIAL CONFIDENTIALITY,REDACTED COMMERCIAL CONFIDENTIALITY
Tendring DC,http://statistics.data.gov.uk/id/local-authority-district/22UN,Human Resources and Customer Services,6160 - Princes Theatre,2304 - Energy Costs - Electricity,17/05/2011,1043401-2,411.21,REDACTED COMMERCIAL CONFIDENTIALITY,REDACTED COMMERCIAL CONFIDENTIALITY
Tendring DC,http://statistics.data.gov.uk/id/local-authority-district/22UN,Human Resources and Customer Services,6460 - Career Track,4688 - Career Track Exam Fees,03/05/2011,1042974-1,170,REDACTED COMMERCIAL CONFIDENTIALITY,REDACTED COMMERCIAL CONFIDENTIALITY
Tendring DC,http://statistics.data.gov.uk/id/local-authority-district/22UN,Human Resources and Customer Services,1420 - Human Resources & Customer Services,4880 - Subscriptions Paid,31/05/2011,2084686-1,157,REDACTED COMMERCIAL CONFIDENTIALITY,REDACTED COMMERCIAL CONFIDENTIALITY
Tendring DC,http://statistics.data.gov.uk/id/local-authority-district/22UN,Human Resources and Customer Services,1880 - Office Accommodation Expenses,2100 - Building Repairs,17/05/2011,1043372-1,574.58,REDACTED COMMERCIAL CONFIDENTIALITY,REDACTED COMMERCIAL CONFIDENTIALITY
Tendring DC,http://statistics.data.gov.uk/id/local-authority-district/22UN,Human Resources and Customer Services,1807 - Recruitment & Relocation,1500 - Advertising - Recruitment,25/05/2011,1043491-1,1142.4,REDACTED COMMERCIAL CONFIDENTIALITY,REDACTED COMMERCIAL CONFIDENTIALITY
Tendring DC,http://statistics.data.gov.uk/id/local-authority-district/22UN,Human Resources and Customer Services,1880 - Office Accommodation Expenses,2100 - Building Repairs,17/05/2011,1043269-1,-274.17,REDACTED COMMERCIAL CONFIDENTIALITY,REDACTED COMMERCIAL CONFIDENTIALITY
Tendring DC,http://statistics.data.gov.uk/id/local-authority-district/22UN,Human Resources and Customer Services,1860 - Depots General,4632 - Security,17/05/2011,1043301-1,418,2100546 - GCS Alarms,GCS ALARMS
Tendring DC,http://statistics.data.gov.uk/id/local-authority-district/22UN,Human Resources and Customer Services,1880 - Office Accommodation Expenses,2100 - Building Repairs,25/05/2011,1043580-1,1635,REDACTED COMMERCIAL CONFIDENTIALITY,REDACTED COMMERCIAL CONFIDENTIALITY
Tendring DC,http://statistics.data.gov.uk/id/local-authority-district/22UN,Human Resources and Customer Services,1808 - Medical Fees,1610 - Counselling,17/05/2011,1043367-1,560,REDACTED COMMERCIAL CONFIDENTIALITY,REDACTED COMMERCIAL CONFIDENTIALITY
Tendring DC,http://statistics.data.gov.uk/id/local-authority-district/22UN,Human Resources and Customer Services,1880 - Office Accommodation Expenses,2100 - Building Repairs,10/05/2011,1043027-1,75,REDACTED COMMERCIAL CONFIDENTIALITY,REDACTED COMMERCIAL CONFIDENTIALITY
Tendring DC,http://statistics.data.gov.uk/id/local-authority-district/22UN,Human Resources and Customer Services,6460 - Career Track,4688 - Career Track Exam Fees,17/05/2011,1043366-1,30,REDACTED COMMERCIAL CONFIDENTIALITY,REDACTED COMMERCIAL CONFIDENTIALITY
Tendring DC,http://statistics.data.gov.uk/id/local-authority-district/22UN,Human Resources and Customer Services,1880 - Office Accommodation Expenses,4446 - Bulk Bin Collection,31/05/2011,2084684-1,22.22,REDACTED COMMERCIAL CONFIDENTIALITY,REDACTED COMMERCIAL CONFIDENTIALITY
Tendring DC,http://statistics.data.gov.uk/id/local-authority-district/22UN,Human Resources and Customer Services,1880 - Office Accommodation Expenses,4446 - Bulk Bin Collection,31/05/2011,2084684-2,11.11,REDACTED COMMERCIAL CONFIDENTIALITY,REDACTED COMMERCIAL CONFIDENTIALITY
Tendring DC,http://statistics.data.gov.uk/id/local-authority-district/22UN,Human Resources and Customer Services,1880 - Office Accommodation Expenses,4446 - Bulk Bin Collection,31/05/2011,2084684-3,22.22,REDACTED COMMERCIAL CONFIDENTIALITY,REDACTED COMMERCIAL CONFIDENTIALITY
Tendring DC,http://statistics.data.gov.uk/id/local-authority-district/22UN,Human Resources and Customer Services,1880 - Office Accommodation Expenses,4446 - Bulk Bin Collection,31/05/2011,2084684-4,11.11,REDACTED COMMERCIAL CONFIDENTIALITY,REDACTED COMMERCIAL CONFIDENTIALITY
Tendring DC,http://statistics.data.gov.uk/id/local-authority-district/22UN,Human Resources and Customer Services,1880 - Office Accommodation Expenses,4446 - Bulk Bin Collection,31/05/2011,2084684-5,93.13,REDACTED COMMERCIAL CONFIDENTIALITY,REDACTED COMMERCIAL CONFIDENTIALITY
Tendring DC,http://statistics.data.gov.uk/id/local-authority-district/22UN,Human Resources and Customer Services,4820 - Public Conveniences,4080 - Materials & Consumables,31/05/2011,2084684-6,33.33,REDACTED COMMERCIAL CONFIDENTIALITY,REDACTED COMMERCIAL CONFIDENTIALITY
Tendring DC,http://statistics.data.gov.uk/id/local-authority-district/22UN,Human Resources and Customer Services,1880 - Office Accommodation Expenses,4446 - Bulk Bin Collection,31/05/2011,2084684-7,11.11,REDACTED COMMERCIAL CONFIDENTIALITY,REDACTED COMMERCIAL CONFIDENTIALITY
Tendring DC,http://statistics.data.gov.uk/id/local-authority-district/22UN,Human Resources and Customer Services,1880 - Office Accommodation Expenses,4446 - Bulk Bin Collection,31/05/2011,2084684-8,5.55,REDACTED COMMERCIAL CONFIDENTIALITY,REDACTED COMMERCIAL CONFIDENTIALITY
Tendring DC,http://statistics.data.gov.uk/id/local-authority-district/22UN,Human Resources and Customer Services,1060 - Environmental Services,5500 - Miscellaneous Expenses,03/05/2011,1042982-1,47,REDACTED COMMERCIAL CONFIDENTIALITY,REDACTED COMMERCIAL CONFIDENTIALITY
Tendring DC,http://statistics.data.gov.uk/id/local-authority-district/22UN,Human Resources and Customer Services,1880 - Office Accommodation Expenses,4448 - Confidential Waste,03/05/2011,1042986-1,72.85,REDACTED COMMERCIAL CONFIDENTIALITY,REDACTED COMMERCIAL CONFIDENTIALITY
Tendring DC,http://statistics.data.gov.uk/id/local-authority-district/22UN,Human Resources and Customer Services,1880 - Office Accommodation Expenses,2100 - Building Repairs,10/05/2011,1043024-1,847.5,REDACTED COMMERCIAL CONFIDENTIALITY,REDACTED COMMERCIAL CONFIDENTIALITY
Tendring DC,http://statistics.data.gov.uk/id/local-authority-district/22UN,Human Resources and Customer Services,1880 - Office Accommodation Expenses,2100 - Building Repairs,17/05/2011,1043264-1,75,REDACTED COMMERCIAL CONFIDENTIALITY,REDACTED COMMERCIAL CONFIDENTIALITY
